{"text_format":"1","workbook":"xlsx","n_sheets":22,"sheets":["Table1A List of required stocks","Table1B Planning of sampling ","Table1C Sampling intensity ","Table1D Recreational Fisher","Table1E Anadromous catadromous","Table1F Incidental by catch","Table1G List of research survey","Table1H Research survey data","Table2A Fishing activity variab","Table3A  Pop segment fisheries","Table3B Pop segments aquacultur","Table3C Pop segments processing","Table4A Sampling plan descripti","Table4B Sampling frame descrip","Table4C Data on the fisheries","Table4D Landing locations","Table5A Quality assurance frame","Table5B Quality assurance frame","Table6A_Data_availability","Table7A_Planned Regional_coord","Table7B_Follow up of Recommenda","Table7C_Bi- and multilateral "],"not_rendered":{"charts":0,"images":0,"macros":0,"external_links":17,"defined_names":186,"comments":0,"pivot_tables":0},"unopened":[],"bounds":{"document_bytes":16777216,"sheet_cells":100000,"rows_first":2000,"rows_last":500,"rows_between":2000,"halvings":0,"cell_chars":16384,"cell_head_chars":4096},"cells_cut":0,"cells_raw":0,"read":"whole","date_system":"1900"}

{"sheet":"Table1A List of required stocks","index":0,"n_rows":269,"n_cols":13,"rows_kept":269,"cut":false,"hidden":false,"merged":[]}
["Table1A: List of required stocks"]
[null,null,null,null,null,null,null,null,null,null,null,"WP  years","2018-2019"]
[null,null,null,null,null,null,null,null,null,null,null,"AR year",2018]
["MS","Reference years","Species","Region","RFMO/RFO/IO","Area / Stock","Selected for sampling  (Y/N)","Average landings in the reference years (tons)","\nEU TAC (if any)\n(%)","Share (%) in EU landings","Threshold  (Y/N)","Comments","Changes in species landings"]
["SWE","2013-2015","All","All","All","All","NA","NA","NA","NA","NA","In general, figures on landings are based on EUROSTAT, TACs are based on FIDES opening quota table and the areas are based on Table 1A in EU MAP. These data sources do not always corresponds to each other or to the stock definition. Deviations from this common approach are described in the comments below.","empty cells= if no sampling, no info on changes \n\"0\" , \"negative value\", \"positive value\" =  absolute change;  2018 compared to reference years\n"]
["SWE","2013-2015","Anguilla anguilla","East Arctic, Norwegian sea and Barents sea","ICES","I, II","N","<200","None","None","NA"]
["SWE","2013-2015","Brosme brosme","East Arctic, Norwegian sea and Barents sea","ICES","I, II","N","<200","None","None","Y"]
["SWE","2013-2015","Clupea harengus","East Arctic, Norwegian sea and Barents sea","ICES","I, II","N","<200",0.13,"None","Y"]
["SWE","2013-2015","Gadus morhua","East Arctic, Norwegian sea and Barents sea","ICES","I, II","N","<200","None","None","Y"]
["SWE","2013-2015","Mallotus villosus","East Arctic, Norwegian sea and Barents sea","ICES","I, II","N","<200","None","None","Y"]
["SWE","2013-2015","Melanogrammus aeglefinus","East Arctic, Norwegian sea and Barents sea","ICES","I, II","N","<200","None","None","Y"]
["SWE","2013-2015","Micromesistius poutassou","East Arctic, Norwegian sea and Barents sea","ICES","I, II","N","<200",0.04,"None","Y"]
["SWE","2013-2015","Pandalus borealis","East Arctic, Norwegian sea and Barents sea","ICES","I, II","N","<200",0.03,"None","Y"]
["SWE","2013-2015","Pollachius virens","East Arctic, Norwegian sea and Barents sea","ICES","I, II","N","<200","None","None","Y"]
["SWE","2013-2015","Reinhardtius hippoglossoides","East Arctic, Norwegian sea and Barents sea","ICES","I, II","N","<200","None","None","Y"]
["SWE","2013-2015","Salmo salar","East Arctic, Norwegian sea and Barents sea","ICES","I, II","N","<200","None","None","Y"]
["SWE","2013-2015","Scomber scombrus","East Arctic, Norwegian sea and Barents sea","ICES","II","N",1630,"None",0.08,"Y","The mackerel stock is widely distributed and covers subareas I,II,III, IV, V, VI, VII and XIV and divisions VIIIa-e and IXa. Sweden is fishing on the northern component of the stock (area IIIa and IV). The Swedish share on the total stock is well below the threshold of 10 %. An agreement with UK to secure the overall sampling is setup."]
["SWE","2013-2015","Sebastes marinus","East Arctic, Norwegian sea and Barents sea","ICES","I, II","N","<200","None","None","Y"]
["SWE","2013-2015","Sebastes mentella","East Arctic, Norwegian sea and Barents sea","ICES","I, II","N","<200","None","None","Y"]
["SWE","2013-2015","Trachurus trachurus","East Arctic, Norwegian sea and Barents sea","ICES","IIa","N","<200",0.01,"None","Y"]
["SWE","2013-2015","Ammodytidae","Skagerrak and Kattegat","ICES","IIIa","N","<200","None","None","Y"]
["SWE","2013-2015","Anguilla anguilla","Skagerrak and Kattegat","ICES","IIIa","Y","<200","None",0.05,"NA","Fishing is largely prohibited and sampling is carried out through a survey",0]
["SWE","2013-2015","Clupea harengus","Skagerrak and Kattegat","ICES","IIIa","Y",17080,0.45,0.72,"N",null,297]
["SWE","2013-2015","Coryphaenoides rupestris","Skagerrak and Kattegat","ICES","IIIa","N","<200","None","None","Y"]
["SWE","2013-2015","Eutrigla gurnardus","Skagerrak and Kattegat","ICES","IIIa","N","<200","None",0.18,"Y"]
["SWE","2013-2015","Aspitrigla cuculus","Skagerrak and Kattegat","ICES","IIIa","N","<200","None","None","Y"]
["SWE","2013-2015","Gadus morhua","Skagerrak and Kattegat","ICES","IIIaN","Y",560,0.14000000000000001,0.14000000000000001,"N","Landings based on ICES WGBFAS allocation",119]
["SWE","2013-2015","Gadus morhua","Skagerrak and Kattegat","ICES","IIIaS","Y","<200",0.37,0.33,"N","Landings based on ICES WGBFAS allocation.  As the TAC´s (2013-2015) for the stock are low (100-300 tonnes), will appliance of the 200 tonnes threshold  imply that the stock will not be sampled at all. As  Sweden has 38% of the TAC we will continue to sample the stock.",3]
["SWE","2013-2015","Glyptocephalus cynoglossus","Skagerrak and Kattegat","ICES","IIIa","Y",240,"None",0.19,"N",null,-74]
["SWE","2013-2015","Limanda limanda","Skagerrak and Kattegat","ICES","IIIa","N","<200","None",0.02,"Y"]
["SWE","2013-2015","Melanogrammus aeglefinus","Skagerrak and Kattegat","ICES","IIIa","Y",210,0.1,0.12,"Y","Sampled for biological parameters in surveys only."]
["SWE","2013-2015","Merlangius merlangus","Skagerrak and Kattegat","ICES","IIIa","Y","<200",0.1,0.2,"Y","Sampled for biological parameters in surveys only."]
["SWE","2013-2015","Merluccius merluccius","Skagerrak and Kattegat","ICES","IIIa","N","<200",0.08,0.11,"Y"]
["SWE","2013-2015","Micromesistius poutassou","Skagerrak and Kattegat","ICES","IIIa","N","<200",0.04,0.31,"Y"]
["SWE",2015,"Nephrops norvegicus","Skagerrak and Kattegat","ICES","Functional unit 3-4","Y",1180,"None",0.31,"N","Data on international landings was only available for 2015 as these figures origins from ICES Intercatch (landings by Functional Unit was not available in EUROSTAT.",689]
["SWE","2013-2015","Pandalus borealis","Skagerrak and Kattegat","ICES","IIIa","Y",1195,0.35,0.35,"N",null,0]
["SWE","2013-2015","Pleuronectes platessa","Skagerrak and Kattegat","ICES","IIIa","Y",295,0.05,0.03,"Y","Sampled for biological parameters in surveys only. Bilateral agreement with DEN. For plaice we have followed the regions applied in table 1A in EU-MAP. In reality there are two plaice stocks in this region. SWE has limited TAC and landings in both and they are combined in one line to be consistence with table 1A in EU MAP."]
["SWE","2013-2015","Pollachius virens","Skagerrak and Kattegat","ICES","IIIa","Y",345,"None",0.17,"Y","Sampled for biological parameters in surveys only. According to manual Saithe in IIIa appears above threshold  for the sole reason that the area in column F do not match the stock/TAC.  The TACs covers area IIIa and IV. The Swedish share of the overall TACs (EU zone and Norwegian zone) is less than 2 %."]
["SWE","2013-2015","Salmo salar","Skagerrak and Kattegat","ICES","IIIa","Y","<200","None",1,"NA"]
["SWE","2013-2015","Psetta maxima","Skagerrak and Kattegat","ICES","IIIa","N","<200","None",0.11,"Y"]
["SWE","2013-2015","Scomber scombrus","Skagerrak and Kattegat","ICES","IIIa","N",340,"None",0.66,"Y","The mackerel stock is widely distributed and covers subareas I,II,III, IV, V, VI, VII and XIV and divisions VIIIa-e and IXa. Sweden is fishing on the northern component of the stock (area IIIa and IV). The Swedish share on the total stock is well below the threshold of 10 %. An agreement with UK to secure the overall sampling is setup."]
["SWE","2013-2015","Scophthalmus rhombus","Skagerrak and Kattegat","ICES","IIIa","N","<200","None",0.15,"Y"]
["SWE","2013-2015","Solea solea","Skagerrak and Kattegat","ICES","IIIa","N","<200",0.03,0.13,"Y"]
["SWE","2013-2015","Sprattus sprattus","Skagerrak and Kattegat","ICES","IIIa","Y",1285,0.27,0.09,"N",null,-229]
["SWE","2013-2015","Trisopterus esmarkii","Skagerrak and Kattegat","ICES","IIIa","Y","<200",0,"None","Y","Sampled for biological parameters in surveys only, according to manual."]
["SWE","2013-2015","Anguilla anguilla","Baltic Sea","ICES","22-32","Y",210,"None",0.38,"N",null,-69]
["SWE","2013-2015","Clupea harengus","Baltic Sea","ICES","22-24","Y",1915,0.18,0.09,"N",null,-558]
["SWE","2013-2015","Clupea harengus","Baltic Sea","ICES","25-29, 32","Y",38435,0.33,0.33,"N",null,28483]
["SWE","2013-2015","Clupea harengus","Baltic Sea","ICES",30,"Y",12590,0.18,0.11,"N",null,3622]
["SWE","2013-2015","Clupea harengus","Baltic Sea","ICES",31,"N","<200",0.18,0.03,"Y"]
["SWE","2013-2015","Clupea harengus","Baltic Sea","ICES","Gulf of Riga","N","<200","None","None","Y"]
["SWE","2013-2015","Coregonus lavaretus","Baltic Sea","ICES","IIId","N","<200","None","None","Y"]
["SWE","2013-2015","Coregonus albula","Baltic Sea","ICES","22-32","Y",1735,"None",0.87,"N",null,-623]
["SWE","2013-2015","Gadus morhua","Baltic Sea","ICES","22-24","Y",1965,0.16,0.15,"N",null,-1103]
["SWE","2013-2015","Gadus morhua","Baltic Sea","ICES","25-32","Y",4685,0.23,0.16,"N",null,-2773]
["SWE","2013-2015","Limanda limanda","Baltic Sea","ICES","22-32","N","<200","None","None","Y"]
["SWE","2013-2015","Perca fluviatilis","Baltic Sea","ICES","IIId","N","<200","None",0.02,"Y"]
["SWE","2013-2015","Platichthys flesus","Baltic Sea","ICES","22-32","Y",260,"None",0.02,"N","Sampled for biological parameters in surveys only.",-115]
["SWE","2013-2015","Pleuronectes platessa","Baltic Sea","ICES","22-32","N","<200",0.05,0.03,"Y"]
["SWE","2013-2015","Psetta maxima","Baltic Sea","ICES","22-32","N","<200","None",0.08,"Y"]
["SWE","2013-2015","Salmo salar","Baltic Sea","ICES","22-31","Y","<200",0.28000000000000003,0.34,"NA","In 2017, SWE quota is 26 870 indivuals out of 95 928 EU."]
["SWE","2013-2015","Salmo salar","Baltic Sea","ICES",32,"N","<200","None","None","NA"]
["SWE","2013-2015","Salmo trutta","Baltic Sea","ICES","22-32","Y","<200","None",0.04,"NA"]
["SWE","2013-2015","Sander lucioperca","Baltic Sea","ICES","IIId","N","<200","None",0.01,"Y"]
["SWE","2013-2015","Scophthalmus rhombus","Baltic Sea","ICES","22-32","N","<200","None",0.03,"Y"]
["SWE","2013-2015","Solea solea","Baltic Sea","ICES",22,"N","<200","None","None","Y"]
["SWE","2013-2015","Sprattus sprattus","Baltic Sea","ICES","22-32","Y",36490,0.19,0.21,"N",null,12644]
["SWE","2013-2015","Ammodytidae","North Sea and Eastern Channel","ICES","IV","N",26355,"None",0.13,"Y"]
["SWE","2013-2015","Anarhichas spp.","North Sea and Eastern Channel","ICES","IV","N","<200","None","None","Y"]
["SWE","2013-2015","Anguilla anguilla","North Sea and Eastern Channel","ICES","IV, VIId","N","<200","None","None","NA"]
["SWE","2013-2015","Argentina spp.","North Sea and Eastern Channel","ICES","IV","N","<200",0.03,"None","Y"]
["SWE","2013-2015","Eutrigla gurnardus","North Sea and Eastern Channel","ICES","IV","N","<200","None","None","Y"]
["SWE","2013-2015","Brosme brosme","North Sea and Eastern Channel","ICES","IV","N","<200",0.03,"None","Y"]
["SWE","2013-2015","Clupea harengus","North Sea and Eastern Channel","ICES","IV, VIId","N",15015,"None",0.04,"Y"]
["SWE","2013-2015","Crangon crangon","North Sea and Eastern Channel","ICES","IV, VIId","N","<200","None","None","Y"]
["SWE","2013-2015","Dicentrarchus labrax","North Sea and Eastern Channel","ICES","IV, VIId","N","<200","None","None","Y"]
["SWE","2013-2015","Gadus morhua","North Sea and Eastern Channel","ICES","IV, VIId","N",385,"None",0.01,"Y"]
["SWE","2013-2015","Glyptocephalus cynoglossus","North Sea and Eastern Channel","ICES","IV","N","<200","None","None","Y"]
["SWE","2013-2015","Helicolenus dactylopterus","North Sea and Eastern Channel","ICES","IV","N","<200","None","None","Y"]
["SWE","2013-2015","Lepidorhombus boscii","North Sea and Eastern Channel","ICES","IV, VIId","N","<200","None","None","Y"]
["SWE","2013-2015","Lepidorhombus whiffiagonis","North Sea and Eastern Channel","ICES","IV, VIId","N","<200","None","None","Y"]
["SWE","2013-2015","Limanda limanda","North Sea and Eastern Channel","ICES","IV, VIId","N","<200","None","None","Y"]
["SWE","2013-2015","Lophius budegassa","North Sea and Eastern Channel","ICES","IV, VIId","N","<200","None","None","Y"]
["SWE","2013-2015","Lophius piscatorius","North Sea and Eastern Channel","ICES","IV","N","<200","None",0.01,"Y"]
["SWE","2013-2015","Macrourus berglax","North Sea and Eastern Channel","ICES","IV","N","<200","None","None","Y"]
["SWE","2013-2015","Melanogrammus aeglefinus","North Sea and Eastern Channel","ICES","IV","N","<200",0.01,"None","Y"]
["SWE","2013-2015","Merlangius merlangus","North Sea and Eastern Channel","ICES","IV, VIId","N","<200","None","None","Y"]
["SWE","2013-2015","Merluccius merluccius","North Sea and Eastern Channel","ICES","IV VII","N","<200","None","None","Y"]
["SWE","2013-2015","Micromesistius poutassou","North Sea and Eastern Channel","ICES","IV, VIId","N","<200",0.04,0.05,"Y"]
["SWE","2013-2015","Microstomus kitt","North Sea and Eastern Channel","ICES","IV, VIId","N","<200","None","None","Y"]
["SWE","2013-2015","Molva dypterygia","North Sea and Eastern Channel","ICES","IV","N","<200","None","None","Y"]
["SWE","2013-2015","Molva molva","North Sea and Eastern Channel","ICES","IV","N","<200","None","None","Y"]
["SWE","2013-2015","Mullus barbatus","North Sea and Eastern Channel","ICES","IV, VIId","N","<200","None","None","Y"]
["SWE","2013-2015","Mullus surmuletus","North Sea and Eastern Channel","ICES","IV, VIId","N","<200","None","None","Y"]
["SWE",2015,"Nephrops norvegicus","North Sea and Eastern Channel","ICES","functional unit 7","N","<200","None","None","Y","Data on international landings was only available for 2015 as these figures origins from ICES Intercatch (landings by Functional Unit was not available in EUROSTAT."]
["SWE",2015,"Nephrops norvegicus","North Sea and Eastern Channel","ICES","functional unit 10","N","<200","None","None","Y","Data on international landings was only available for 2015 as these figures origins from ICES Intercatch (landings by Functional Unit was not available in EUROSTAT."]
["SWE","2013-2015","Nephrops norvegicus","North Sea and Eastern Channel","ICES","functional units 32 (TAC IIa, IV)","N","<200","None","None","Y"]
["SWE",2015,"Nephrops norvegicus","North Sea and Eastern Channel","ICES","functional unit 6","N","<200","None","None","Y","Data on international landings was only available for 2015 as these figures origins from ICES Intercatch (landings by Functional Unit was not available in EUROSTAT."]
["SWE",2015,"Nephrops norvegicus","North Sea and Eastern Channel","ICES","functional unit 8","N","<200","None","None","Y","Data on international landings was only available for 2015 as these figures origins from ICES Intercatch (landings by Functional Unit was not available in EUROSTAT."]
["SWE",2015,"Nephrops norvegicus","North Sea and Eastern Channel","ICES","functional unit 9","N","<200","None","None","Y","Data on international landings was only available for 2015 as these figures origins from ICES Intercatch (landings by Functional Unit was not available in EUROSTAT."]
["SWE","2013-2015","Nephrops norvegicus","North Sea and Eastern Channel","ICES","functional units 33 (TAC IIa, VI)","N","<200","None","None","Y"]
["SWE",2015,"Nephrops norvegicus","North Sea and Eastern Channel","ICES","functional unit 34","N","<200","None","None","Y","Data on international landings was only available for 2015 as these figures origins from ICES Intercatch (landings by Functional Unit was not available in EUROSTAT."]
["SWE","2013-2015","Pandalus borealis","North Sea and Eastern Channel","ICES","IVa","N","<200",0.03,0.55000000000000004,"Y"]
["SWE","2013-2015","Pecten maximus","North Sea and Eastern Channel","ICES","VIId","N","<200","None","None","Y"]
["SWE","2013-2015","Phycis blennoides","North Sea and Eastern Channel","ICES","IV","N","<200","None","None","Y"]
["SWE","2013-2015","Phycis phycis","North Sea and Eastern Channel","ICES","IV","N","<200","None","None","Y"]
["SWE","2013-2015","Platichthys flesus","North Sea and Eastern Channel","ICES","IV","N","<200","None","None","Y"]
["SWE","2013-2015","Pleuronectes platessa","North Sea and Eastern Channel","ICES","IV","N","<200","None","None","Y"]
["SWE","2013-2015","Pleuronectes platessa","North Sea and Eastern Channel","ICES","VIId","N","<200","None","None","Y"]
["SWE","2013-2015","Pollachius virens","North Sea and Eastern Channel","ICES","IV","N",925,"None",0.03,"Y"]
["SWE","2013-2015","Psetta maxima","North Sea and Eastern Channel","ICES","IV, VIId","N","<200","None","None","Y"]
["SWE","2013-2015","Reinhardtius hippoglossoides","North Sea and Eastern Channel","ICES","IV","N","<200","None","None","Y"]
["SWE","2013-2015","Salmo salar","North Sea and Eastern Channel","ICES","IV, VIId","N","<200","None","None","NA"]
["SWE","2013-2015","Scomber scombrus","North Sea and Eastern Channel","ICES","IV, VIId","N",1820,"None",0.01,"Y","The mackerel stock is widely distributed and covers subareas I,II,III, IV, V, VI, VII and XIV and divisions VIIIa-e and IXa. Sweden is fishing on the northern component of the stock (area IIIa and IV). The Swedish share on the total stock is well below the threshold of 10 %. An agreement with UK to secure the overall sampling is setup."]
["SWE","2013-2015","Scophthalmus rhombus","North Sea and Eastern Channel","ICES","IV, VIId","N","<200","None","None","Y"]
["SWE","2013-2015","Sebastes mentella","North Sea and Eastern Channel","ICES","IV","N","<200","None","None","Y"]
["SWE","2013-2015","Solea solea","North Sea and Eastern Channel","ICES","IV","N","<200","None","None","Y"]
["SWE","2013-2015","Solea solea","North Sea and Eastern Channel","ICES","VIId","N","<200","None","None","Y"]
["SWE","2013-2015","Sprattus sprattus","North Sea and Eastern Channel","ICES","IV","N",3975,0.01,0.02,"Y"]
["SWE","2013-2015","Sprattus sprattus","North Sea and Eastern Channel","ICES","VIId","N","<200","None","None","Y"]
["SWE","2013-2015","Trachurus trachurus","North Sea and Eastern Channel","ICES","IV, VIId","N","<200",0.01,"None","Y"]
["SWE","2013-2015","Trigla lucerna","North Sea and Eastern Channel","ICES","IV","N","<200","None","None","Y"]
["SWE","2013-2015","Trisopterus esmarkii","North Sea and Eastern Channel","ICES","IV","N",245,"None",0.01,"Y"]
["SWE","2013-2015","Zeus faber","North Sea and Eastern Channel","ICES","IV, VIId","N","<200","None","None","Y"]
["SWE","2013-2015","Alepocephalus bairdii","North East Atlantic and Western Channel","ICES","VI, XII","N","<200","None","None","Y"]
["SWE","2013-2015","Ammodytidae","North East Atlantic and Western Channel","ICES","VIa","N","<200","None","None","Y"]
["SWE","2013-2015","Capros aper","North East Atlantic and Western Channel","ICES","V, VI,VII","N","<200","None","None","Y"]
["SWE","2013-2015","Pecten maximus","North East Atlantic and Western Channel","ICES","IV, VI, VII","N","<200","None","None","Y"]
["SWE","2013-2015","Aequipecten opercularis","North East Atlantic and Western Channel","ICES","VII","N","<200","None","None","Y"]
["SWE","2013-2015","Maja squinado","North East Atlantic and Western Channel","ICES","V, VI,VII","N","<200","None","None","Y"]
["SWE","2013-2015","Anguilla anguilla","North East Atlantic and Western Channel","ICES","all areas","N","<200","None","None","Y"]
["SWE","2013-2015","Aphanopus spp.","North East Atlantic and Western Channel","ICES","all areas","N","<200","None","None","Y"]
["SWE","2013-2015","Argentina spp.","North East Atlantic and Western Channel","ICES","all areas","N","<200","None","None","Y"]
["SWE","2013-2015","Argyrosomus regius","North East Atlantic and Western Channel","ICES","all areas","N","<200","None","None","Y"]
["SWE","2013-2015","Aspitrigla cuculus","North East Atlantic and Western Channel","ICES","all areas","N","<200","None","None","Y"]
["SWE","2013-2015","Beryx spp.","North East Atlantic and Western Channel","ICES","all areas, excluding X and IXa","N","<200","None","None","Y"]
["SWE","2013-2015","Beryx spp.","North East Atlantic and Western Channel","ICES","IXa and X","N","<200","None","None","Y"]
["SWE","2013-2015","Cancer pagurus","North East Atlantic and Western Channel","ICES","all areas","N","<200","None","None","Y"]
["SWE","2013-2015","Clupea harengus","North East Atlantic and Western Channel","ICES","VIa","N","<200","None","None","Y"]
["SWE","2013-2015","Clupea harengus","North East Atlantic and Western Channel","ICES","VIa S, VIIbc","N","<200","None","None","Y"]
["SWE","2013-2015","Clupea harengus","North East Atlantic and Western Channel","ICES","VIIa","N","<200","None","None","Y"]
["SWE","2013-2015","Clupea harengus","North East Atlantic and Western Channel","ICES","VIIj","N","<200","None","None","Y"]
["SWE","2013-2015","Conger conger","North East Atlantic and Western Channel","ICES","all areas, excluding X","N","<200","None","None","Y"]
["SWE","2013-2015","Conger conger","North East Atlantic and Western Channel","ICES","X","N","<200","None","None","Y"]
["SWE","2013-2015","Coryphaenoides rupestris","North East Atlantic and Western Channel","ICES","all areas","N","<200","None","None","Y"]
["SWE","2013-2015","Dalatias licha","North East Atlantic and Western Channel","ICES","All areas","N","<200","None","None","Y"]
["SWE","2013-2015","Dasyatis pastinaca","North East Atlantic and Western Channel","ICES","VII, VIII","N","<200","None","None","Y"]
["SWE","2013-2015","Deania calcea","North East Atlantic and Western Channel","ICES","V, VI, VII, IX, X, XII","N","<200","None","None","Y"]
["SWE","2013-2015","Dicentrarchus labrax","North East Atlantic and Western Channel","ICES","all areas, excluding IX","N","<200","None","None","Y"]
["SWE","2013-2015","Dicentrarchus labrax","North East Atlantic and Western Channel","ICES","IX","N","<200","None","None","Y"]
["SWE","2013-2015","Dicologlossa cuneata","North East Atlantic and Western Channel","ICES","VIIIc, IX","N","<200","None","None","Y"]
["SWE","2013-2015","Engraulis encrasicolus","North East Atlantic and Western Channel","ICES","IXa (only Cádiz)","N","<200","None","None","Y"]
["SWE","2013-2015","Engraulis encrasicolus","North East Atlantic and Western Channel","ICES","VIII","N","<200","None","None","Y"]
["SWE","2013-2015","Etmopterus spinax","North East Atlantic and Western Channel","ICES","VI, VII, VIII","N","<200","None","None","Y"]
["SWE","2013-2015","Eutrigla gurnardus","North East Atlantic and Western Channel","ICES","VIIe","N","<200","None","None","Y"]
["SWE","2013-2015","Gadus morhua","North East Atlantic and Western Channel","ICES","Va","N","<200","None","None","Y"]
["SWE","2013-2015","Gadus morhua","North East Atlantic and Western Channel","ICES","Vb","N","<200","None","None","Y"]
["SWE","2013-2015","Gadus morhua","North East Atlantic and Western Channel","ICES","VIa","N","<200","None","None","Y"]
["SWE","2013-2015","Gadus morhua","North East Atlantic and Western Channel","ICES","VIb","N","<200","None","None","Y"]
["SWE","2013-2015","Gadus morhua","North East Atlantic and Western Channel","ICES","VIIa","N","<200","None","None","Y"]
["SWE","2013-2015","Gadus morhua","North East Atlantic and Western Channel","ICES","VIIe-k","N","<200","None","None","Y"]
["SWE","2013-2015","Glyptocephalus cynoglossus","North East Atlantic and Western Channel","ICES","VI, VII","N","<200","None","None","Y"]
["SWE","2013-2015","Helicolenus dactylopterus","North East Atlantic and Western Channel","ICES","all areas","N","<200","None","None","Y"]
["SWE","2013-2015","Homarus gammarus","North East Atlantic and Western Channel","ICES","all areas","N","<200","None","None","Y"]
["SWE","2013-2015","Hoplostethus atlanticus","North East Atlantic and Western Channel","ICES","all areas","N","<200","None","None","Y"]
["SWE","2013-2015","Lepidopus caudatus","North East Atlantic and Western Channel","ICES","IXa","N","<200","None","None","Y"]
["SWE","2013-2015","Lepidorhombus boscii","North East Atlantic and Western Channel","ICES","VIIIc, IXa","N","<200","None","None","Y"]
["SWE","2013-2015","Lepidorhombus whiffiagonis","North East Atlantic and Western Channel","ICES","VI","N","<200","None","None","Y"]
["SWE","2013-2015","Lepidorhombus whiffiagonis","North East Atlantic and Western Channel","ICES","VII, VIIIabd","N","<200","None","None","Y"]
["SWE","2013-2015","Lepidorhombus whiffiagonis","North East Atlantic and Western Channel","ICES","VIIIc, IXa","N","<200","None","None","Y"]
["SWE","2013-2015","Limanda limanda","North East Atlantic and Western Channel","ICES","VIIe","N","<200","None","None","Y"]
["SWE","2013-2015","Limanda limanda","North East Atlantic and Western Channel","ICES","VIIa,f-h","N","<200","None","None","Y"]
["SWE","2013-2015","Loligo vulgaris","North East Atlantic and Western Channel","ICES","all areas, excluding VIIIc, IXa","N","<200","None","None","Y"]
["SWE","2013-2015","Loligo vulgaris","North East Atlantic and Western Channel","ICES","VIIIc, IXa","N","<200","None","None","Y"]
["SWE","2013-2015","Lophius budegassa","North East Atlantic and Western Channel","ICES","IV, VI","N","<200","None","None","Y"]
["SWE","2013-2015","Lophius budegassa","North East Atlantic and Western Channel","ICES","VIIb-k, VIIIabd","N","<200","None","None","Y"]
["SWE","2013-2015","Lophius budegassa","North East Atlantic and Western Channel","ICES","VIIIc, IXa","N","<200","None","None","Y"]
["SWE","2013-2015","Lophius piscatorius","North East Atlantic and Western Channel","ICES","IV, VI","N","<200","None",0.01,"Y"]
["SWE","2013-2015","Lophius piscatorius","North East Atlantic and Western Channel","ICES","VIIb-k, VIIIabd","N","<200","None","None","Y"]
["SWE","2013-2015","Lophius piscatorius","North East Atlantic and Western Channel","ICES","VIIIc, IXa","N","<200","None","None","Y"]
["SWE","2013-2015","Mallotus villosus","North East Atlantic and Western Channel","ICES","XIV","N","<200","None","None","Y"]
["SWE","2013-2015","Melanogrammus aeglefinus","North East Atlantic and Western Channel","ICES","Va","N","<200","None","None","Y"]
["SWE","2013-2015","Melanogrammus aeglefinus","North East Atlantic and Western Channel","ICES","Vb","N","<200","None","None","Y"]
["SWE","2013-2015","Melanogrammus aeglefinus","North East Atlantic and Western Channel","ICES","VIa","N","<200","None","None","Y"]
["SWE","2013-2015","Melanogrammus aeglefinus","North East Atlantic and Western Channel","ICES","Vib","N","<200","None","None","Y"]
["SWE","2013-2015","Melanogrammus aeglefinus","North East Atlantic and Western Channel","ICES","VIIa","N","<200","None","None","Y"]
["SWE","2013-2015","Melanogrammus aeglefinus","North East Atlantic and Western Channel","ICES","VIIb-k","N","<200","None","None","Y"]
["SWE","2013-2015","Merlangius merlangus","North East Atlantic and Western Channel","ICES","VIII","N","<200","None","None","Y"]
["SWE","2013-2015","Merlangius merlangus","North East Atlantic and Western Channel","ICES","IX, X","N","<200","None","None","Y"]
["SWE","2013-2015","Merlangius merlangus","North East Atlantic and Western Channel","ICES","Vb","N","<200","None","None","Y"]
["SWE","2013-2015","Merlangius merlangus","North East Atlantic and Western Channel","ICES","VIa","N","<200","None","None","Y"]
["SWE","2013-2015","Merlangius merlangus","North East Atlantic and Western Channel","ICES","VIb","N","<200","None","None","Y"]
["SWE","2013-2015","Merlangius merlangus","North East Atlantic and Western Channel","ICES","VIIa","N","<200","None","None","Y"]
["SWE","2013-2015","Merlangius merlangus","North East Atlantic and Western Channel","ICES","VIIe-k","N","<200","None","None","Y"]
["SWE","2013-2015","Merluccius merluccius","North East Atlantic and Western Channel","ICES","VI, VII, VIIIab","N","<200","None","None","Y"]
["SWE","2013-2015","Merluccius merluccius","North East Atlantic and Western Channel","ICES","VIIIc, IXa","N","<200","None","None","Y"]
["SWE","2013-2015","Microchirus variegatus","North East Atlantic and Western Channel","ICES","all areas","N","<200","None","None","Y"]
["SWE","2013-2015","Micromesistius poutassou","North East Atlantic and Western Channel","ICES","I-IX, XII, XIV","N",205,"None","None","Y"]
["SWE","2013-2015","Microstomus kitt","North East Atlantic and Western Channel","ICES","all areas","N","<200","None","None","Y"]
["SWE","2013-2015","Molva dypterygia","North East Atlantic and Western Channel","ICES","all areas, excluding X","N","<200","None","None","Y"]
["SWE","2013-2015","Molva macrophthalma","North East Atlantic and Western Channel","ICES","X","N","<200","None","None","Y"]
["SWE","2013-2015","Molva molva","North East Atlantic and Western Channel","ICES","all areas","N","<200","None","None","Y"]
["SWE","2013-2015","Mullus surmuletus","North East Atlantic and Western Channel","ICES","all areas","N","<200","None","None","Y"]
["SWE","2013-2015","Mustelus asterias","North East Atlantic and Western Channel","ICES","VI, VII, VIII, IX","N","<200","None","None","Y"]
["SWE","2013-2015","Mustelus mustelus","North East Atlantic and Western Channel","ICES","VI, VII, VIII, IX","N","<200","None","None","Y"]
["SWE","2013-2015","Mustelus punctulatus","North East Atlantic and Western Channel","ICES","VI, VII, VIII, IX","N","<200","None","None","Y"]
["SWE",2015,"Nephrops norvegicus","North East Atlantic and Western Channel","ICES","VI Fuctional unit 11","N","<200","None","None","Y"]
["SWE",2015,"Nephrops norvegicus","North East Atlantic and Western Channel","ICES","VI Fuctional unit 12","N","<200","None","None","Y"]
["SWE",2015,"Nephrops norvegicus","North East Atlantic and Western Channel","ICES","VI Fuctional unit 13","N","<200","None","None","Y"]
["SWE",2015,"Nephrops norvegicus","North East Atlantic and Western Channel","ICES","VII Functional unit 14","N","<200","None","None","Y"]
["SWE",2015,"Nephrops norvegicus","North East Atlantic and Western Channel","ICES","VII Functional unit 15","N","<200","None","None","Y"]
["SWE","2013-2015","Nephrops norvegicus","North East Atlantic and Western Channel","ICES","VII Functional unit 16 (TAC FU16)","N","<200","None","None","Y"]
["SWE",2015,"Nephrops norvegicus","North East Atlantic and Western Channel","ICES","VII Functional unit 17","N","<200","None","None","Y"]
["SWE","2013-2015","Nephrops norvegicus","North East Atlantic and Western Channel","ICES","VII Functional unit 18 (TAC VII)","N","<200","None","None","Y"]
["SWE","2013-2015","Nephrops norvegicus","North East Atlantic and Western Channel","ICES","VII Functional unit 19 (TAC VII)","N","<200","None","None","Y"]
["SWE","2013-2015","Nephrops norvegicus","North East Atlantic and Western Channel","ICES","VII Functional unit 20-21 (TAC VII)","N","<200","None","None","Y"]
["SWE",2015,"Nephrops norvegicus","North East Atlantic and Western Channel","ICES","VII Functional unit 22","N","<200","None","None","Y"]
["SWE",2015,"Nephrops norvegicus","North East Atlantic and Western Channel","ICES","VIII, IX Functional unit 23, 24","N","<200","None","None","Y"]
["SWE",2015,"Nephrops norvegicus","North East Atlantic and Western Channel","ICES","VIII, IX Functional unit 25, 31","N","<200","None","None","Y"]
["SWE",2015,"Nephrops norvegicus","North East Atlantic and Western Channel","ICES","VIII, IX Functional unit 26-27, 28-29, 30","N","<200","None","None","Y"]
["SWE","2013-2015","Octopus vulgaris","North East Atlantic and Western Channel","ICES","all areas, excluding VIIIc, IXa","N","<200","None","None","Y"]
["SWE","2013-2015","Octopus vulgaris","North East Atlantic and Western Channel","ICES","VIIIc, IXa","N","<200","None","None","Y"]
["SWE","2013-2015","Pagellus bogaraveo","North East Atlantic and Western Channel","ICES","IXa, X","N","<200","None","None","Y"]
["SWE","2013-2015","Pandalus spp.","North East Atlantic and Western Channel","ICES","all areas","N","<200","None","None","Y"]
["SWE","2013-2015","Parapenaeus longirostris","North East Atlantic and Western Channel","ICES","IXa","N","<200","None","None","Y"]
["SWE","2013-2015","Phycis blennoides","North East Atlantic and Western Channel","ICES","all areas","N","<200","None","None","Y"]
["SWE","2013-2015","Phycis phycis","North East Atlantic and Western Channel","ICES","all areas","N","<200","None","None","Y"]
["SWE","2013-2015","Pleuronectes platessa","North East Atlantic and Western Channel","ICES","VIIa","N","<200","None","None","Y"]
["SWE","2013-2015","Pleuronectes platessa","North East Atlantic and Western Channel","ICES","VIIe","N","<200","None","None","Y"]
["SWE","2013-2015","Pleuronectes platessa","North East Atlantic and Western Channel","ICES","VIIfg","N","<200","None","None","Y"]
["SWE","2013-2015","Pleuronectes platessa","North East Atlantic and Western Channel","ICES","VIIbc","N","<200","None","None","Y"]
["SWE","2013-2015","Pleuronectes platessa","North East Atlantic and Western Channel","ICES","VIIh-k","N","<200","None","None","Y"]
["SWE","2013-2015","Pleuronectes platessa","North East Atlantic and Western Channel","ICES","VIII, IX, X","N","<200","None","None","Y"]
["SWE","2013-2015","Pollachius pollachius","North East Atlantic and Western Channel","ICES","all areas except IX, X","N","<200","None","None","Y"]
["SWE","2013-2015","Pollachius pollachius","North East Atlantic and Western Channel","ICES","IX, X","N","<200","None","None","Y"]
["SWE","2013-2015","Pollachius virens","North East Atlantic and Western Channel","ICES","Va","N","<200","None","None","Y"]
["SWE","2013-2015","Pollachius virens","North East Atlantic and Western Channel","ICES","Vb","N","<200","None","None","Y"]
["SWE","2013-2015","Pollachius virens","North East Atlantic and Western Channel","ICES","IV, IIIa, VI","N","<200","None","None","Y"]
["SWE","2013-2015","Pollachius virens","North East Atlantic and Western Channel","ICES","VII, VIII","N","<200","None","None","Y"]
["SWE","2013-2015","Polyprion americanus","North East Atlantic and Western Channel","ICES","X","N","<200","None","None","Y"]
["SWE","2013-2015","Psetta maxima","North East Atlantic and Western Channel","ICES","all areas","N","<200","None","None","Y"]
["SWE","2013-2015","Reinhardtius hippoglossoides","North East Atlantic and Western Channel","ICES","V, XIV","N","<200","None","None","Y"]
["SWE","2013-2015","Reinhardtius hippoglossoides","North East Atlantic and Western Channel","ICES","VI","N","<200","None","None","Y"]
["SWE","2013-2015","Hippoglossus hippoglossus","North East Atlantic and Western Channel","ICES","V, XIV","N","<200","None","None","Y"]
["SWE","2013-2015","Salmo salar","North East Atlantic and Western Channel","ICES","all areas","N","<200","None","None","NA"]
["SWE","2013-2015","Sardina pilchardus","North East Atlantic and Western Channel","ICES","VIIIabd","N","<200","None","None","Y"]
["SWE","2013-2015","Sardina pilchardus","North East Atlantic and Western Channel","ICES","VIIIc, IXa","N","<200","None","None","Y"]
["SWE","2013-2015","Scomber colias","North East Atlantic and Western Channel","ICES","VIII, IX, X","N","<200","None","None","Y"]
["SWE","2013-2015","Scomber scombrus","North East Atlantic and Western Channel","ICES","V, VI, VII, VIII, IX","N","<200","None","None","Y","The mackerel stock is widely distributed and covers subareas I,II,III, IV, V, VI, VII and XIV and divisions VIIIa-e and IXa. Sweden is fishing on the northern component of the stock (area IIIa and IV). The Swedish share on the total stock is well below the threshold of 10 %. An agreement with UK to secure the overall sampling is setup."]
["SWE","2013-2015","Scophthalmus rhombus","North East Atlantic and Western Channel","ICES","all areas","N","<200","None","None","Y"]
["SWE","2013-2015","Sebastes marinus","North East Atlantic and Western Channel","ICES","ICES Sub areas V, VI, XII, XIV & NAFO SA 2 + (Div. 1F + 3K).","N","<200","None","None","Y"]
["SWE","2013-2015","Sebastes mentella","North East Atlantic and Western Channel","ICES","ICES Sub areas V, VI, XII, XIV & NAFO SA 2 + (Div. 1F + 3K)","N","<200","None","None","Y"]
["SWE","2013-2015","Sepia officinalis","North East Atlantic and Western Channel","ICES","all areas","N","<200","None","None","Y"]
["SWE","2013-2015","Solea solea","North East Atlantic and Western Channel","ICES","VIIa","N","<200","None","None","Y"]
["SWE","2013-2015","Solea solea","North East Atlantic and Western Channel","ICES","VIIfg","N","<200","None","None","Y"]
["SWE","2013-2015","Solea solea","North East Atlantic and Western Channel","ICES","VIIbc","N","<200","None","None","Y"]
["SWE","2013-2015","Solea solea","North East Atlantic and Western Channel","ICES","VIIhjk","N","<200","None","None","Y"]
["SWE","2013-2015","Solea solea","North East Atlantic and Western Channel","ICES","Ixa","N","<200","None","None","Y"]
["SWE","2013-2015","Solea solea","North East Atlantic and Western Channel","ICES","VIIIc","N","<200","None","None","Y"]
["SWE","2013-2015","Solea solea","North East Atlantic and Western Channel","ICES","VIIe","N","<200","None","None","Y"]
["SWE","2013-2015","Solea solea","North East Atlantic and Western Channel","ICES","VIIIab","N","<200","None","None","Y"]
["SWE","2013-2015","Sparidae","North East Atlantic and Western Channel","ICES","all areas","N","<200","None","None","Y"]
["SWE","2013-2015","Trachurus mediterraneus","North East Atlantic and Western Channel","ICES","VIII, IX","N","<200","None","None","Y"]
["SWE","2013-2015","Trachurus picturatus","North East Atlantic and Western Channel","ICES","VIII, IX, X","N","<200","None","None","Y"]
["SWE","2013-2015","Trachurus trachurus","North East Atlantic and Western Channel","ICES","IIa, IVa, Vb, VIa, VIIa-c, e-k, VIIIabde","N","<200","None","None","Y"]
["SWE","2013-2015","Trachurus trachurus","North East Atlantic and Western Channel","ICES","X","N","<200","None","None","Y"]
["SWE","2013-2015","Trachurus trachurus","North East Atlantic and Western Channel","ICES","VIIIc, IXa","N","<200","None","None","Y"]
["SWE","2013-2015","Trisopterus spp.","North East Atlantic and Western Channel","ICES","all areas","N","<200","None","None","Y"]
["SWE","2013-2015","Zeus faber","North East Atlantic and Western Channel","ICES","all areas","N","<200","None","None","Y"]

{"sheet":"Table1B Planning of sampling ","index":1,"n_rows":31,"n_cols":25,"rows_kept":31,"cut":false,"hidden":false,"merged":[[5,21,5,23],[9,21,9,23],[10,21,10,23],[13,21,13,23],[18,21,18,23],[25,9,25,11],[3,0,4,0],[2,17,2,23],[1,17,1,23],[3,6,3,8],[3,1,4,1],[3,2,4,2],[3,3,4,3],[3,4,4,4],[3,5,4,5],[3,21,3,23],[3,9,3,11],[3,12,3,14],[3,15,3,17],[3,18,3,20],[24,9,24,11]]}
["Table 1B: Planning of sampling for biological variables"]
[null,null,null,null,null,null,null,null,null,null,null,null,null,null,null,null,null,"WP years",null,null,null,null,null,null,"2018-2019"]
[null,null,null,null,null,null,null,null,null,null,null,null,null,null,null,null,null,"AR  year ",null,null,null,null,null,null,"2018"]
["MS","Species","Region","RFMO/RFO/IO","Area / Stock","Frequency","Length",null,null,"Age",null,null,"Weight",null,null,"Sex ratio",null,null,"Sexual maturity",null,null,"Fecundity",null,null,"Comments"]
[null,null,null,null,null,null,2017,2018,2019,2017,2018,2019,2017,2018,2019,2017,2018,2019,2017,2018,2019,2017,2018,2019]
["SWE","Anguilla anguilla ","Baltic Sea","EIFAAC/ICES/GFCM ","22-32","O","X","X","X","X","X","X","X","X","X","X","X","X",null,null,null,"Not applicable",null,null,"Frequency: Commercial monthly during season, survey yearly. Maturity: Yellow and silver eels handled separately, hence sampling stratified on maturity"]
["SWE","Anguilla anguilla","Baltic Sea","EIFAAC/ICES","fresh water","Y","X","X","X","X","X","X","X","X","X","X","X","X","X","X","X"]
["SWE","Clupea harengus ","Baltic Sea","ICES","22-24 ","Q","X","X","X","X","X","X","X","X","X","X","X","X","X","X","X"]
["SWE","Clupea harengus ","Baltic Sea","ICES","25-29, 32","Q","X","X","X","X","X","X","X","X","X","X","X","X","X","X","X"]
["SWE","Clupea harengus ","Baltic Sea","ICES",30.31,"M","X","X","X","X","X","X","X","X","X","X","X","X","X","X","X","Not applicable",null,null,"Frequency: Commercial sampling monthly during fishing season."]
["SWE","Coregonus albula","Baltic Sea","ICES","22-32","Y",null,"X","X",null,"X","X",null,"X","X",null,"X","X",null,"X","X","Not applicable",null,null,"Frequency: Sampling will be made during the commersiell fishing season which is limited to the vendace's spawning period in September-October."]
["SWE","Gadus morhua ","Baltic Sea","ICES","22-24","Q","X","X","X","X","X","X","X","X","X","X","X","X","X","X","X"]
["SWE","Gadus morhua ","Baltic Sea","ICES","25-32","Q","X","X","X","X","X","X","X","X","X","X","X","X","X","X","X"]
["SWE","Platichthys flesus ","Baltic Sea","ICES","22-32","Q","X","X","X","X","X","X","X","X","X","X","X","X","X","X","X","Not applicable",null,null,"Sampled for biological parameters in surveys only."]
["SWE","Salmo salar","Baltic Sea","ICES","22-31, 32",null,null,null,null,null,null,null,null,null,null,null,null,null,null,null,null,null,null,null,"Only number (not biological data) of individuals are used in stock assessment (WGBAST). This data is collected from fishermen journals, See Table 4A."]
["SWE","Salmo salar","North sea and Eastern Arctic","ICES/NASCO/ Ospar/Helcom","IIIa",null,null,null,null,null,null,null,null,null,null,null,null,null,null,null,null,null,null,null,"Only number of individuals are used in stock assessment (ICES WGNAS). This data is collected from fishermen journals/logbooks, See Table 2A."]
["SWE","Salmo trutta","Baltic Sea","ICES","22-31, 32",null,null,null,null,null,null,null,null,null,null,null,null,null,null,null,null,null,null,null,"Only number of individuals are used for evaluation of status (ICES WGBAST). This data is collected from fishermen journals/logbooks, See Table 2A."]
["SWE","Sprattus sprattus ","Baltic Sea","ICES","22-32","Q","X","X","X","X","X","X","X","X","X","X","X","X","X","X","X"]
["SWE","Anguilla anguilla ","North Sea and Eastern Arctic","EIFAAC/ICES/GFCM ","IIIa","Y","X","X","X","X","X","X","X","X","X","X","X","X",null,null,null,"Not applicable",null,null,"Frequency: Survey yearly. Maturity: Yellow eels and silver eels  are handled separately, hence sampling stratified on maturity."]
["SWE","Clupea harengus ","North Sea and Eastern Arctic","ICES","IIIa","Q","X","X","X","X","X","X","X","X","X","X","X","X","X","X","X"]
["SWE","Gadus morhua ","North Sea and Eastern Arctic","ICES","IIIaN","Q","X","X","X","X","X","X","X","X","X","X","X","X","X","X","X"]
["SWE","Gadus morhua ","North Sea and Eastern Arctic","ICES","IIIaS","Q","X","X","X","X","X","X","X","X","X","X","X","X","X","X","X"]
["SWE","Glyptocephalus cynoglossus ","North Sea and Eastern Arctic","ICES","IIIa","Q","X","X","X","X","X","X","X","X","X","X","X","X","X","X","X"]
["SWE","Melanogrammus aeglefinus ","North Sea and Eastern Arctic","ICES","IV, IIIa","Y","X","X","X","X","X","X","X","X","X","X","X","X","X","X","X",null,null,null,"sampled for biological parameters in surveys only"]
["SWE","Nephrops norvegicus ","North Sea and Eastern Arctic","ICES","Functional unit 3-4","Q","X","X","X","not applicable",null,null,"X","X","X","X","X","X","X","X","X"]
["SWE","Pandalus borealis ","North Sea and Eastern Arctic","ICES","IIIa,IVa east","Q","X","X","X","not applicable",null,null,"X","X","X","X","X","X","X","X","X"]
["SWE","Pleuronectes platessa ","North Sea and Eastern Arctic","ICES","IIIa","Y","X","X","X","X","X","X","X","X","X","X","X","X","X","X","X",null,null,null,"sampled for biological parameters in surveys only"]
["SWE","Sprattus sprattus ","North Sea and Eastern Arctic","ICES","IIIa","Q","X","X","X","X","X","X","X","X","X","X","X","X","X","X","X"]
["SWE","Trisopterus esmarki","North Sea and Eastern Arctic","ICES","IIIa","Y","X","X","X","X","X","X","X","X","X","X","X","X","X","X","X",null,null,null,"sampled for biological parameters in surveys only"]
["SWE","Pollachius virens","North Sea and Eastern Arctic","ICES","IIIa","Y","X","X","X","X","X","X","X","X","X","X","X","X","X","X","X",null,null,null,"sampled for biological parameters in surveys only"]
["SWE","Merlangius merlangus","North Sea and Eastern Arctic","ICES","IIIa","Y","X","X","X","X","X","X","X","X","X","X","X","X","X","X","X",null,null,null,"sampled for biological parameters in surveys only"]

{"sheet":"Table1C Sampling intensity ","index":2,"n_rows":192,"n_cols":19,"rows_kept":192,"cut":false,"hidden":false,"merged":[]}
["Table 1C: Sampling intensity for biological variables"]
[null,null,null,null,null,null,null,null,null,null,null,null,null,null,null,"WP  years","2018-2019"]
[null,null,null,null,null,null,null,null,null,null,null,null,null,null,null,"AR year",2018]
["MS","MS partcipating in sampling","Sampling year","Species","Region","RFMO/RFO/IO","Area / Stock","Variables","Data sources","Planned minimum no of individuals to be measured at the national level","Planned minimum no of individuals to be measured at the regional level","Comments","Achieved number of individuals measured at the national level","% of achievement (100*M/J)","Achieved number of samples ","Sampling protocol","AR  Comments"]
["SWE","SWE",2018,"All","All","All","All","Length,weight","Sea sampling, surveys","NA",null,"A 2-year(2014, 2015) average rounded  is used for all figures presented as planned minimum number. Only commercial species above the threshold (table 1A) and target species in surveys are listed in this table. Not all species collected during sampling at sea  (Comment applicable to the entire table)"]
["SWE","SWE",2018,"Anguilla anguilla","Baltic Sea","EIFAAC/ICES","Freshwater","Age","Commercial samples",375,null,null,324,{"$f":"M6/J6","v":0.86399999999999999},3,"125 eels per lake in three lakes","Undersampled due to problems with a freezer at one fisher. Will be aged during spring 2019"]
["SWE","SWE",2018,"Anguilla anguilla","Baltic Sea","EIFAAC/ICES","Freshwater","Weight","Commercial samples",375,null,null,324,{"$f":"M7/J7","v":0.86399999999999999},3,"125 eels per lake in three lakes","Undersampled due to problems with a freezer at one fisher"]
["SWE","SWE",2018,"Anguilla anguilla","Baltic Sea","EIFAAC/ICES","Freshwater","Length","Commercial samples",375,null,null,324,0.86399999999999999,3,"125 eels per lake in three lakes","Undersampled due to problems with a freezer at one fisher"]
["SWE","SWE",2018,"Anguilla anguilla","Baltic Sea","EIFAAC/ICES","Freshwater","Sex","Commercial samples",375,null,null,324,0.86399999999999999,3,"125 eels per lake in three lakes","Undersampled due to problems with a freezer at one fisher"]
["SWE","SWE",2018,"Anguilla anguilla","Baltic Sea","EIFAAC/ICES","Freshwater","Maturity","Commercial samples",375,null,null,324,0.86399999999999999,3,"125 eels per lake in three lakes","Undersampled due to problems with a freezer at one fisher"]
["SWE","SWE",2018,"Anguilla anguilla","Baltic Sea","EIFAAC/ICES/GFCM ","22-32","Age","Commercial",600,null,null,349,{"$f":"M11/J11","v":0.58166666666666667},35,"Annual goal to sample 200 silver eel selected by length stratification (5-7 ind/cm and year) in SD 23, 25 and 27 respectively.","Undersampled due to restrictions in the fishery in SD 23 ",null," "]
["SWE","SWE",2018,"Anguilla anguilla","Baltic Sea","EIFAAC/ICES/GFCM ","22-32","Weight","Commercial",600,null,null,350,{"$f":"M12/J12","v":0.58333333333333337},35,"Annual goal to sample 200 silver eel selected by length stratification (5-7 ind/cm and year) in SD 23, 25 and 27 respectively.","Undersampled due to restrictions in the fishery in SD 23 "]
["SWE","SWE",2018,"Anguilla anguilla","Baltic Sea","EIFAAC/ICES/GFCM ","22-32","Length","Commercial",1175,null,null,1180,{"$f":"M13/J13","v":1.0042553191489361},35,"Annual goal to sample 200 silver eel selected by length stratification (5-7 ind/cm and year) in SD 23, 25 and 27 respectively.","Undersampled due to restrictions in the fishery in SD 23 "]
["SWE","SWE",2018,"Anguilla anguilla","Baltic Sea","EIFAAC/ICES/GFCM ","22-32","Sex","Commercial",600,null,null,350,{"$f":"M14/J14","v":0.58333333333333337},35,"Annual goal to sample 200 silver eel selected by length stratification (5-7 ind/cm and year) in SD 23, 25 and 27 respectively.","Undersampled due to restrictions in the fishery in SD 23 "]
["SWE","SWE",2018,"Anguilla anguilla","Baltic Sea","EIFAAC/ICES/GFCM ","22-32","Maturity","Commercial","Not applicable",null,"Sexual maturity: Yellow eels and silver eels  are handled separately, hence sampling stratified on maturity.","Not applicable"]
["SWE","SWE",2018,"Anguilla anguilla","Baltic Sea","EIFAAC/ICES/GFCM ","22-32","Age","Survey",200,null,null,239,{"$f":"M16/J16","v":1.1950000000000001},9,"200 yellow eel selected by length stratification (5-7 ind/cm)."]
["SWE","SWE",2018,"Anguilla anguilla","Baltic Sea","EIFAAC/ICES/GFCM ","22-32","Weight","Survey",200,null,null,239,{"$f":"M17/J17","v":1.1950000000000001},9,"200 yellow eel selected by length stratification (5-7 ind/cm)."]
["SWE","SWE",2018,"Anguilla anguilla","Baltic Sea","EIFAAC/ICES/GFCM ","22-32","Length","Survey",650,null,null,782,1.2030769230769232,9,"200 yellow eel selected by length stratification (5-7 ind/cm)."]
["SWE","SWE",2018,"Anguilla anguilla","Baltic Sea","EIFAAC/ICES/GFCM ","22-32","Sex","Survey",200,null,null,239,1.1950000000000001,9,"200 yellow eel selected by length stratification (5-7 ind/cm)."]
["SWE","SWE",2018,"Anguilla anguilla","Baltic Sea","EIFAAC/ICES/GFCM ","22-32","Maturity","Survey","Not applicable",null,"Sexual maturity: Yellow eels and silver eels  are handled separately, hence sampling stratified on maturity.","Not applicable"]
["SWE","SWE",2018,"Clupea harengus ","Baltic Sea","ICES","22-24","Age","Market",1480,null,null,1494,1.0094594594594595,14,"max 150 ind/box : 4 box/SD/quarter","Fishing for herring in the area is conducted mainly in quarter 1 and 4.\nNot possible to determine the age in some cases."]
["SWE","SWE",2018,"Clupea harengus ","Baltic Sea","ICES","22-24","Weight","Market",1480,null,null,1494,1.0094594594594595,14,"max 150 ind/box : 4 box/SD/quarter","Fishing for herring in the area is conducted mainly in quarter 1 and 4."]
["SWE","SWE",2018,"Clupea harengus ","Baltic Sea","ICES","22-24","Length","Market",1480,null,null,1494,1.0094594594594595,14,"max 150 ind/box : 4 box/SD/quarter","Fishing for herring in the area is conducted mainly in quarter 1 and 4."]
["SWE","SWE",2018,"Clupea harengus ","Baltic Sea","ICES","22-24","Sex","Market",1480,null,null,1434,0.9689189189189189,14,"max 150 ind/box : 4 box/SD/quarter","Fishing for herring in the area is conducted mainly in quarter 1 and 4."]
["SWE","SWE",2018,"Clupea harengus ","Baltic Sea","ICES","22-24","Maturity","Market",1480,null,null,1442,0.97432432432432436,14,"max 150 ind/box : 4 box/SD/quarter","Fishing for herring in the area is conducted mainly in quarter 1 and 4."]
["SWE","SWE",2018,"Clupea harengus ","Baltic Sea","ICES","25-29, 32","Age","Market",6125,null,null,4970,0.81142857142857139,69,"max 100 ind/box : 4 box/SD/quarter (SD 25-29,32)","Not all areas fully covered in sampling. No sampling in SD 29N and SD32. Landings not always accessible. Not possible to determine the age in some cases."]
["SWE","SWE",2018,"Clupea harengus ","Baltic Sea","ICES","25-29, 32","Weight","Market",6170,null,null,4970,0.80551053484602919,69,"max 100 ind/box : 4 box/SD/quarter (SD 25-29,32)","Undersampled. Not all areas fully covered in sampling. No sampling in SD 29N and SD32. Landings not always accessible. "]
["SWE","SWE",2018,"Clupea harengus ","Baltic Sea","ICES","25-29, 32","Length","Market",6170,null,null,5006,0.81134521880064825,69,"max 100 ind/box : 4 box/SD/quarter (SD 25-29,32)","Undersampled. Not all areas fully covered in sampling. No sampling in SD 29N and SD32. Landings not always accessible. "]
["SWE","SWE",2018,"Clupea harengus ","Baltic Sea","ICES","25-29, 32","Sex","Market",5910,null,null,4846,0.81996615905245351,69,"max 100 ind/box : 4 box/SD/quarter (SD 25-29,32)","Undersampled. Not all areas fully covered in sampling. No sampling in SD 29N and SD32. Landings not always accessible. "]
["SWE","SWE",2018,"Clupea harengus ","Baltic Sea","ICES","25-29, 32","Maturity","Market",6170,null,null,4970,0.80551053484602919,69,"max 100 ind/box : 4 box/SD/quarter (SD 25-29,32)","Undersampled. Not all areas fully covered in sampling. No sampling in SD 29N and SD32. Landings not always accessible. "]
["SWE","SWE",2018,"Clupea harengus ","Baltic Sea","ICES","25-29, 32","Age","Survey",2430,null,null,1998,0.82222222222222219,46,"5 ind/halfcm/haul","Undersampled, see general text \nNo sampling in SD29N and 32. Not possible to determine the age in some cases."]
["SWE","SWE",2018,"Clupea harengus ","Baltic Sea","ICES","25-29, 32","Weight","Survey",2430,null,null,2010,0.8271604938271605,46,"5 ind/halfcm/haul","Undersampled, see general text No sampling in SD29N and 32. "]
["SWE","SWE",2018,"Clupea harengus ","Baltic Sea","ICES","25-29, 32","Length","Survey",10570,null,null,9673,0.91513718070009464,46,"subsample or total catch/haul"]
["SWE","SWE",2018,"Clupea harengus ","Baltic Sea","ICES","25-29, 32","Sex","Survey",2120,null,null,1699,0.80141509433962266,46,"5 ind/halfcm/haul","Undersampled, see general text. No sampling in SD29N and 32. "]
["SWE","SWE",2018,"Clupea harengus ","Baltic Sea","ICES","25-29, 32","Maturity","Survey",2435,null,null,2010,0.82546201232032856,46,"5 ind/halfcm/haul","Undersampled, see general text. No sampling in SD29N and 32. "]
["SWE","SWE",2018,"Clupea harengus ","Baltic Sea","ICES",30.31,"Age","Commercial",890,null,null,1186,1.3325842696629213,11,"20 ind/halfcm/quarter, 2 and 3rd quarter"]
["SWE","SWE",2018,"Clupea harengus ","Baltic Sea","ICES",30.31,"Weight","Commercial",890,null,null,1186,1.3325842696629213,11,"20 ind/halfcm/quarter, 2 and 3rd quarter"]
["SWE","SWE",2018,"Clupea harengus ","Baltic Sea","ICES",30.31,"Length","Commercial",890,null,null,1186,1.3325842696629213,11,"20 ind/halfcm/quarter, 2 and 3rd quarter"]
["SWE","SWE",2018,"Clupea harengus ","Baltic Sea","ICES",30.31,"Sex","Commercial",850,null,null,1186,1.3952941176470588,11,"20 ind/halfcm/quarter, 2 and 3rd quarter"]
["SWE","SWE",2018,"Clupea harengus ","Baltic Sea","ICES",30.31,"Maturity","Commercial",890,null,null,1186,1.3325842696629213,11,"20 ind/halfcm/quarter, 2 and 3rd quarter"]
["SWE","SWE",2018,"Clupea harengus ","Baltic Sea","ICES",30.31,"Age","Survey",890,1110,"\"Planned No ...at regional level\" presented here includes the part of the biological sampling that Sweden will be age reading according to the bilateral agreement",1636,{"$f":"M41/K41","v":1.4738738738738739},14,"10 ind/halfcm/statistical rectangle","Total number of individual herring samples was 3034 from which Finland did 1398 age readings and Sweden 1636 age-readings. The age-readings are divided randomly between the nations so that the individual samples from different hauls are held together. The number of individual samples per haul may differ quite a lot and therefore the division of otoliths is not always even. Achieved number of total samples in the survey is 27 but Sweden  samples from 14 hauls. "]
["SWE","SWE",2018,"Clupea harengus ","Baltic Sea","ICES",30.31,"Weight","Survey",890,1110,"\"Planned No ...at regional level\" presented here includes the part of the biological sampling that Sweden will be age reading according to the bilateral agreement",1636,{"$f":"M42/K42","v":1.4738738738738739},14,"10 ind/halfcm/statistical rectangle","Total number of individual herring samples was 3034 from which Finland did 1398 age readings and Sweden 1636 age-readings. The age-readings are divided randomly between the nations so that the individual samples from different hauls are held together. The number of individual samples per haul may differ quite a lot and therefore the division of otoliths is not always even. Achieved number of total samples in the survey is 27 but Sweden  samples from 14 hauls. "]
["SWE","SWE",2018,"Clupea harengus ","Baltic Sea","ICES",30.31,"Length","Survey",890,6200,"\"Planned No ...at regional level\" presented here includes the part of the biological sampling that Sweden will be age reading according to the bilateral agreement",8668,1.3980645161290322,14,"subsample or total catch/haul","The total sampling effort onboard the Research Vessel is not divided by nation. Therefore the achievement is announced as the total. See also Finnish AR. "]
["SWE","SWE",2018,"Clupea harengus ","Baltic Sea","ICES",30.31,"Sex","Survey",850,1110,"\"Planned No ...at regional level\" presented here includes the part of the biological sampling that Sweden will be age reading according to the bilateral agreement",1636,1.4738738738738739,14,"10 ind/halfcm/statistical rectangle","Total number of individual herring samples was 3034 from which Finland did 1398 age readings and Sweden 1636 age-readings. The age-readings are divided randomly between the nations so that the individual samples from different hauls are held together. The number of individual samples per haul may differ quite a lot and therefore the division of otoliths is not always even. Achieved number of total samples in the survey is 27 but Sweden  samples from 14 hauls. "]
["SWE","SWE",2018,"Clupea harengus ","Baltic Sea","ICES",30.31,"Maturity","Survey",890,1110,"\"Planned No ...at regional level\" presented here includes the part of the biological sampling that Sweden will be age reading according to the bilateral agreement",1636,1.4738738738738739,14,"10 ind/halfcm/statistical rectangle","Total number of individual herring samples was 3034 from which Finland did 1398 age readings and Sweden 1636 age-readings. The age-readings are divided randomly between the nations so that the individual samples from different hauls are held together. The number of individual samples per haul may differ quite a lot and therefore the division of otoliths is not always even. Achieved number of total samples in the survey is 27 but Sweden  samples from 14 hauls. "]
["SWE","SWE",2018,"Coregonus albula","Baltic Sea","ICES","22-32","Age","Commercial",1050,null,null,693,{"$f":"M46/J46","v":0.66},15,"Fish <110mm 10 ind/halfcm; 110-145 mm 30 ind/halfcm; >150mm all ind/halfcm","Rest of the age samples were sampled from the fishery independent survey. The WP needs to be updated for the next plan to include only half of the age samples from commercial sampling and other half from survey."]
["SWE","SWE",2018,"Coregonus albula","Baltic Sea","ICES","22-32","Weight","Commercial",1500,null,null,1050,{"$f":"M47/J47","v":0.7},15,"Fish <110mm 10 ind/halfcm; 110-145 mm 30 ind/halfcm; >150mm all ind/halfcm","Numbers in WP should be 1050, to be corrected. Achievement 100 %"]
["SWE","SWE",2018,"Coregonus albula","Baltic Sea","ICES","22-32","Length","Commercial",1500,null,null,1050,{"$f":"M48/J48","v":0.7},15,"Fish <110mm 10 ind/halfcm; 110-145 mm 30 ind/halfcm; >150mm all ind/halfcm","Numbers in WP should be 1050. to be corrected. Achievement 100 %"]
["SWE","SWE",2018,"Coregonus albula","Baltic Sea","ICES","22-32","Sex","Commercial",1050,null,null,1050,{"$f":"M49/J49","v":1},15,"Fish <110mm 10 ind/halfcm; 110-145 mm 30 ind/halfcm; >150mm all ind/halfcm"]
["SWE","SWE",2018,"Coregonus albula","Baltic Sea","ICES","22-32","Maturity","Commercial",1050,null,null,1050,1,15,"Fish <110mm 10 ind/halfcm; 110-145 mm 30 ind/halfcm; >150mm all ind/halfcm"]
["SWE","SWE",2018,"Gadus morhua","Baltic Sea","ICES","22-24","Age","Market ",2050,null,null,1299,0.63365853658536586,33,"For passive gears: five trips/quarter (observer or selfsampling) For Active gears: 2018 SD 24 was closed for fishing vessels with active gear and was opend for a short period and ad-hoc sampling was performed. ","Sampling design was changed between 2016 and 2017. The planned number of sampled fish reflects the old samlingdesign, while the achieved number reflect the outcome of the new sampling design (as described in textbox 4A)"]
["SWE","SWE",2018,"Gadus morhua","Baltic Sea","ICES","22-24","Weight","Market ",2050,null,null,2177,1.0619512195121952,33,"For passive gears: five trips/quarter (observer or selfsampling) For Active gears: 2018, SD 24 was closed for fishing vessels with active gears, it was opend for a short period and ad-hoc sampling was performed. ","Sampling design was changed between 2016 and 2017. The planned number of sampled fish reflects the old samlingdesign, while the achieved number reflect the outcome of the new sampling design (as described in textbox 4A)"]
["SWE","SWE",2018,"Gadus morhua","Baltic Sea","ICES","22-24","Length","Market ",2050,null,null,3418,1.6673170731707316,33,"For passive gears: five trips/quarter (observer or selfsampling) For Active gears: 2017 was SD 24 closed for fishing vessels with active gears, it was opend for a short period and ad-hoc sampling was performed. ","Sampling design was changed between 2016 and 2017. The planned number of sampled fish reflects the old samlingdesign, while the achieved number reflect the outcome of the new sampling design (as described in textbox 4A) The oversampling has no significant cost implications"]
["SWE","SWE",2018,"Gadus morhua","Baltic Sea","ICES","22-24","Age","Sea sampling",620,null,null,1665,2.685483870967742,34,"For passive gears: five trips/quarter (observer or selfsampling) ","Market samples are included in sea sampling in subdivision 23-24 pasive gears.  "]
["SWE","SWE",2018,"Gadus morhua","Baltic Sea","ICES","22-24","Weight","Sea sampling",620,null,null,2238,3.6096774193548389,34,"For passive gears: five trips/quarter (observer or selfsampling) ","Individual weights, according to manual. Differs from size catagory and active/passive gears"]
["SWE","SWE",2018,"Gadus morhua","Baltic Sea","ICES","22-24","Length","Sea sampling",620,null,null,7424,11.974193548387097,34,"For passive gears: five trips/quarter (observer or selfsampling) ","All individuals in a fish box for each size landed are messured"]
["SWE","SWE",2018,"Gadus morhua","Baltic Sea","ICES","22-24","Age","Survey",300,null,"info on sampling 1 ind / haul",327,1.0900000000000001,10,"8 st/cm/SD 23"]
["SWE","SWE",2018,"Gadus morhua","Baltic Sea","ICES","22-24","Weight","Survey",300,null,null,327,1.0900000000000001,10,"8 st/cm/SD 23"]
["SWE","SWE",2018,"Gadus morhua","Baltic Sea","ICES","22-24","Length","Survey",715,null,null,897,1.2545454545454546,10,"total catch"]
["SWE","SWE",2018,"Gadus morhua","Baltic Sea","ICES","22-24","Sex","Survey",300,null,null,319,1.0633333333333332,10,"8 st/cm/SD 23"]
["SWE","SWE",2018,"Gadus morhua","Baltic Sea","ICES","22-24","Maturity","Survey",300,null,null,326,1.0866666666666667,10,"8 st/cm/SD 23"]
["SWE","SWE",2018,"Gadus morhua","Baltic Sea","ICES","25-32","Age","Market ",1945,null,null,2564,1.3182519280205656,56,"For passive gears: five trips/quarter (observer or selfsampling) For Active gears: eight weeks/ quarter. On each week five active trawlers are picked randomly and hopfully sampled. ","Market samples are included in sea sampling for passive gears.  Otholites in SD 25-32 are collected but not aged. "]
["SWE","SWE",2018,"Gadus morhua","Baltic Sea","ICES","25-32","Weight","Market ",2250,null,null,4515,2.0066666666666668,56,"For passive gears: five trips/quarter (observer or selfsampling) For Active gears: eight weeks/ quarter. On each week five active trawlers are picked randomly and hopfully sampled. ","Sampling design was changed between 2016 and 2017. The planned number of sampled fish reflects the old samlingdesign, while the achieved number reflect the outcome of the new sampling design (as described in textbox 4A) The oversampling has no significant cost implications"]
["SWE","SWE",2018,"Gadus morhua","Baltic Sea","ICES","25-32","Length","Market ",2250,null,null,12585,5.5933333333333337,56,"For passive gears: five trips/quarter (observer or selfsampling) For Active gears: eight weeks/ quarter. On each week five active trawlers are picked randomly and hopfully sampled. ","Sampling design was changed between 2016 and 2017. The planned number of sampled fish reflects the old samlingdesign, while the achieved number reflect the outcome of the new sampling design (as described in textbox 4A) The oversampling has no significant cost implications"]
["SWE","SWE",2018,"Gadus morhua","Baltic Sea","ICES","25-32","Age","Sea sampling",890,null,null,2301,2.5853932584269663,60,"For passive gears: five trips/quarter (observer or selfsampling). For Active gears: Five trips/ quarter = 20 trips in a year","Sampling design was changed between 2016 and 2017. The planned number of sampled fish reflects the old samlingdesign, while the achieved number reflect the outcome of the new sampling design (as described in textbox 4A) The oversampling has no significant cost implications"]
["SWE","SWE",2018,"Gadus morhua","Baltic Sea","ICES","25-32","Weight","Sea sampling",1010,null,null,3499,3.4643564356435643,60,"For passive gears: five trips/quarter (observer or selfsampling). For Active gears: Five trips/ quarter = 20 trips in a year","Sampling design was changed between 2016 and 2017. The planned number of sampled fish reflects the old samlingdesign, while the achieved number reflect the outcome of the new sampling design (as described in textbox 4A) The oversampling has no significant cost implications"]
["SWE","SWE",2018,"Gadus morhua","Baltic Sea","ICES","25-32","Length","Sea sampling",1010,null,null,16868,16.7009900990099,60,"For passive gears: five trips/quarter (observer or selfsampling). For Active gears: Five trips/ quarter = 20 trips in a year","Sampling design was changed between 2016 and 2017. The planned number of sampled fish reflects the old samlingdesign, while the achieved number reflect the outcome of the new sampling design (as described in textbox 4A) The oversampling has no significant cost implications"]
["SWE","SWE",2018,"Gadus morhua","Baltic Sea","ICES","25-32","Age","Survey",1860,null,null,1217,0.6543010752688172,108,"1st/cm/haul (on BITS adjustments are made depending on nr of hauls per SD)","Undersampled, see general text "]
["SWE","SWE",2018,"Gadus morhua","Baltic Sea","ICES","25-32","Weight","Survey",1860,null,null,1220,0.65591397849462363,108,"1st/cm/haul (on BITS adjustments are made depending on nr of hauls per SD)","Undersampled, see general text "]
["SWE","SWE",2018,"Gadus morhua","Baltic Sea","ICES","25-32","Length","Survey",13680,null,null,9421,0.68866959064327482,108,"subsample or total catch/haul","Undersampled, see general text "]
["SWE","SWE",2018,"Gadus morhua","Baltic Sea","ICES","25-32","Sex","Survey",1790,null,null,1164,0.65027932960893853,108,"1st/cm/haul (on BITS adjustments are made depending on nr of hauls per SD)","Undersampled, see general text "]
["SWE","SWE",2018,"Gadus morhua","Baltic Sea","ICES","25-32","Maturity","Survey",1790,null,null,1164,0.65027932960893853,108,"1st/cm/haul (on BITS adjustments are made depending on nr of hauls per SD)","Undersampled, see general text "]
["SWE","SWE",2018,"Platichthys flesus ","Baltic Sea","ICES","22-32","Age","Sea sampling ",330,null,null,"NA",null,"NA",null,"No sampling due <10 % of total landings "]
["SWE","SWE",2018,"Platichthys flesus ","Baltic Sea","ICES","22-32","Weight","Sea sampling ",495,null,null,"NA",null,"NA",null,"No sampling due <10 % of total landings "]
["SWE","SWE",2018,"Platichthys flesus ","Baltic Sea","ICES","22-32","Length","Sea sampling ",495,null,null,10034,20.270707070707072,null,"For passive gears: five trips/quarter (observer or selfsampling). For Active gears: Five trips/ quarter = 20 trips in a year","Sampling design was changed between 2016 and 2017. The planned number of sampled fish reflects the old samlingdesign, while the achieved number reflect the outcome of the new sampling design (as described in textbox 4A) The oversampling has no significant cost implications"]
["SWE","SWE",2018,"Platichthys flesus ","Baltic Sea","ICES","22-32","Sex","Sea sampling ",150,null,null,"NA",null,"NA",null,"No sampling due <10 % of total landings "]
["SWE","SWE",2018,"Platichthys flesus ","Baltic Sea","ICES","22-32","Maturity","Sea sampling ",200,null,null,"NA",null,"NA",null,"No sampling due <10 % of total landings "]
["SWE","SWE",2018,"Platichthys flesus ","Baltic Sea","ICES","22-32","Age","survey",1860,null,null,1912,1.0279569892473119,56,"1 ind/cm/haul"]
["SWE","SWE",2018,"Platichthys flesus ","Baltic Sea","ICES","22-32","Weight","survey",1860,null,null,1912,1.0279569892473119,56,"1 ind/cm/haul"]
["SWE","SWE",2018,"Platichthys flesus ","Baltic Sea","ICES","22-32","Length","survey",6650,null,null,6311,0.94902255639097743,56,"subsample or total catch/haul"]
["SWE","SWE",2018,"Platichthys flesus ","Baltic Sea","ICES","22-32","Sex","survey",1860,null,null,1912,1.0279569892473119,56,"1 ind/cm/haul"]
["SWE","SWE",2018,"Platichthys flesus ","Baltic Sea","ICES","22-32","Maturity","survey",1860,null,null,1912,1.0279569892473119,56,"1 ind/cm/haul"]
["SWE","SWE",2018,"Salmo salar","Baltic Sea","ICES","22-31, 32","NA","NA",0,null,"Only number of individuals are used in stock assessment (ICES WGBAST). This data is collected from fishermen journals/logbooks, See Table 2A.","NA",null,"NA","NA","Only number of individuals are used in stock assessment (ICES WGBAST). This data is collected from fishermen journals/logbooks, See Table 2A."]
["SWE","SWE",2018,"Salmo salar","North sea and Eastern Arctic","ICES/NASCO/Ospar/Helcon","IIIa","NA","NA",0,null,"Only number of individuals are used in stock assessment (ICES WGNAS). This data is collected from fishermen journals/logbooks, See Table 2A.","NA",null,"NA","NA","Only number of individuals are used in stock assessment (ICES WGNAS). This data is collected from fishermen journals/logbooks, See Table 2A."]
["SWE","SWE",2018,"Salmo trutta","Baltic Sea","ICES","22-31, 32","NA","NA",0,null,"Only number of individuals are used for evaluation of status (ICES WGBAST). This data is collected from fishermen journals/logbooks, See Table 2A.","NA",null,"NA","NA","Only number of individuals are used for evaluation of status (ICES WGBAST). This data is collected from fishermen journals/logbooks, See Table 2A."]
["SWE","SWE",2018,"Sprattus sprattus","Baltic Sea","ICES","22-32","Age","Market",4840,null,null,1181,0.2440082644628099,83,"max 150 ind/box : 4 box/SD/quarter","Not all areas fully covered in sampling. No sampling in SD 29N and SD32. Landings not always accessible. Not possible to determine the age in some cases."]
["SWE","SWE",2018,"Sprattus sprattus","Baltic Sea","ICES","22-32","Weight","Market",4870,null,null,1189,0.24414784394250513,83,"max 150 ind/box : 4 box/SD/quarter","Not all areas fully covered in sampling. No sampling in SD 29N and SD32. Landings not always accessible. "]
["SWE","SWE",2018,"Sprattus sprattus","Baltic Sea","ICES","22-32","Length","Market",4870,null,null,1189,0.24414784394250513,83,"max 150 ind/box : 4 box/SD/quarter","Not all areas fully covered in sampling. No sampling in SD 29N and SD32. Landings not always accessible. "]
["SWE","SWE",2018,"Sprattus sprattus","Baltic Sea","ICES","22-32","Sex","Market",4820,null,null,1186,{"$f":"M89/J89","v":0.24605809128630704},83,"max 150 ind/box : 4 box/SD/quarter","Not all areas fully covered in sampling. No sampling in SD 29N and SD32. Landings not always accessible. "]
["SWE","SWE",2018,"Sprattus sprattus","Baltic Sea","ICES","22-32","Maturity","Market",4870,null,null,1189,0.24414784394250513,83,"max 150 ind/box : 4 box/SD/quarter","Not all areas fully covered in sampling. No sampling in SD 29N and SD32. Landings not always accessible. "]
["SWE","SWE",2018,"Sprattus sprattus","Baltic Sea","ICES","22-32","Age","Survey",1320,null,null,1470,1.1136363636363635,46,"5 ind/halfcm/haul"]
["SWE","SWE",2018,"Sprattus sprattus","Baltic Sea","ICES","22-32","Weight","Survey",1320,null,null,1473,1.115909090909091,46,"5 ind/halfcm/haul"]
["SWE","SWE",2018,"Sprattus sprattus","Baltic Sea","ICES","22-32","Length","Survey",9360,null,null,8199,0.87596153846153846,46,"subsample or total catch/haul","Undersampled, see general text\n"]
["SWE","SWE",2018,"Sprattus sprattus","Baltic Sea","ICES","22-32","Sex","Survey",1120,null,null,1376,1.2285714285714286,46,"5 ind/halfcm/haul"]
["SWE","SWE",2018,"Sprattus sprattus","Baltic Sea","ICES","22-32","Maturity","Survey",0,null,null,"NA",null,0]
["SWE","SWE",2018,"Anguilla anguilla ","North sea and Eastern Arctic","EIFAAC/ICES/GFCM ","IIIa","Age","Survey",600,null,null,{"$f":"459+210","v":669},1.115,15,"survey goal to sample 600 yellow eel in three different areas (200 per area) selected by length stratification (5-7 ind/cm). One area in SD 21 and two in SD 20.","210 yellow eels are scheduled to be aged after the summer of 2019. (Besides the yellow eel, 15 silver eels were also sampled according to change in sampling scheme. When WP is updated, the addition of biological sampling of both stages of the species will be included)"]
["SWE","SWE",2018,"Anguilla anguilla ","North sea and Eastern Arctic","EIFAAC/ICES/GFCM ","IIIa","Weight","Survey",600,null,null,671,1.1183333333333334,15,"survey goal to sample 600 yellow eel in three different areas (200 per area) selected by length stratification (5-7 ind/cm). One area in SD 21 and two in SD 20.","Besides the yellow eel, 15 silver eels were also sampled according to change in sampling scheme. When WP is updated, the addition of biological sampling of both stages of the species will be included. "]
["SWE","SWE",2018,"Anguilla anguilla ","North sea and Eastern Arctic","EIFAAC/ICES/GFCM ","IIIa","Length","Survey",2270,null,null,2225,0.98017621145374445,15,"All individuals collected are measured for length.","Besides these  yellow eels, 15 silver eels were also sampled according to change in sampling scheme. When WP is updated, the addition of biological sampling of both stages of the species will be included. "]
["SWE","SWE",2018,"Anguilla anguilla ","North sea and Eastern Arctic","EIFAAC/ICES/GFCM ","IIIa","Sex","Survey",600,null,null,671,1.1183333333333334,15,"Set survey goal to sample 600 yellow eel in three different areas (200 per area) selected by length stratification (5-7 ind/cm). One area in SD 21 and two in SD 20.","Besides the yellow eel, 15 silver eels were also sampled according to change in sampling scheme. When WP is updated, the addition of biological sampling of both stages of the species will be included. "]
["SWE","SWE",2018,"Anguilla anguilla ","North sea and Eastern Arctic","EIFAAC/ICES/GFCM ","IIIa","Maturity","Survey","Not applicable",null,"Sexual maturity: Yellow eels and silver eels  are handled separately, hence sampling stratified on maturity."]
["SWE","SWE",2018,"Clupea harengus ","North Sea and Eastern Arctic","ICES","IIIa","Age","Market",4515,null,null,2965,0.6566998892580288,46,"max 150 ind/box : 4 box/SD/quarter","Undersampled due to to no/ low landings in some areas and quarters "]
["SWE","SWE",2018,"Clupea harengus ","North Sea and Eastern Arctic","ICES","IIIa","Weight","Market",4520,null,null,2971,0.65730088495575223,46,"max 150 ind/box : 4 box/SD/quarter","Undersampled due to to no/ low landings in some areas and quarters "]
["SWE","SWE",2018,"Clupea harengus ","North Sea and Eastern Arctic","ICES","IIIa","Length","Market",4520,null,null,2971,0.65730088495575223,46,"max 150 ind/box : 4 box/SD/quarter","Undersampled due to to no/ low landings in some areas and quarters "]
["SWE","SWE",2018,"Clupea harengus ","North Sea and Eastern Arctic","ICES","IIIa","Sex","Market",4345,null,null,2953,0.67963176064441888,46,"max 150 ind/box : 4 box/SD/quarter","Undersampled due to to no/ low landings in some areas and quarters "]
["SWE","SWE",2018,"Clupea harengus ","North Sea and Eastern Arctic","ICES","IIIa","Maturity","Market",4400,null,null,2970,0.67500000000000004,46,"max 150 ind/box : 4 box/SD/quarter","Undersampled due to to no/ low landings in some areas and quarters "]
["SWE","SWE",2018,"Clupea harengus ","North Sea and Eastern Arctic","ICES","IIIa","Age","Survey",3090,null,null,2372,0.76763754045307442,91,"2 ind/halfcm/haul","Undersampled, see general text"]
["SWE","SWE",2018,"Clupea harengus ","North Sea and Eastern Arctic","ICES","IIIa","Weight","Survey",3090,null,null,2380,0.77022653721682843,91,"2 ind/halfcm/haul","Undersampled, see general text"]
["SWE","SWE",2018,"Clupea harengus ","North Sea and Eastern Arctic","ICES","IIIa","Length","Survey",14240,null,null,10923,0.76706460674157306,91,"subsample or total catch/haul","Undersampled, see general text"]
["SWE","SWE",2018,"Clupea harengus ","North Sea and Eastern Arctic","ICES","IIIa","Sex","Survey",2595,null,null,1860,0.7167630057803468,91,"2 ind/halfcm/haul","Undersampled, see general text"]
["SWE","SWE",2018,"Clupea harengus ","North Sea and Eastern Arctic","ICES","IIIa","Maturity","Survey",3090,null,null,2380,0.77022653721682843,91,"2 ind/halfcm/haul","Undersampled, see general text"]
["SWE","SWE",2018,"Gadus morhua","North Sea and Eastern Arctic","ICES","IIIaN","Age","Market ",1985,null,null,1778,0.89571788413098241,64,"max 100 ind/EU scale size/quarter"]
["SWE","SWE",2018,"Gadus morhua","North Sea and Eastern Arctic","ICES","IIIaN","Weight","Market ",1985,null,null,1780,0.89672544080604533,64,"max 100 ind/EU scale size/quarter"]
["SWE","SWE",2018,"Gadus morhua","North Sea and Eastern Arctic","ICES","IIIaN","Length","Market ",1985,null,null,1780,0.89672544080604533,64,"generated from specimen"]
["SWE","SWE",2018,"Gadus morhua","North Sea and Eastern Arctic","ICES","IIIaN","Age","Sea sampling",730,null,null,413,0.5657534246575342,40,"3st/cm/trip","Undersampled due to low fishing activity and limited number of length classes in catch"]
["SWE","SWE",2018,"Gadus morhua","North Sea and Eastern Arctic","ICES","IIIaN","Weight","Sea sampling",730,null,null,413,0.5657534246575342,40,"3st/cm/trip","Undersampled due to low fishing activity and limited number of length classes in catch"]
["SWE","SWE",2018,"Gadus morhua","North Sea and Eastern Arctic","ICES","IIIaN","Length","Sea sampling",730,null,null,3984,5.4575342465753423,40,"total amount in subsample"]
["SWE","SWE",2018,"Gadus morhua","North Sea and Eastern Arctic","ICES","IIIaN","Age","Survey",870,null,null,416,0.47816091954022988,53,"1 ind/cm/haul","Undersampled, see general text"]
["SWE","SWE",2018,"Gadus morhua","North Sea and Eastern Arctic","ICES","IIIaN","Weight","Survey",870,null,null,416,0.47816091954022988,53,"1 ind/cm/haul","Undersampled, see general text"]
["SWE","SWE",2018,"Gadus morhua","North Sea and Eastern Arctic","ICES","IIIaN","Length","Survey",2520,null,null,1052,0.41746031746031748,53,"subsample or total catch/haul","Undersampled, see general text"]
["SWE","SWE",2018,"Gadus morhua","North Sea and Eastern Arctic","ICES","IIIaN","Sex","Survey",840,null,null,403,0.47976190476190478,53,"1 ind/cm/haul","Undersampled, see general text"]
["SWE","SWE",2018,"Gadus morhua","North Sea and Eastern Arctic","ICES","IIIaN","Maturity","Survey",840,null,null,403,0.47976190476190478,53,"1 ind/cm/haul","Undersampled, see general text"]
["SWE","SWE",2018,"Gadus morhua","North Sea and Eastern Arctic","ICES","IIIaS","Age","Market ",1140,null,null,642,0.56315789473684208,34,"max 100 ind/EU scale size/quarter","Undersampled due to  low landings "]
["SWE","SWE",2018,"Gadus morhua","North Sea and Eastern Arctic","ICES","IIIaS","Weight","Market ",1140,null,null,642,0.56315789473684208,34,"max 100 ind/EU scale size/quarter","Undersampled due to  low landings "]
["SWE","SWE",2018,"Gadus morhua","North Sea and Eastern Arctic","ICES","IIIaS","Length","Market ",1140,null,null,642,0.56315789473684208,34,"max 100 ind/EU scale size/quarter","Undersampled due to  low landings "]
["SWE","SWE",2018,"Gadus morhua","North Sea and Eastern Arctic","ICES","IIIaS","Age","Sea sampling",550,null,null,218,0.39636363636363636,23,"3st/cm/trip","Undersampled due to low fishing activity and limited number of length classes in catch"]
["SWE","SWE",2018,"Gadus morhua","North Sea and Eastern Arctic","ICES","IIIaS","Weight","Sea sampling",550,null,null,218,0.39636363636363636,23,"3st/cm/trip","Undersampled due to low fishing activity and limited number of length classes in catch"]
["SWE","SWE",2018,"Gadus morhua","North Sea and Eastern Arctic","ICES","IIIaS","Length","Sea sampling",550,null,null,311,0.56545454545454543,23,"3st/cm/trip","Undersampled due to low fishing activity and limited number of length classes in catch"]
["SWE","SWE",2018,"Gadus morhua","North Sea and Eastern Arctic","ICES","IIIaS","Age","Survey",570,null,null,134,0.23508771929824562,38,"1 ind/cm/haul","Undersampled, see general text"]
["SWE","SWE",2018,"Gadus morhua","North Sea and Eastern Arctic","ICES","IIIaS","Weight","Survey",570,null,null,134,0.23508771929824562,38,"1 ind/cm/haul","Undersampled, see general text"]
["SWE","SWE",2018,"Gadus morhua","North Sea and Eastern Arctic","ICES","IIIaS","Length","Survey",955,null,null,166,0.17382198952879582,38,"subsample or total catch/haul","Undersampled, see general text"]
["SWE","SWE",2018,"Gadus morhua","North Sea and Eastern Arctic","ICES","IIIaS","Sex","Survey",570,null,null,128,0.22456140350877193,38,"1 ind/cm/haul","Undersampled, see general text"]
["SWE","SWE",2018,"Gadus morhua","North Sea and Eastern Arctic","ICES","IIIaS","Maturity","Survey",570,null,null,128,0.22456140350877193,38,"1 ind/cm/haul","Undersampled, see general text"]
["SWE","SWE",2018,"Glyptocephalus cynoglossus ","North Sea and Eastern Arctic","ICES","IIIa","Age","Market + Seasampling",1090,null,null,1031,0.94587155963302749,75,"Seasampling: 3 ind/cm/trip; Market:  min 50 individuals unsorted catch / trip "]
["SWE","SWE",2018,"Glyptocephalus cynoglossus ","North Sea and Eastern Arctic","ICES","IIIa","Weight","Market + Seasampling",1090,null,null,1032,0.94678899082568813,75,"Seasampling: 3 ind/cm/trip; Market:  min 50 individuals unsorted catch / trip "]
["SWE","SWE",2018,"Glyptocephalus cynoglossus ","North Sea and Eastern Arctic","ICES","IIIa","Length","Market + Seasampling",1090,null,null,3100,2.8440366972477062,75,"Seasampling: 3 ind/cm/trip; Market:  min 50 individuals unsorted catch / trip "]
["SWE","SWE",2018,"Glyptocephalus cynoglossus ","North Sea and Eastern Arctic","ICES","IIIa","Sex","Market + Seasampling",645,null,null,748,1.1596899224806201,75,"Seasampling: 3 ind/cm/trip; Market:  min 50 individuals unsorted catch / trip "]
["SWE","SWE",2018,"Glyptocephalus cynoglossus ","North Sea and Eastern Arctic","ICES","IIIa","Maturity","Market + Seasampling",645,null,null,748,1.1596899224806201,75,"Seasampling: 3 ind/cm/trip; Market:  min 50 individuals unsorted catch / trip "]
["SWE","SWE",2018,"Glyptocephalus cynoglossus ","North Sea and Eastern Arctic","ICES","IIIa","Age","Survey",305,null,null,85,0.27868852459016391,91,"total catch","Undersampled, see general text"]
["SWE","SWE",2018,"Glyptocephalus cynoglossus ","North Sea and Eastern Arctic","ICES","IIIa","Weight","Survey",305,null,null,86,0.28196721311475409,91,"total catch","Undersampled, see general text"]
["SWE","SWE",2018,"Glyptocephalus cynoglossus ","North Sea and Eastern Arctic","ICES","IIIa","Length","Survey",305,null,null,92,0.30163934426229511,91,"total catch","Undersampled, see general text"]
["SWE","SWE",2018,"Glyptocephalus cynoglossus ","North Sea and Eastern Arctic","ICES","IIIa","Sex","Survey",290,null,null,77,0.26551724137931032,91,"total catch","Undersampled, see general text"]
["SWE","SWE",2018,"Glyptocephalus cynoglossus ","North Sea and Eastern Arctic","ICES","IIIa","Maturity","Survey",290,null,null,77,0.26551724137931032,91,"total catch","Undersampled, see general text"]
["SWE","SWE",2018,"Melanogrammus aeglefinus ","North Sea and Eastern Arctic","ICES","IV, IIIa","Age","Survey",485,null,null,237,0.48865979381443297,91,"1 ind/cm/haul","Undersampled, see general text"]
["SWE","SWE",2018,"Melanogrammus aeglefinus ","North Sea and Eastern Arctic","ICES","IV, IIIa","Weight","Survey",485,null,null,237,0.48865979381443297,91,"1 ind/cm/haul","Undersampled, see general text"]
["SWE","SWE",2018,"Melanogrammus aeglefinus ","North Sea and Eastern Arctic","ICES","IV, IIIa","Length","Survey",1965,null,null,561,0.28549618320610687,91,"subsample or total catch/haul","Undersampled, see general text"]
["SWE","SWE",2018,"Melanogrammus aeglefinus ","North Sea and Eastern Arctic","ICES","IV, IIIa","Sex","Survey",415,null,null,188,0.45301204819277108,91,"1 ind/cm/haul","Undersampled, see general text"]
["SWE","SWE",2018,"Melanogrammus aeglefinus ","North Sea and Eastern Arctic","ICES","IV, IIIa","Maturity","Survey",415,null,null,188,0.45301204819277108,91,"1 ind/cm/haul","Undersampled, see general text"]
["SWE","SWE",2018,"Nephrops norvegicus ","North Sea and Eastern Arctic","ICES","Functional unit 3","Weight","Sea sampling","NA",null,"standard weight-length key is used in both Sweden Denmark and Norway. Weights are not taken during sea sampling.","NA",null,"NA"]
["SWE","SWE",2018,"Nephrops norvegicus ","North Sea and Eastern Arctic","ICES","Functional unit 3","Length","Sea sampling",8855,null,null,9615,1.0858272162619989,36,"Pots; 3 trips/quarter sampled. Trawl with grid; 3 trips/quarter sampled. Trawls without grid;catch-dependent, if there is a landing of Nephrops, then there is a sample."]
["SWE","SWE",2018,"Nephrops norvegicus ","North Sea and Eastern Arctic","ICES","Functional unit 3","Sex","Sea sampling",8855,null,null,9615,1.0858272162619989,36,"Pots; 3 trips/quarter sampled. Trawl with grid; 3 trips/quarter sampled. Trawls without grid;catch-dependent, if there is a landing of Nephrops, then there is a sample."]
["SWE","SWE",2018,"Nephrops norvegicus ","North Sea and Eastern Arctic","ICES","Functional unit 3","Maturity","Sea sampling",8855,null,null,9615,1.0858272162619989,36,"Pots; 3 trips/quarter sampled. Trawl with grid; 3 trips/quarter sampled. Trawls without grid;catch-dependent, if there is a landing of Nephrops, then there is a sample."]
["SWE","SWE",2018,"Nephrops norvegicus ","North Sea and Eastern Arctic","ICES","Functional unit 4","Weight","Sea sampling","NA",null,"standard weight-length key is used in both Sweden Denmark and Norway. Weights are not taken during sea sampling.","NA",null,"NA"]
["SWE","SWE",2018,"Nephrops norvegicus ","North Sea and Eastern Arctic","ICES","Functional unit 4","Length","Sea sampling",4925,null,null,8696,{"$f":"M153/J153","v":1.7656852791878173},23,"Trawl with grid; 3 trips/quarter sampled. Trawls without grid; catch-dependent, samples taken if there is a landing of Nephrops"]
["SWE","SWE",2018,"Nephrops norvegicus ","North Sea and Eastern Arctic","ICES","Functional unit 4","Sex","Sea sampling",4925,null,null,8696,1.7656852791878173,23,"Trawl with grid; 3 trips/quarter sampled. Trawls without grid; catch-dependent, samples taken if there is a landing of Nephrops"]
["SWE","SWE",2018,"Nephrops norvegicus ","North Sea and Eastern Arctic","ICES","Functional unit 4","Maturity","Sea sampling",4925,null,null,8696,1.7656852791878173,23,"Trawl with grid; 3 trips/quarter sampled. Trawls without grid; catch-dependent, samples taken if there is a landing of Nephrops"]
["SWE","SWE",2018,"Pandalus borealis","North Sea and Eastern Arctic","ICES","IIIa, IVa east","Weight","Sea sampling",3840,null,null,3864,1.0062500000000001,21,"1 samp/trip á 6 trips per quarter (3 trips observer, 3 trips selfsample)"]
["SWE","SWE",2018,"Pandalus borealis","North Sea and Eastern Arctic","ICES","IIIa, IVa east","Length","Sea sampling",13150,null,null,20898,1.5892015209125476,21,"1 samp/trip á 6 trips per quarter (3 trips observer, 3 trips selfsample)"]
["SWE","SWE",2018,"Pandalus borealis","North Sea and Eastern Arctic","ICES","IIIa, IVa east","Sex","Sea sampling",13150,null,null,12911,0.98182509505703419,21,"1 samp/trip á 6 trips per quarter (3 trips observer, 3 trips selfsample)"]
["SWE","SWE",2018,"Pandalus borealis","North Sea and Eastern Arctic","ICES","IIIa, IVa east","Maturity","Sea sampling",13150,null,null,12911,0.98182509505703419,21,"1 samp/trip á 6 trips per quarter (3 trips observer, 3 trips selfsample)"]
["SWE","SWE",2018,"Pleuronectes platessa","North Sea and Eastern Arctic","ICES","IIIa","Age","Survey",1525,null,null,855,0.56065573770491806,91,"1 ind/cm/haul","Undersampled, see general text"]
["SWE","SWE",2018,"Pleuronectes platessa","North Sea and Eastern Arctic","ICES","IIIa","Weight","Survey",1525,null,null,877,0.57508196721311478,91,"1 ind/cm/haul","Undersampled, see general text"]
["SWE","SWE",2018,"Pleuronectes platessa","North Sea and Eastern Arctic","ICES","IIIa","Length","Survey",5230,null,null,2426,0.4638623326959847,91,"subsample or total catch/haul","Undersampled, see general text"]
["SWE","SWE",2018,"Pleuronectes platessa","North Sea and Eastern Arctic","ICES","IIIa","Sex","Survey",1525,null,null,867,0.56852459016393442,91,"1 ind/cm/haul","Undersampled, see general text"]
["SWE","SWE",2018,"Pleuronectes platessa","North Sea and Eastern Arctic","ICES","IIIa","Maturity","Survey",1525,null,null,867,0.56852459016393442,91,"1 ind/cm/haul","Undersampled, see general text"]
["SWE","SWE",2018,"Pleuronectes platessa","North Sea and Eastern Arctic","ICES","IIIa","Age","Sea sampling",1120,null,null,1377,1.2294642857142857,63,"3st/cm/trip"]
["SWE","SWE",2018,"Pleuronectes platessa","North Sea and Eastern Arctic","ICES","IIIa","Weight","Sea sampling",1120,null,null,1393,1.2437499999999999,63,"3st/cm/trip"]
["SWE","SWE",2018,"Pleuronectes platessa","North Sea and Eastern Arctic","ICES","IIIa","Length","Sea sampling",1120,null,null,5721,5.1080357142857142,63,"total amount in subsample"]
["SWE","SWE",2018,"Sprattus sprattus","North Sea and Eastern Arctic","ICES","IIIa","Age","Survey",1680,null,null,2951,1.756547619047619,91,"5 ind/halfcm/haul","Oversampled, see general text, no cost implications"]
["SWE","SWE",2018,"Sprattus sprattus","North Sea and Eastern Arctic","ICES","IIIa","Weight","Survey",1680,null,null,2960,1.7619047619047619,91,"5 ind/halfcm/haul","Oversampled, see general text, no cost implications"]
["SWE","SWE",2018,"Sprattus sprattus","North Sea and Eastern Arctic","ICES","IIIa","Length","Survey",5370,null,null,8685,1.6173184357541899,91,"subsample or total catch/haul","Oversampled, see general text, no cost implications"]
["SWE","SWE",2018,"Sprattus sprattus","North Sea and Eastern Arctic","ICES","IIIa","Sex","Survey",1600,null,null,2927,1.829375,91,"5 ind/halfcm/haul","Oversampled, see general text, no cost implications"]
["SWE","SWE",2018,"Sprattus sprattus","North Sea and Eastern Arctic","ICES","IIIa","Maturity","Survey",1680,null,null,2960,1.7619047619047619,91,"5 ind/halfcm/haul","Oversampled, see general text, no cost implications"]
["SWE","SWE",2018,"Sprattus sprattus","North Sea and Eastern Arctic","ICES","IIIa","Age","Market",1140,null,null,786,0.68947368421052635,13,"max 150 ind/box : 4 box/SD/quarter","Undersampled due to to no/ low landings in quater 2 and 3 "]
["SWE","SWE",2018,"Sprattus sprattus","North Sea and Eastern Arctic","ICES","IIIa","Weight","Market",1140,null,null,947,0.83070175438596494,13,"max 150 ind/box : 4 box/SD/quarter","Undersampled due to to no/ low landings in quater 2 and 3 "]
["SWE","SWE",2018,"Sprattus sprattus","North Sea and Eastern Arctic","ICES","IIIa","Length","Market",1140,null,null,947,0.83070175438596494,13,"max 150 ind/box : 4 box/SD/quarter","Undersampled due to to no/ low landings in quater 2 and 3 "]
["SWE","SWE",2018,"Sprattus sprattus","North Sea and Eastern Arctic","ICES","IIIa","Sex","Market",1140,null,null,947,0.83070175438596494,13,"max 150 ind/box : 4 box/SD/quarter","Undersampled due to to no/ low landings in quater 2 and 3 "]
["SWE","SWE",2018,"Sprattus sprattus","North Sea and Eastern Arctic","ICES","IIIa","Maturity","Market",1140,null,null,947,0.83070175438596494,13,"max 150 ind/box : 4 box/SD/quarter","Undersampled due to to no/ low landings in quater 2 and 3 "]
["SWE","SWE",2018,"Trisopterus esmarki","North Sea and Eastern Arctic","ICES","IIIa","Age","Survey",245,null,null,366,1.4938775510204081,91,"1 ind/cm/haul"]
["SWE","SWE",2018,"Trisopterus esmarki","North Sea and Eastern Arctic","ICES","IIIa","Weight","Survey",245,null,null,366,1.4938775510204081,91,"1 ind/cm/haul"]
["SWE","SWE",2018,"Trisopterus esmarki","North Sea and Eastern Arctic","ICES","IIIa","Length","Survey",2370,null,null,3254,1.3729957805907174,91,"subsample or total catch/haul"]
["SWE","SWE",2018,"Trisopterus esmarki","North Sea and Eastern Arctic","ICES","IIIa","Sex","Survey",170,null,null,297,1.7470588235294118,91,"1 ind/cm/haul","Oversampled, see general text, no cost implications"]
["SWE","SWE",2018,"Trisopterus esmarki","North Sea and Eastern Arctic","ICES","IIIa","Maturity","Survey",170,null,null,297,1.7470588235294118,91,"1 ind/cm/haul","Oversampled, see general text, no cost implications"]
["SWE","SWE",2018,"Pollachius virens","North Sea and Eastern Arctic","ICES","IIIa","Age","Survey",190,null,null,191,1.0052631578947369,91,"1 ind/cm/haul"]
["SWE","SWE",2018,"Pollachius virens","North Sea and Eastern Arctic","ICES","IIIa","Weight","Survey",190,null,null,191,1.0052631578947369,91,"1 ind/cm/haul"]
["SWE","SWE",2018,"Pollachius virens","North Sea and Eastern Arctic","ICES","IIIa","Length","Survey",360,null,null,313,0.86944444444444446,91,"subsample or total catch/haul","Undersampled, see general text"]
["SWE","SWE",2018,"Pollachius virens","North Sea and Eastern Arctic","ICES","IIIa","Sex","Survey",190,null,null,102,0.5368421052631579,91,"1 ind/cm/haul","Undersampled, see general text"]
["SWE","SWE",2018,"Pollachius virens","North Sea and Eastern Arctic","ICES","IIIa","Maturity","Survey",190,null,null,102,0.5368421052631579,91,"1 ind/cm/haul","Undersampled, see general text"]
["SWE","SWE",2018,"Merlangius merlangus","North Sea and Eastern Arctic","ICES","IIIa","Age","Survey",840,null,null,1474,1.7547619047619047,91,"1 ind/cm/haul","Oversampled, see general text, no cost implications"]
["SWE","SWE",2018,"Merlangius merlangus","North Sea and Eastern Arctic","ICES","IIIa","Weight","Survey",850,null,null,1474,1.7341176470588235,91,"1 ind/cm/haul","Oversampled, see general text, no cost implications"]
["SWE","SWE",2018,"Merlangius merlangus","North Sea and Eastern Arctic","ICES","IIIa","Length","Survey",850,null,null,10390,12.223529411764705,91,"subsample or total catch/haul","Oversampled, see general text, no cost implications"]
["SWE","SWE",2018,"Merlangius merlangus","North Sea and Eastern Arctic","ICES","IIIa","Sex","Survey",690,null,null,1174,1.7014492753623189,91,"1 ind/cm/haul","Oversampled, see general text, no cost implications"]
["SWE","SWE",2018,"Merlangius merlangus","North Sea and Eastern Arctic","ICES","IIIa","Maturity","Survey",690,null,null,1176,1.7043478260869565,91,"1 ind/cm/haul","Oversampled, see general text, no cost implications"]

{"sheet":"Table1D Recreational Fisher","index":3,"n_rows":15,"n_cols":25,"rows_kept":15,"cut":false,"hidden":false,"merged":[]}
["Table 1D: Recreational fisheries"]
[null,null,null,null,null,null,null,null,null,null,null,null,null,null,null,null,null,null,null,null,null,null,null,"WP  years","2018-2019"]
[null,null,null,null,null,null,null,null,null,null,null,null,null,null,null,null,null,null,null,null,null,null,null,"AR year",2018]
["MS","Sampling year","Area/EMU","RFMO/RFO/IO","Species","Applicable (Species present in the MS?)","Reasons for not sampling","Threshold (Y/N)","Annual estimate of catch? (Y/N)","Annual percentage of released catch? (Y/N)","Collection of catch composition data? (Y/N)","Type of Survey","Comments","Unique Survey ID or Name of sampling scheme\n(Linked to Table 5A)","Is the survey part of a pilot study or part of an established programme? \n","Frequency","Is the sampling design documented?\n(Linked to Table 5A)","Are non-response and refusal recorded?\n(Linked to Table 5A)","Are the editing and imputation methods documented? (Linked to Table 5A)","Estimation of  the yearly weight and numbers of catch (Y/N)","Estimation of  the yearly percentage release (Y/N)","Collection of catch composition data (Y/N)","Evaluated by external experts/bodies (Y/N)","Conform with accepted standards Y/N","AR Comments "]
["SWE",2018,"Baltic Sea","ICES","Salmo salar","Y",null,"N","Y","Y","Y","Total river catches estimated (enquiries, interviews, catch reports from fishing right owners). In addition, a yearly postal questionnaire sent to approximately 10,000 randomly selected permanent residents in Sweden, age 16-80 years. Estimates of trolling catches every second year (site studies combined with effort estimates).                Recreational fisheries with trap nets estimated every 4th year.","Recreational fisheries is defined as all fishing activities carried out by those without a commercial fishing license. ","Recreational river catches survey & recreational fisheries- postal questionnaire","Routine","annual","Partly for River catches, Y for postal questionair","N for River catches, Y for postal questionair","N for River catches, Y for postal questionair","Y (for River catch survey numbers and weight, for postal questionaire  weight)","Y","Y for postal questionaire, partly for river catches survey","Y","Y","WGBAST, General comment regarding postal questionnaire: in 2018 the questionnaire increased to approx. 19 000 send-outs "]
["SWE",2018,"Baltic Sea","ICES","Salmo trutta","Y",null,"Y","Y","Y","Y","Total river catches estimated  (enquieries, interviews, catch reports from fishing right owners). In addition, a yearly postal questionnaire sent to approximately 10,000 randomly selected permanent residents in Sweden, age 16-80 years.                               ","Recreational fisheries is defined as all fishing activities carried out by those without a commercial fishing license. ","recreational fisheries- postal questionnaire","Routine","annual","Y","Y","Y","Y (weight)","Y","N","Y","Y","WGTRUTTA, General comment regarding postal questionnaire: in 2018 the questionnaire increased to approx. 19 000 send-out"]
["SWE",2018,"Baltic Sea","ICES, Helcom","Anguilla anguilla","Y","Recreational catches is not allowed due to Swedish legislation (FIFS 2004:36) ","Y","N","N","N","NA",null,"NA","NA","NA","NA","NA","NA","NA","NA","NA","NA","NA","No pilot study was implemented as recreational catches is not allowed due to Swedish legislation (FIFS 2004:36)."]
["SWE",2018,"Baltic Sea","ICES","Gadus morhua","Y",null,"N","Y","N","Y","A) A yerly postal questionnaire sent to 10,0000 randomly selected permanent residents in Sweden, age 16-80 year. The questionnaire will be combined with a pilotstudy as an on site study for 2017 -2018 in ICES area 24 and 23 to get more detailed information on catches and catch composition data\nB) An on site study for 2017 -2018 in ICES area 23 and 24 render more detailed information on effort, catches and catch composition.","See details about  Pilot Study1 in text box","A) recreational fisheries- postal questionnaire\n\n\nB) SLU-MRFS","A) Routine\n\n\nB) Pilot study","A)Annual\n\n\nB) Quarterly","A) Y\n\n\nB) Y, on internal server","A) Y\n\n\nB) Y","A) Y\n\n\nB) Y, on internal server","A) Y (weight)\n\n\nB) Y","A) Y\n\n\nB) Y","A) N\n\n\nB) Y","A) Y\n\n\nB) Y (WGRFS/WGBFAS)","A) Y\n\n\nB) Y","A) General comment regarding postal questionnaire: in 2018 the questionnaire increased to approx. 19 000 send-out\n\nB) Intercepting methods concerning a rare occurance as RecFish need substantial sampling or supporting information."]
["SWE",2018,"North Sea and Eastern Arctic","NASCO, ICES, Ospar, Helcom","Salmo salar","Y",null,"N","Y","Y","Y","Total river catches estimated  (enquieries, interviews, catch reports from fishing right owners). In addition, a yearly postal questionnaire sent to approximately 10,000 randomly selected permanent residents in Sweden, age 16-80 years.                               ","Recreational fisheries is defined as all fishing activities carried out by those without a commercial fishing license. ","recreational fisheries- postal questionnaire","Routine","annual","Y","Y","Y","Y (weight)","Y","N","Y","Y","WGNAS, General comment regarding postal questionnaire: in 2018 the questionnaire increased to approx. 19 000 send-out"]
["SWE",2018,"North Sea and Eastern Arctic","EIFAAC/ICES","Anguilla anguilla","Y","Recreational catches is not allowed due to Swedish legislation (FIFS 2004:36) ","Y","N","N","N","NA",null,"NA","NA","NA","NA","NA","NA","NA","NA","NA","NA","NA","See Reasons for not sampling in WP."]
["SWE",2018,"Freshwater Sweden (one single EMU only)","EIFAAC/ICES","Anguilla anguilla","Y","See details in Pilot Study 1 and text box 1D ","N","Y","Y","Y","NA","See details in Pilot Study 1 and text box 1E ","NA","NA","NA","NA","NA","NA","NA","NA","NA","NA","NA","No pilot study was implemented as recreational catches is not allowed due to Swedish legislation (FIFS 2004:36)."]
["SWE",2018,"North Sea and Eastern Arctic","ICES","Gadus morhua","Y",null,"N","Y","N","N","A postal questionnaire sent to approximately 10,000 randomly selected permanent residents in Sweden, age 16-80 year ","Recreational fisheries is defined as all fishing activities carried out by those without a commercial fishing license. ","recreational fisheries- postal questionnaire","Routine ","annual ","Y","Y","Y","N (only weight)","Y","N","N","Y","For Skagerrak and Kattegat, General comment regarding postal questionnaire: in 2018 the questionnaire increased to approx. 19 000 send-out "]
["SWE",2018,"North Sea and Eastern Arctic","ICES, Ospar, Helcom","Pollachius pollachius","Y",null,"Y","Y","N","N","A postal questionnaire sent to approximately 10,000 randomly selected permanent residents in Sweden, age 16-80 year ","Recreational fisheries is defined as all fishing activities carried out by those without a commercial fishing license. ","recreational fisheries- postal questionnaire","Routine","annual ","Y","Y","Y","N (only weight)","Y","N","N","Y","For Skagerrak and Kattegat, General comment regarding postal questionnaire: in 2018 the questionnaire increased to approx. 19 000 send-out"]
["SWE",2018,"North Sea and Eastern Arctic","ICES, Ospar, Helcom","Dicentrarchus labrax","Y","Recreational catches is not consider to be a limiting factor for populations of labrax in Swedish waters, their occurence is mainly regulated by warm water outflows.","Y","N","N","N","A postal questionnaire sent to approximately 10,000 randomly selected permanent residents in Sweden, age 16-80 years. ","Recreational fisheries is defined as all fishing activities carried out by those without a commercial fishing license. ","recreational fisheries- postal questionnaire","Routine","annual ","Y","Y","Y","N (only weight)","Y","N","N","Y","For Skagerrak and Kattegat,General comment regarding postal questionnaire: in 2018 the questionnaire increased to approx. 19 000 send-out"]
["SWE",2018,"North Sea and Eastern Arctic","ICES, Ospar, Helcom","Elasmobranchii, Rajiformes","Y","Recreational catches is nearly none due to  Swedish legislation (FIFS 2004:36). ","Y","N","N","N","A postal questionnaire sent to approximately 10,000 randomly selected permanent residents in Sweden, age 16-80 years. ","Recreational fisheries is defined as all fishing activities carried out by those without a commercial fishing license. ","recreational fisheries- postal questionnaire","Routine","annual ","Y","Y","Y","N (only weight)","Y","N","N","Y","For Skagerrak and Kattegat, General comment regarding postal questionnaire: in 2018 the questionnaire increased to approx. 19 000 send-out"]

{"sheet":"Table1E Anadromous catadromous","index":4,"n_rows":59,"n_cols":21,"rows_kept":59,"cut":false,"hidden":false,"merged":[[3,5,4,5],[3,0,4,0],[3,1,4,1],[3,2,4,2],[3,3,4,3],[3,4,4,4],[3,6,4,6],[3,7,4,7],[3,14,4,14],[3,8,4,8],[3,15,4,15],[3,9,4,9],[3,10,4,10],[3,11,4,11],[3,12,4,12],[3,13,4,13],[3,16,4,16],[3,17,4,17],[3,18,4,18],[3,19,4,19],[3,20,4,20]]}
["Table 1E: Anadromous and catadromous species data collection in fresh water "]
[null,null,null,null,null,null,null,null,null,null,null,null,null,null,null,null,null,null,null,"WP  years","2018-2019"]
[null,null,null,null,null,null,null,null,null,null,null,null,null,null,null,null,null,null,null,"AR year",2018]
["MS","Sampling period","Area","RFMO/RFO/IO","Species","Applicable (Y/N)","Reasons for not sampling","Water Body","Life stage","Fishery / Independent data collection","Method","Unit","Planned nos","Frequency","Comments","Achieved numbers","% of achievement (100*P/M)","Reasons for non-conformity","Survey ID","Agreed at RCG level?","AR Comments"]
[]
["SWE",2018,"Baltic Sea","ICES","Salmo salar","Y",null," River Torneälv","parr","I","electrofishing","n. sites",25,"annually",null,26,{"$f":"100*P6/M6","v":104},"See textbox 1E","SWE-SAL-FRW-MEL-fishery-independant","Y","Got one site extra for free."]
["SWE",2018,"Baltic Sea","ICES","Salmo salar","Y",null," River  Ume/Vindelälven","parr","I","electrofishing","n. sites",28,"annually",null,27,{"$f":"100*P7/M7","v":96.428571428571431},"See textbox 1E","SWE-SAL-FRW-MEL-fishery-independant","Y","WP was sent in before negotiations with consultants finished, hence discrepancies between planned numbers and achieved numbers."]
["SWE",2018,"Baltic Sea","ICES","Salmo salar","Y",null," River  Ume/Vindelälven","smolt","I","trap","n. smolt traps",1,"annually",null,1,100,null,"SWE-SAL-FRW-FIX-fishery-independant","Y"]
["SWE",2018,"Baltic Sea","ICES","Salmo salar","Y",null," River  Ume/Vindelälven","adult","I","counter","n. counter",1,"annually",null,1,100,null,"SWE-SAL-FRW-NK-fishery-independant","Y"]
["SWE",2018,"Baltic Sea","ICES","Salmo salar","Y",null," River  Testeboån","parr","I","electrofishing","n. sites",11,"annually",null,11,100,null,"SWE-SAL-FRW-MEL-fishery-independant","Y"]
["SWE",2018,"Baltic Sea","ICES","Salmo salar","Y",null," River  Testeboån","adult","I","counter","n. counter",1,"annually",null,1,100,null,"SWE-SAL-FRW-NK-fishery-independant","Y"]
["SWE",2018,"Baltic Sea","ICES","Salmo salar","Y",null," River  Testeboån","smolt","I","trap","n. smolt traps",1,"annually",null,1,100,null,"SWE-SAL-FRW-FIX-fishery-independant","Y"]
["SWE",2018,"Baltic Sea","ICES","Salmo salar","Y",null," River  Mörrumsån","parr","I","electrofishing","n. sites",23,"annually",null,19,82.608695652173907,"See textbox 1E","SWE-SAL-FRW-MEL-fishery-independant","Y","WP was sent in before negotiations with consultants finished, hence discrepancies between planned numbers and achieved numbers."]
["SWE",2018,"Baltic Sea","ICES","Salmo salar","Y",null," River  Mörrumsån","smolt","I","trap","n. smolt traps",1,"annually",null,1,100,null,"SWE-SAL-FRW-FIX-fishery-independant","Y"]
["SWE",2018,"Baltic Sea","ICES","Salmo salar","Y",null," River  Mörrumsån","adult","I","counter","n. counter",1,"annually",null,1,100,null,"SWE-SAL-FRW-NK-fishery-independant","Y"]
["SWE",2018,"Baltic Sea","ICES","Salmo salar","Y",null,"River Kalixälven","parr","I","electrofishing","n. sites",40,"annually",null,30,75,"See textbox 1E","SWE-SAL-FRW-MEL-fishery-independant","Y","WP was sent in before negotiations with consultants finished, hence discrepancies between planned numbers and achieved numbers."]
["SWE",2018,"Baltic Sea","ICES","Salmo salar","Y",null,"River Kalixälven","adult","I","counter","n. counter",1,"annually",null,1,100,null,"SWE-SAL-FRW-NK-fishery-independant","Y"]
["SWE",2018,"Baltic Sea","ICES","Salmo salar","Y",null,"River Råneälven","parr","I","electrofishing","n. sites",19,"annually",null,14,73.684210526315795,"See textbox 1E","SWE-SAL-FRW-MEL-fishery-independant","Y","WP was sent in before negotiations with consultants finished, hence discrepancies between planned numbers and achieved numbers."]
["SWE",2018,"Baltic Sea","ICES","Salmo salar","Y",null,"River Åbyälven","parr","I","electrofishing","n. sites",20,"annually",null,16,80,"See textbox 1E","SWE-SAL-FRW-MEL-fishery-independant","Y","WP was sent in before negotiations with consultants finished, hence discrepancies between planned numbers and achieved numbers."]
["SWE",2018,"Baltic Sea","ICES","Salmo salar","Y",null,"River Byskeälven","parr","I","electrofishing","n. sites",15,"annually",null,15,100,null,"SWE-SAL-FRW-MEL-fishery-independant","Y"]
["SWE",2018,"Baltic Sea","ICES","Salmo salar","Y",null,"River Kågeälven","parr","I","electrofishing","n. sites",12,"annually",null,12,100,null,"SWE-SAL-FRW-MEL-fishery-independant","Y"]
["SWE",2018,"Baltic Sea","ICES","Salmo salar","Y",null," River Rickleån","parr","I","electrofishing","n. sites",15,"annually",null,12,80,"See textbox 1E","SWE-SAL-FRW-MEL-fishery-independant","Y","WP was sent in before negotiations with consultants finished, hence discrepancies between planned numbers and achieved numbers."]
["SWE",2018,"Baltic Sea","ICES","Salmo salar","Y",null," River  Rickleån","smolt","I","trap","n. smolt traps",1,"annually",null,1,100,null,"SWE-SAL-FRW-FIX-fishery-independant","Y"]
["SWE",2018,"Baltic Sea","ICES","Salmo salar","Y",null,"River Sävarån","parr","I","electrofishing","n. sites",15,"annually",null,14,93.333333333333329,"See textbox 1E","SWE-SAL-FRW-MEL-fishery-independant","Y","WP was sent in before negotiations with consultants finished, hence discrepancies between planned numbers and achieved numbers."]
["SWE",2018,"Baltic Sea","ICES","Salmo salar","Y",null,"River Öreälven","parr","I","electrofishing","n. sites",16,"annually",null,16,100,null,"SWE-SAL-FRW-MEL-fishery-independent","Y"]
["SWE",2018,"Baltic Sea","ICES","Salmo salar","Y",null,"River Lögdeälven","smolt","I","trap","n. smolt traps",1,"annually",null,0,0,"See textbox 1E","SWE-SAL-FRW-FIX-fishery-independant","Y","Trap was moved from Lögdeälven to Åbyälven."]
["SWE",2018,"Baltic Sea","ICES","Salmo salar","Y",null,"River Lögdeälven","parr","I","electrofishing","n. sites",14,"annually",null,13,92.857142857142861,"See textbox 1E","SWE-SAL-FRW-MEL-fishery-independant","Y","WP was sent in before negotiations with consultants finished, hence discrepancies between planned numbers and achieved numbers."]
["SWE",2018,"Baltic Sea","ICES","Salmo salar","Y",null,"River Ljungan","parr","I","electrofishing","n. sites",10,"annually",null,10,100,null,"SWE-SAL-FRW-MEL-fishery-independant","Y"]
["SWE",2018,"Baltic Sea","ICES","Salmo salar","Y",null,"River Emån","parr","I","electrofishing","n. sites",13,"annually",null,10,76.92307692307692,"See textbox 1E","SWE-SAL-FRW-MEL-fishery-independant","Y","WP was sent in before negotiations with consultants finished, hence discrepancies between planned numbers and achieved numbers."]
["SWE",2018,"Baltic Sea","ICES","Salmo salar","Y",null,"River Luleälven","adult","F","fishery statistics","n. trips","NA","annually","As described in Table 4A and 4B.","NA",null,null,"SWE-SAL-FRW-NK-commercial fishing","N"]
["SWE",2018,"Baltic Sea","ICES","Salmo salar","Y",null,"River Ljusnan","adult","F","fishery statistics","n. trips","NA","annually","As described in Table 4A and 4B.","NA",null,null,"SWE-SAL-FRW-NK-commercial fishing","N"]
["SWE",2018,"Baltic Sea","ICES","Salmo salar","Y",null,"River Indalsälven","adult","F","fishery statistics","n. trips","NA","annually","As described in Table 4A and 4B.","NA",null,null,"SWE-SAL-FRW-NK-commercial fishing","N"]
["SWE",2018,"North sea and Eastern Arctic","ICES/NASCO","Salmo salar","Y",null,"River Högvadsån","parr","I","electrofishing","n. sites",16,"annually",null,16,100,null,"SWE-SAL-FRW-NK-fishery-independant","Y"]
["SWE",2018,"North sea and Eastern Arctic","ICES/NASCO","Salmo salar","Y",null,"River Högvadsån","smolt","I","trap","n. smolt traps",1,"annually",null,1,100,null,"SWE-SAL-FRW-FIX-fishery-independant","Y"]
["SWE",2018,"North sea and Eastern Arctic","ICES/NASCO","Salmo salar","Y",null,"River Högvadsån","adult","I","counter","n. counter",1,"annually",null,1,100,null,"SWE-SAL-FRW-NK-fishery-independant","Y"]
["SWE",2018,"North sea and Eastern Arctic","ICES/NASCO","Salmo salar","Y",null,"25 rivers in Skagerrak and Kattegatt River Basin District","parr","I","electrofishing","n. sites",30,"annually","Rivers are sampled according to a rotating schedule. ",30,100,null,"SWE-SAL-FRW-NK-fishery-independant","Y"]
["SWE",2018,"North sea and Eastern Arctic","EIFAAC/ICES/GFCM ","Anguilla anguilla","Y",null,"20 rivers in Skagerrak and Kattegatt River Basin District","yellow","I","electofishing","n. sites",20,"annually","To estimate recruitment from a number of sites in several rivers.",null,null,null,null,"Y"]
["SWE",2018,"North sea and Eastern Arctic","EIFAAC/ICES/GFCM ","Anguilla anguilla","Y",null,"River Göta älv","yellow","I","traps","n. traps",1,"annually","To estimate recruitment to 7 rivers",0,{"$f":"100*P38/M38","v":0},"The responsible county board was not able to replace a retired trap keeper in time",null,"Y"]
["SWE",2018,"North sea and Eastern Arctic","EIFAAC/ICES/GFCM ","Anguilla anguilla","Y",null,"River Viskan","yellow","I","traps","n. traps",1,"annually","To estimate recruitment to 7 rivers",1,100,null,null,"Y"]
["SWE",2018,"North sea and Eastern Arctic","EIFAAC/ICES/GFCM ","Anguilla anguilla","Y",null,"River Lagan","yellow","I","traps","n. traps",1,"annually","To estimate recruitment to 7 rivers",1,100,null,null,"Y"]
["SWE",2018,"North sea and Eastern Arctic","EIFAAC/ICES/GFCM ","Anguilla anguilla","Y",null,"River Rönneå","yellow","I","traps","n. traps",1,"annually","To estimate recruitment to 7 rivers",1,100,null,null,"Y"]
["SWE",2018,"Baltic Sea","EIFAAC/ICES/GFCM ","Anguilla anguilla","Y",null,"River Helgeån","yellow","I","traps","n. traps",1,"annually","To estimate recruitment to 4 rivers",1,100,null,null,"Y"]
["SWE",2018,"Baltic Sea","EIFAAC/ICES/GFCM ","Anguilla anguilla","Y",null,"River Mörrumsån","yellow","I","traps","n. traps",1,"annually","To estimate recruitment to 4 rivers",1,100,null,null,"Y"]
["SWE",2018,"Baltic Sea","EIFAAC/ICES/GFCM ","Anguilla anguilla","Y",null,"River Motala Ström","yellow","I","traps","n. traps",1,"annually","To estimate recruitment to 4 rivers",1,100,null,null,"Y"]
["SWE",2018,"Baltic Sea","EIFAAC/ICES/GFCM ","Anguilla anguilla","Y",null,"River Emån","yellow","I","traps","n. traps",1,"annually","To estimate recruitment to 4 rivers",0,0,"This trap is no longer in operation",null,"Y"]
["SWE",2018,"Baltic Sea","EIFAAC/ICES/GFCM ","Anguilla anguilla","Y",null,"River Nyköpingsån","yellow","I","traps","n. traps",1,"annually","To estimate recruitment to 4 rivers",1,100,null,null,"Y"]
["SWE",2018,"Baltic Sea","EIFAAC/ICES/GFCM ","Anguilla anguilla","Y",null,"River Dalälven ","yellow","I","traps","n. traps",1,"annually","To estimate recruitment to 4 rivers",1,100,null,null,"Y"]
["SWE",2018,"Baltic Sea","EIFAAC/ICES/GFCM ","Anguilla anguilla","Y",null,"River Ljusnan","yellow","I","traps","n. traps",1,"annually","To estimate recruitment to 4 rivers",1,100,null,null,"Y"]
["SWE",2018,"Baltic Sea","EIFAAC/ICES/GFCM ","Anguilla anguilla","Y",null,"Lake Mälaren","yellow + silver","I","fyke netting ","n. sites",1,"annually","Monitoring of  introduced populations",1,100,null,null,"Y"]
["SWE",2018,"Baltic Sea","EIFAAC/ICES/GFCM ","Anguilla anguilla","Y",null,"Lake Fardume träsk","silver","I","fixed trap","n. sites",1,"annually","Monitoring of  introduced populations",1,100,null,null,"Y"]
["SWE",2018,"Baltic Sea","EIFAAC/ICES/GFCM ","Anguilla anguilla","Y",null,"River to the Baltic","all","F/I","planning","n. rivers",1,"annually","Planning of full life history study will be conducted in 2017 to be able to assess the methodologises needed for data collection on recruites, standing stock and migrating individuals.",1,100,null,null,"Y"]
["SWE",2018,"North sea and Eastern Arctic","EIFAAC/ICES/GFCM ","Anguilla anguilla","Y",null,"River to Skagerrak ","all","F/I","planning","n. rivers",1,"annually","Planning of full life history  study will be conducted in 2017 to be able to assess the methodologises needed for data collection on recruites, standing stock and migrating individuals.",0,0,"We will start with one river to get experience",null,"Y"]
["SWE",2018,"Baltic Sea","EIFAAC/ICES/GFCM ","Anguilla anguilla","Y",null,"Baltic","silver","F/I","Mark-recapure","n. marked eels",400,"annually","data collection of stocked amounts and sites. Sites may be changed due to unforessen reasons",467,116.75,"Planned for 600 marked eels in total, but due to drought and heat too few eels were available for marking.",null,"Y"]
["SWE",2018,"Baltic Sea","EIFAAC/ICES/GFCM ","Anguilla anguilla","Y",null,"Lake Mälaren","silver","F/I","Mark-recapure","n. marked eels",200,"annually","Sites may be changed due to unforessen reasons",0,0,"No tagging in freshwater in 2018",null,"Y"]
["SWE",2018,"Baltic Sea","EIFAAC/ICES/GFCM ","Anguilla anguilla","Y",null,"3 lakes","silver","F","sampling","n. eels",375,"annually","sampling from the commercial fishery. Also listed in 1b and 1c",324,86.4,"Problems with a freezer at one of the fishers.",null,"Y"]
["SWE",2018,"North sea and Eastern Arctic","EIFAAC/ICES/GFCM ","Anguilla anguilla","Y",null,"Coastal sites","yellow","I","statistics","n. eels",2500000,"annually","Updating the database of stocked recruits i.e. data collection of stocked amounts and sites",1524268,60.97072,"Actual numbers depends on the annual price vs national fundings",null,"Y"]
["SWE",2018,"Baltic Sea","EIFAAC/ICES/GFCM ","Anguilla anguilla","Y",null,"Freshwater sites","yellow","I","statistics","n. eels",2500000,"annually","Updating the database of stocked recruits i.e. data collection of stocked amounts and sites",1584371,63.374839999999999,"Actual numbers depends on the annual price vs national fundings",null,"Y"]
["SWE",2018,"Baltic Sea","EIFAAC/ICES/GFCM ","Anguilla anguilla","Y",null,"Coastal sites","yellow","I","annual ","n. sites",1,"annually","A survey is run yearly in August in order to continue following the eel stock in this area. The commercial fishery was indirectly closed due to that the minimum landing size was increased, hence it is no longer possible to continue the commercial sampling. The survey set-up include catching a predefined number of yellow eels, all of which are length measured. Using length-stratification, a sub-sample from the total catch of yellow eel is then collected for biological (age) sampling. Silver eels caught are also measured for length, but not sampled for age. In the survey manual, the maximum effort (gear-days) to be aiming for is defined. No other species than eel are sampled.",1,100,null,"No ID exist","Y"]
["SWE",2018,"North sea and Eastern Arctic","EIFAAC/ICES/GFCM ","Anguilla anguilla","Y",null,"Coastal sites","yellow","I","annual ","n.sites",3,"annually","A survey is run yearly in August in order in order to continue following the eel stock in this area . The commercial fishery was indirectly closed due to that the minimum landing size was increased, hence it is no longer possible to continue the commercial sampling. The survey set-up include catching a predefined number of yellow eels, all of which are length measured. Using length-stratification, a sub-sample from the total catch of yellow eel is then collected for biological (age) sampling. Silver eels caught are also measured for length, but not sampled for age. In the survey manual, the maximum effort (gear-days) to be aiming for is defined. No other species than eel are sampled.",3,100,null,"No ID exist","Y"]

{"sheet":"Table1F Incidental by catch","index":5,"n_rows":9,"n_cols":23,"rows_kept":9,"cut":false,"hidden":false,"merged":[[4,21,5,21],[4,22,5,22],[4,15,5,15],[4,16,5,16],[4,17,5,17],[4,18,5,18],[4,19,5,19],[4,20,5,20],[4,14,5,14],[3,15,3,19],[4,0,5,0],[4,1,5,1],[4,2,5,2],[4,3,5,3],[4,4,5,4],[4,5,5,5],[4,6,5,6],[4,7,5,7],[4,8,5,8],[4,9,5,9],[4,10,5,10],[4,11,5,11],[4,12,5,12],[4,13,5,13]]}
["Table 1F: Incidental by-catch of birds, mammals, reptiles and fish "]
[null,null,null,null,null,null,null,null,null,null,null,null,null,null,null,null,null,null,null,null,null,"WP  years","2018-2019"]
[null,null,null,null,null,null,null,null,null,null,null,null,null,null,null,null,null,null,null,null,null,"AR year",2018]
[null,null,null,null,null,null,null,null,null,null,null,null,null,null,null,"Has there be occurrence of bycatch?"]
["MS","Sampling period/year(s)","Region","RFMO/RFO/IO","Sub-area / Fishing ground","Scheme","Stratum ID code / Name of the survey","Group of vulnerable species","Expected occurence of recordings ","Comments","Total number of PSU in the sampling year","Achieved number of PSU in the sampling year","Number of PSU sampled in which observers have been instructed to look for bycatch","Does your sampling protocol allow for the calculation of observation effort “at haul level” (Y/N)","Is there any mitigation device? (Y/N) ","Fish (Y/N/NA)","Mammals (Y/N/NA)","Birds (Y/N/NA)","Reptiles (Y/N/NA)","Other (Y/N/NA)","Are data stored in a national database?","Are data stored in international database(s)?","AR Comments"]
[]
["SWE","2018-2019","North Sea and Eastern Arctic","ICES","IIIa","Skagerrak/Kattegat at-sea","SWE - SkaKat (at-sea) - Act - 20/21 - PanTrawlTun, SWE - SkaKat (at-sea) - Act - 20/21 - PanTrawlNoTun, SWE - SkaKat (at-sea) - Act - 20 - NepTrawlGrid, \nSWE - SkaKat (at-sea) - Act - 21 - NepTrawlGrid, \nSWE - SkaKat (at-sea) - Act - 20 - MixTrawl, \nSWE - SkaKat (at-sea) - Act - 21 - MixTrawl","All encountered species except some invertebrates","X ","It is expected that the bycatch of birds and mammals are very limited.  Expected bycatch of different stocks of fish and crustaceans are dependent on species. Data on all species in 1D will be recorded.",290,66,54,"Y","Y","Y","Y","Y","NA","NA","Y","Y","NOTE: Number of PSUs should be identical to numbers of PSUs in table 4A (see comment regarding PSUs in 4A). Sweden have 2 observers on each observed vessel, implying that one observer can observe the hauling operation. There might be a few hauling operations that are not oberved due to bad weather or the logistics on the vessel. It is in the protocols for the observers to monitor the entire work-up of the catch. The question on mitigation device is strange as by-catches also include fish-species. There are a lot of selective fishing gear in use (grids, panels) that have an impact of by-catches of fish. No by-catches of mammals and birds have been found in these fisheries 2018. All data is submitted to international databases when this is requested."]
["SWE","2018-2019","Baltic Sea","ICES","SD 24-26","Baltic at-sea","SWE - Balt (at-sea) - Act - 24/25 - DemTrawl","All encountered species except some invertebrates","X ","It is expected that the bycatch of birds and mammals are very limited.  Expected bycatch of different stocks of fish and crustaceans are dependent on species. Data on all species in 1D will be recorded.",33,12,12,"Y","Y","Y","Y","Y","NA","NA","Y","Y","NOTE: Number of PSUs should be identical to numbers of PSUs in table 4A (see comment regarding PSUs in 4A). Sweden have 2 observers on each observed vessel, implying that one observer can observe the hauling operation. There might be a few hauling operations that are not oberved due to bad weather or the logistics on the vessel. It is in the protocols for the observers to monitor the entire work-up of the catch. The question on mitigation device is strange as by-catches also include fish-species. There are a lot of selective fishing gear in use (grids, panels) that have an impact of by-catches of fish. No by-catches of mammals and birds have been found in these fisheries 2018. All data is submitted to international databases when this is requested."]
["SWE","2018-2019","Baltic Sea","ICES","SD 23-29","Baltic at-sea or self-sampling","SWE - Balt (at-sea/self) - Pass - 23 - DemNet. Data from riskareas (frame to be defined) pilotstudy 2.\n","All encountered species ","X ","Data on all species in 1D will be recorded.",100,17,17,"Y","Y","Y","Y","Y","NA","NA","Y","Y","NOTE: Number of PSUs should be identical to numbers of PSUs in table 4A . The corresponding rows in table 4A are \"SWE - Balt (at-sea/self) - Pass - 23 - DemNets\" och \"SWE - Balt (at-sea/self) - Pass - 27/29 - DemNets\" (but only including SD 27 and 28 as these were identified as riskareas for birds). Samplingframe in 4A is based on weeks (see 4A). Total number of trips included in the samplingframe was 3392. Number of trips sampled was 36. 32 of these were monitored by observers . The remaining 4 trips are self-sampled by fishermen but sampled by observers. This is a part of the Swedish pilot study om by-catches so observing by-catches (incl. Hauling operation and work-up of the catch) is the top priority. It is recorded if the fisherman use pingers. In 2018 were sampling carried out in the Baltic SD 23 and in SD 27-28. The latter were assessed as riskareas for by-catches of birds. All data is submitted to international databases when this is requested"]

{"sheet":"Table1G List of research survey","index":6,"n_rows":16,"n_cols":27,"rows_kept":16,"cut":false,"hidden":false,"merged":[[1,17,1,19],[1,20,1,22],[2,17,2,19],[1,7,1,8],[1,9,1,10],[1,11,1,12],[1,13,1,14],[1,15,1,16]]}
["Table 1G: List of research surveys at sea"]
[null,null,null,null,null,null,null,null,null,null,null,null,null,null,null,null,null,null,null,null,null,null,null,null,null,"WP  years","2018-2019"]
[null,null,null,null,null,null,null,null,null,null,null,null,null,null,null,null,null,null,null,null,null,null,null,null,null,"AR year",2018]
["MS","Name of survey","Acronym ","Mandatory (Y/N)","Threshold (Y/N)","Agreed at RCG level","MS participation","Area(s)\ncovered","Period (Month)","Frequency","Days at sea planned","Type of sampling activities","Planned target ","Map","Relevant international planning group - RFMO/RFO/IO","International database","Comments","Type of MS participation","In case of financial participation, is payment done? (Y/N)","Days at sea achieved","Achieved target","Other data assimilations (Y/N)","Was the survey carried out within the official time period? (Y/N)","Was the survey carried out within the official survey area? (Y/N)","Indication if AR comments by MS are required concerning effort achieved","Indication if AR comments by MS are required concerning temporal and spatial coverage","AR Comments"]
["SWE","Baltic International Trawl Survey ","BITS Q1","Y","N","Y","C","IIIb-d","1st quarter","Annual",14,"Fish Hauls",50,"Map 1","ICES WGBIFS","DATRAS",null,"P","NA",10,33,"N","Y","Y",{"$f":"IF(((K5-T5)/K5*100)>[9]Settings!H4,\"x\",IF(((K5-T5)/K5*100)>[9]Settings!H4,\"x\",IF(T5=\"\",\"\",\"\")))","v":"x"},null,"Due to the access prohibition to foreign vessels in some areas by the Swedish Armed Forces, Sweden could not visit 17 of the planned hauls"]
["SWE","Baltic International Trawl Survey ","BITS Q1","Y","N","Y","C","IIIb-d","1st quarter","Annual",3,"Fish Hauls"," 2-4","Map 1","ICES WGBIFS","DATRAS","Hauls undertaken by the vessel Hålabben","P","NA",3,3,"N","Y","Y"]
["SWE","Baltic International Trawl Survey","BITS Q4","Y","N","Y","C","IIIb-d","4th quarter","Annual",11,"Fish Hauls",30,"Map 2","ICES WGBIFS","DATRAS",null,"P","NA",10.5,28,"N","Y","Y"]
["SWE","Baltic International Trawl Survey","BITS Q4","Y","N","Y","C","IIIb-d","3rd quarter","Annual",3,"Fish Hauls"," 2-4","Map 2","ICES WGBIFS","DATRAS","Hauls undertaken by the vessel Hålabben","P","NA",3,6,"N","Y","Y",null,null,"Number of hauls increased from q 4 2018, conducted in the same amout of days. Joint planning with Denmark"]
["SWE","Baltic International Acoustic Survey","BIAS","Y","N","Y","C","IIIb-d","Sep-Oct","Annual",13,"Echo Nm",1341,"Map 3","ICES WGBIFS","IBAS",null,"P","NA",13.4,1247,"N","Y","Y"]
["SWE","Baltic International Acoustic Survey","BIAS","Y","N","Y","C","IIIb-d","Sep-Oct","Annual",13,"Fish Hauls",48,"Map 3","ICES WGBIFS","IBAS",null,"P","NA",13.4,46,"N","Y","Y"]
["SWE","International Bottom Trawl Survey","IBTS Q1","Y","N","Y","C","IIIa","1st quarter","Annual",14,"Fish Hauls",46,"Map 4","ICES IBTSWG","DATRAS",null,"P","NA",12.5,46,"N","Y","Y"]
["SWE","International Bottom Trawl Survey","IBTS Q1","Y","N","Y","C","IIIa","1st quarter","Annual",14,"Plankton Hauls",60,"Map 5","ICES IBTSWG","no existing database","Data on clupeid larvae are sent to a database in Germany.","P","NA",12.5,56,"N","Y","Y"]
["SWE","International Bottom Trawl Survey","IBTS Q3","Y","N","Y","C","IIIa","3rd quarter","Annual",11,"Fish Hauls",45,"Map 6","ICES IBTSWG","DATRAS",null,"P","NA",11.4,45,"N","Y","Y"]
["SWE","Nephrops TV survey (FU 3&4) ","NTV3&4","Y","N","Y","C","IIIa","2nd quarter","Annual",15,"TV-tracks",95,"Map 7","ICES WGNEPS","no existing database",null,"P","NA",11,82,"N","Y","Y"]
["SWE","International Ecosystem Survey in the Nordic Seas","ASH","Y","N","Y","C","IIa","May","Annual",null,"Fish Hauls","See Denmark","Map 8","ICES WGIPS","See Denmark",null,"C","Y",30,"See Denmark","See Denmark","See Denmark","See Denmark"]
["SWE","Blue whiting survey","IBWSS","Y","N/A","Y","C","VI, VII","1st and 2nd quarter","Annual",null,"Fish hauls\nCTD\nEcho Nm","See Netherlands","Map 9","ICES WGIPS","See Netherlands",null,"F","N","See Netherlands","See Netherlands","See Netherlands","See Netherlands","See Netherlands",null,null,"Part financed by SWE 2018. Not included in WP 2018-2019"]

{"sheet":"Table1H Research survey data","index":7,"n_rows":72,"n_cols":13,"rows_kept":72,"cut":false,"hidden":false,"merged":[]}
["Table 1H: Research survey data collection and dissemination"]
[null,null,null,null,null,null,null,null,null,null,null,"WP  years","2018-2019"]
[null,null,null,null,null,null,null,null,null,null,null,"AR year",2018]
["MS","Name of survey","Acronym ","Type of data collected","Core/ Additional variable","Used as basis for advice (Y/N)","Comments","Was the sampling carried out? (Y/N/P)","Relevant International database","Was the data uploaded to the relevant database? (Y/N)","Other data assimilations? (Y/N)","Indication if AR comments are required by MS","AR comments"]
["SWE","Baltic International Trawl Survey ","BITS Q1","Biological data for Eastern Baltic Cod","C","Y",null,"Y","DATRAS","Y","N",{"$f":"IF(OR(H5=\"Y\",H5=\"\"),\"\",\"x\")","v":""}]
["SWE","Baltic International Trawl Survey ","BITS Q1","Biological data for Flounder ","C","Y",null,"Y","DATRAS","Y","N",""]
["SWE","Baltic International Trawl Survey ","BITS Q1","Biological data for Plaice ","C","Y","Only collected in SD 23","Y","DATRAS","N","N",{"$f":"IF(OR(H7=\"Y\",H7=\"\"),\"\",\"x\")","v":""}]
["SWE","Baltic International Trawl Survey ","BITS Q1","Biological data for Herring","A","N",null,"N","DATRAS","N","N",{"$f":"IF(OR(H8=\"Y\",H8=\"\"),\"\",\"x\")","v":"x"},"Additional variable, no full biological sampling is done, length measurement and total weight only."]
["SWE","Baltic International Trawl Survey ","BITS Q1","Biological data for Sprat","A","N",null,"N","DATRAS","N","N",{"$f":"IF(OR(H9=\"Y\",H9=\"\"),\"\",\"x\")","v":"x"},"Additional variable, no full biological sampling is done, length measurement and total weight only."]
["SWE","Baltic International Trawl Survey ","BITS Q1","CTD by Haul","C","Y",null,"Y","DATRAS","Y","N",""]
["SWE","Baltic International Trawl Survey ","BITS Q1","Litter items in the trawl","A","Y","Descriptor in MSFD","Y","DATRAS","Y","N",""]
["SWE","Baltic International Trawl Survey ","BITS Q1","Benthos in the trawl","A","N",null,"Y","DATRAS","Y","N",{"$f":"IF(OR(H12=\"Y\",H12=\"\"),\"\",\"x\")","v":""}]
["SWE","Baltic International Trawl Survey ","BITS Q1","Hydroacoustic data","A","N",null,"Y","DATRAS","Y","N",""]
["SWE","Baltic International Trawl Survey ","BITS Q4","Biological data for Eastern Baltic Cod","C","Y",null,"Y","DATRAS","Y","N",""]
["SWE","Baltic International Trawl Survey ","BITS Q4","Biological data for Flounder ","C","Y",null,"Y","DATRAS","Y","N",""]
["SWE","Baltic International Trawl Survey ","BITS Q1","Biological data for Plaice ","C","Y","Only collected in SD 23","Y","DATRAS","N","N",""]
["SWE","Baltic International Trawl Survey ","BITS Q4","Biological data for Herring","A","N",null,"N","DATRAS","N","N","x","Additional variable, no full biological sampling is done, length measurement and total weight only."]
["SWE","Baltic International Trawl Survey ","BITS Q4","Biological data for Sprat","A","N",null,"N","DATRAS","N","N","x","Additional variable, no full biological sampling is done, length measurement and total weight only. "]
["SWE","Baltic International Trawl Survey ","BITS Q4","CTD by Haul","C","Y",null,"Y","DATRAS","Y","N",""]
["SWE","Baltic International Trawl Survey ","BITS Q4","Litter items in the trawl","A","Y","Descriptor in MSFD","Y","DATRAS","Y","N",""]
["SWE","Baltic International Trawl Survey ","BITS Q4","Benthos in the trawl","A","N",null,"Y","DATRAS","Y","N",""]
["SWE","Baltic International Trawl Survey ","BITS Q4","Hydroacoustic data","A","N",null,"Y","DATRAS","Y","N",""]
["SWE","Baltic International Acoustic Survey","BIAS","Biological data for Herring","C","Y",null,"Y","IBAS","Y","N",""]
["SWE","Baltic International Acoustic Survey","BIAS","Biological data for Sprat","C","Y",null,"Y","IBAS","Y","N",""]
["SWE","Baltic International Acoustic Survey","BIAS","Hydroacoustic data","C","Y",null,"Y","IBAS","Y","N",""]
["SWE","Baltic International Acoustic Survey","BIAS","CTD by Haul","C","Y","Reported but not a driver for the design or assessment","Y","IBAS","Y","N",""]
["SWE","International Bottom Trawl Survey","IBTS Q1","Biological data for Cod","C","Y",null,"Y","DATRAS","Y","N",""]
["SWE","International Bottom Trawl Survey","IBTS Q1","Biological data for Haddock","C","Y",null,"Y","DATRAS","Y","N",""]
["SWE","International Bottom Trawl Survey","IBTS Q1","Biological data for Whiting","C","Y",null,"Y","DATRAS","Y","N",""]
["SWE","International Bottom Trawl Survey","IBTS Q1","Biological data for Norway Pout","C","Y",null,"Y","DATRAS","Y","N",""]
["SWE","International Bottom Trawl Survey","IBTS Q1","Biological data for Saithe","C","Y",null,"Y","DATRAS","Y","N",""]
["SWE","International Bottom Trawl Survey","IBTS Q1","Biological data for Plaice","C","Y",null,"Y","DATRAS","Y","N",""]
["SWE","International Bottom Trawl Survey","IBTS Q1","Biological data for Herring","C","Y",null,"Y","DATRAS","Y","N",""]
["SWE","International Bottom Trawl Survey","IBTS Q1","Biological data for Sprat","C","Y",null,"Y","DATRAS","Y","N",""]
["SWE","International Bottom Trawl Survey","IBTS Q1","Biological data for Sole","A","N",null,"Y","DATRAS","Y","N",""]
["SWE","International Bottom Trawl Survey","IBTS Q1","Biological data for Hake","A","N",null,"Y","DATRAS","Y","N",""]
["SWE","International Bottom Trawl Survey","IBTS Q1","Biological data for Witch flounder","A","Y",null,"Y","DATRAS","Y","N",""]
["SWE","International Bottom Trawl Survey","IBTS Q1","Biological data for Cephalopoda","C","Y",null,"Y","DATRAS","Y","N",""]
["SWE","International Bottom Trawl Survey","IBTS Q1","Biological data for Nephrops and crabs","C","Y",null,"Y","DATRAS","Y","N",""]
["SWE","International Bottom Trawl Survey","IBTS Q1","CTD by Haul","C","Y",null,"Y","DATRAS","N","Y",""]
["SWE","International Bottom Trawl Survey","IBTS Q1","Litter items in the trawl","C","Y","Descriptor in MSFD","Y","DATRAS","Y","Y",""]
["SWE","International Bottom Trawl Survey","IBTS Q1","Fish larvae","C","Y",null,"Y","DATRAS","Y","N",""]
["SWE","International Bottom Trawl Survey","IBTS Q3","Biological data for Cod","C","Y",null,"Y","DATRAS","Y","N",""]
["SWE","International Bottom Trawl Survey","IBTS Q3","Biological data for Haddock","C","Y",null,"Y","DATRAS","Y","N",""]
["SWE","International Bottom Trawl Survey","IBTS Q3","Biological data for Whiting","C","Y",null,"Y","DATRAS","Y","N",""]
["SWE","International Bottom Trawl Survey","IBTS Q3","Biological data for Norway Pout","C","Y",null,"Y","DATRAS","Y","N",""]
["SWE","International Bottom Trawl Survey","IBTS Q3","Biological data for Saithe","C","Y",null,"Y","DATRAS","Y","N",""]
["SWE","International Bottom Trawl Survey","IBTS Q3","Biological data for Plaice","C","Y",null,"Y","DATRAS","Y","N",""]
["SWE","International Bottom Trawl Survey","IBTS Q3","Biological data for Herring","C","Y",null,"Y","DATRAS","Y","N",""]
["SWE","International Bottom Trawl Survey","IBTS Q3","Biological data for Sprat","C","Y",null,"Y","DATRAS","Y","N",""]
["SWE","International Bottom Trawl Survey","IBTS Q3","Biological data for Sole","A","N",null,"Y","DATRAS","Y","N",""]
["SWE","International Bottom Trawl Survey","IBTS Q3","Biological data for Hake","A","N",null,"Y","DATRAS","Y","N",""]
["SWE","International Bottom Trawl Survey","IBTS Q3","Biological data for Witch flounder","A","Y",null,"Y","DATRAS","Y","N",""]
["SWE","International Bottom Trawl Survey","IBTS Q3","Biological data for Cephalopoda","C","Y",null,"Y","DATRAS","Y","N",""]
["SWE","International Bottom Trawl Survey","IBTS Q3","Biological data for Nephrops and crabs","C","Y",null,"Y","DATRAS","Y","N",""]
["SWE","International Bottom Trawl Survey","IBTS Q3","CTD by Haul","C","Y",null,"Y","DATRAS","N","Y",""]
["SWE","International Bottom Trawl Survey","IBTS Q3","Litter items in the trawl","C","Y","Descriptor in MSFD","Y","DATRAS","Y","Y",""]
["SWE","Nephrops TV survey (FU 3&4) ","NTV3&4","TV track for abundance of Nephrops","C","Y",null,"Y","No database","N","N",""]
["SWE","International Ecosystem Survey in the Nordic Seas","ASH","Blue whiting acoustic/biological data","C","Y","reported by Denmark",null,null,null,null,""]
["SWE","International Ecosystem Survey in the Nordic Seas","ASH","Zooplankton","C","Y","reported by Denmark",null,null,null,null,""]
["SWE","International Ecosystem Survey in the Nordic Seas","ASH","CTD by Haul","C","Y","reported by Denmark",null,null,null,null,""]
["SWE","Baltic International Trawl Survey ","BITS Q1","Stomach content cod","A","N",null,"Y","No database","N","N","","Additional parameters, not in WP 2018-2019."]
["SWE","Baltic International Trawl Survey ","BITS Q1","Stomach content flounder","A","N",null,"Y","No database","N","N","","Additional parameters, not in WP 2018-2019."]
["SWE","Baltic International Trawl Survey ","BITS Q4","Stomach content cod","A","N",null,"Y","No database","N","N","","Additional parameters, not in WP 2018-2019."]
["SWE","Baltic International Trawl Survey ","BITS Q4","Stomach content flounder","A","N",null,"Y","No database","N","N","","Additional parameters, not in WP 2018-2019."]
["SWE","Baltic International Acoustic Survey","BIAS","Acoustic sampling, Trawling, Biological samples, Stomach content cod","A","Y",null,"Y","BIAS_DB","Y","Y","","Additional parameters, not in WP 2018-2019."]
["SWE","Blue whiting survey","IBWSS","Biological data for Blue whiting in VI, VII","C","Y","reported by Netherlands",null,null,null,null,{"$f":"IF(OR(H67=\"Y\",H67=\"\"),\"\",\"x\")","v":""},"Additional reporting, not in WP 2018-2019"]
["SWE","Blue whiting survey","IBWSS","Fish species in trawl haul","A","N","reported by Netherlands",null,null,null,null,"","Additional reporting, not in WP 2018-2019"]
["SWE","Blue whiting survey","IBWSS","CTD by hydrography station","A","N","reported by Netherlands",null,null,null,null,"","Additional reporting, not in WP 2018-2019"]
["SWE","Blue whiting survey","IBWSS","Acoustic profiles in VI, VII","C","Y","reported by Netherlands",null,null,null,null,{"$f":"IF(OR(H70=\"Y\",H70=\"\"),\"\",\"x\")","v":""},"Additional reporting, not in WP 2018-2019"]
["SWE","International Bottom Trawl Survey","IBTS Q1","Length data for Mackerel","C","Y?",null,"Y","DATRAS","Y","N","","Additional reporting, not in WP 2018-2019. Due to historically low catches all\nbiological data has not been collected, only length. This will be reconsidered."]
["SWE","International Bottom Trawl Survey","IBTS Q3","Length data for Mackerel","C","Y?",null,"Y","DATRAS","Y","N","","Additional reporting, not in WP 2018-2019. Due to historically low catches all\nbiological data has not been collected, only length. This will be reconsidered."]

{"sheet":"Table2A Fishing activity variab","index":8,"n_rows":16,"n_cols":20,"rows_kept":16,"cut":false,"hidden":false,"merged":[]}
["Table 2A: Fishing activity variables data collection strategy "]
[null,null,null,null,null,null,null,null,null,null,null,null,null,null,null,null,null,null,"WP  years","2018-2019"]
[null,null,null,null,null,null,null,null,null,null,null,null,null,null,null,null,null,null,"AR year",2018]
["MS","Supra region ","Region","Variable Group ","Variable","Fishing technique ","Length class ","Metiers (level 6)","Data collected  under control regulation appropriate for scientific use (Y/N/I)","Type of data collected under control regulation used to calculate the estimates ","Expected coverage of data collected under control regulation (% of fishing trips)","Additional data collection (Y/N)","Data collection scheme ","Planned coverage of data collected under complementary data collection (% of fishing trips)","Comments","Data collected  under control regulation accessible for scientific use (Y/N/I)","Data source for complementary data collection","Achieved coverage of data collected under complementary data collection ","Response Rate (%)","AR comments"]
["SWE","Baltic Sea, North Sea and Eastern Arctic, and North Atlantic","all regions","Capacity","Number of vessels, GT, kW, Vessel Age","all fleets","0-< 10 m","all metiers","I","Community fishing fleet register",1,"N","None","NA",null,"I","NA","100%","100%"]
["SWE","Baltic Sea, North Sea and Eastern Arctic, and North Atlantic","all regions","Capacity","Number of vessels, GT, kW, Vessel Age","inactive","0-< 10 m","all metiers","I","Community fishing fleet register","NA","N","None","NA","For inactive fleet segments, it is not clear what to report under expected and planned coverage with regards to % of fishing trips","I","NA","NA","NA"]
["SWE","Baltic Sea, North Sea and Eastern Arctic, and North Atlantic","all regions","Capacity","Number of vessels, GT, kW, Vessel Age","all fleets","10 m or larger","all metiers","Y","Community fishing fleet register",1,"N","None","NA",null,"Y","NA","NA","NA"]
["SWE","Baltic Sea, North Sea and Eastern Arctic, and North Atlantic","all regions","Capacity","Number of vessels, GT, kW, Vessel Age","inactive","10 m or larger","all metiers","Y","Community fishing fleet register","NA","N","None","NA","For inactive fleet segments, it is not clear what to report under expected and planned coverage with regards to % of fishing trips","Y","NA","NA","NA"]
["SWE","Baltic Sea, North Sea and Eastern Arctic, and North Atlantic","all regions","Effort","Days at sea, fishing days, kW*fishing days, GT*fishing days, number of trips, number of fishing operations, number of nets/length, number of hooks, number of lines, number of pots, traps","all fleets","0-< 10 m","all metiers","I","Logbooks",0.11,"Y","Census",1,"Census based on monthly journals","I","NA","100%","100%"]
["SWE","Baltic Sea, North Sea and Eastern Arctic, and North Atlantic","all regions","Effort","Days at sea, fishing days, kW*fishing days, GT*fishing days, number of trips, number of fishing operations, number of nets/length, number of hooks, number of lines, number of pots, traps","inactive","0-< 10 m","all metiers","I","Logbooks","NA","Y","Census","NA","Census based on monthly journals\nFor inactive fleet segments, it is not clear what to report under expected and planned coverage with regards to % of fishing trips","I","NA","NA","NA"]
["SWE","Baltic Sea, North Sea and Eastern Arctic, and North Atlantic","all regions","Effort","Days at sea, fishing days, kW*fishing days, GT*fishing days, number of trips, number of fishing operations, number of nets/length, number of hooks, number of lines, number of pots, traps","all fleets","10 m or larger","all metiers","Y","Logbooks",1,"N","None","NA",null,"Y","NA","NA","NA"]
["SWE","Baltic Sea, North Sea and Eastern Arctic, and North Atlantic","all regions","Effort","Days at sea, fishing days, kW*fishing days, GT*fishing days, number of trips, number of fishing operations, number of nets/length, number of hooks, number of lines, number of pots, traps","inactive","10 m or larger","all metiers","Y","Logbooks","NA","N","None","NA","For inactive fleet segments, it is not clear what to report under expected and planned coverage with regards to % of fishing trips","Y","NA","NA","NA"]
["SWE","Baltic Sea, North Sea and Eastern Arctic, and North Atlantic","all regions","Landings","Value of landings total and per commercial species, Live Weight of landings total and per species,  Prices by commercial species","all fleets","0-< 10 m","all metiers","I","Sales notes, Logbooks",0.11,"Y","Census",1,"Census based on monthly journals","I","NA","100%","100%"]
["SWE","Baltic Sea, North Sea and Eastern Arctic, and North Atlantic","all regions","Landings","Value of landings total and per commercial species, Live Weight of landings total and per species,  Prices by commercial species","inactive","0-< 10 m","all metiers","I","Sales notes, Logbooks","NA","Y","Census","NA","Census based on monthly journals\nFor inactive fleet segments, it is not clear what to report under expected and planned coverage with regards to % of fishing trips","I","NA","NA","NA"]
["SWE","Baltic Sea, North Sea and Eastern Arctic, and North Atlantic","all regions","Landings","Value of landings total and per commercial species, Live Weight of landings total and per species,  Prices by commercial species","all fleets","10 m or larger","all metiers","Y","Sales Notes, Logbooks",1,"N","None","NA",null,"Y","NA","NA","NA"]
["SWE","Baltic Sea, North Sea and Eastern Arctic, and North Atlantic","all regions","Landings","Value of landings total and per commercial species, Live Weight of landings total and per species,  Prices by commercial species","inactive","10 m or larger","all metiers","Y","Sales Notes, Logbooks","NA","N","None","NA","For inactive fleet segments, it is not clear what to report under expected and planned coverage with regards to % of fishing trips","Y","NA","NA","NA"]

{"sheet":"Table3A  Pop segment fisheries","index":9,"n_rows":51,"n_cols":18,"rows_kept":51,"cut":false,"hidden":false,"merged":[]}
["Table 3A: Population segments for collection of economic and social data for fisheries"]
[null,null,null,null,null,null,null,null,null,null,null,null,null,null,null,null,"WP  years","2018-2019"]
[null,null,null,null,null,null,null,null,null,null,null,null,null,null,null,null,"AR year",2018]
["MS","Supra region ","Fishing technique ","Length class ","Cluster Name","Type of variables (E/S)","Variable","Data Source","Type of data collection scheme ","Frequency","Planned sample rate % ","Comments","Frame population","Achieved sample number","Achieved Sample Rate %","Response Rate %","Achieved Sample no/Planned sample no.","AR Comments"]
["SWE","Baltic Sea, North Sea and Eastern Arctic, and North Atlantic","Beam trawlers, Demersal trawlers and/or demersal seiners, Pelagic trawlers, Purse seiners, Dredgers, Vessel using other active gears, Vessels using Polyvalent ‘active’ gears only, Vessels using hooks, Drift and/or fixed netters, Vessels using Pots and/or traps, Vessels using other Passive gears, Vessels using Polyvalent ‘passive’ gears only, Vessels using active and passive gears","0-<10 m, 10-<12 m, 12-<18 m, 18-<24 m, 24-40 m, 40 m or larger",null,"E","Average price per species","Logbooks/Monthly Journals/Landing declarations","A - Census","A",100,null,911,911,1,1,1]
["SWE","Baltic Sea, North Sea and Eastern Arctic, and North Atlantic","Beam trawlers, Demersal trawlers and/or demersal seiners, Pelagic trawlers, Purse seiners, Dredgers, Vessel using other active gears, Vessels using Polyvalent ‘active’ gears only, Vessels using hooks, Drift and/or fixed netters, Vessels using Pots and/or traps, Vessels using other Passive gears, Vessels using Polyvalent ‘passive’ gears only, Vessels using active and passive gears","0-<10 m, 10-<12 m, 12-<18 m, 18-<24 m, 24-40 m, 40 m or larger",null,"E","Consumption of fixed capital ","Questionnaires/Tax declarations/Logbooks/Monthly Journals","A - Census","A",100,null,911,619.48,0.68,0.68,0.68]
["SWE","Baltic Sea, North Sea and Eastern Arctic, and North Atlantic","Beam trawlers, Demersal trawlers and/or demersal seiners, Pelagic trawlers, Purse seiners, Dredgers, Vessel using other active gears, Vessels using Polyvalent ‘active’ gears only, Vessels using hooks, Drift and/or fixed netters, Vessels using Pots and/or traps, Vessels using other Passive gears, Vessels using Polyvalent ‘passive’ gears only, Vessels using active and passive gears","0-<10 m, 10-<12 m, 12-<18 m, 18-<24 m, 24-40 m, 40 m or larger",null,"E","Days at sea ","Logbooks/Monthly Journals","A - Census","A",100,null,911,911,1,1,1]
["SWE","Baltic Sea, North Sea and Eastern Arctic, and North Atlantic","Beam trawlers, Demersal trawlers and/or demersal seiners, Pelagic trawlers, Purse seiners, Dredgers, Vessel using other active gears, Vessels using Polyvalent ‘active’ gears only, Vessels using hooks, Drift and/or fixed netters, Vessels using Pots and/or traps, Vessels using other Passive gears, Vessels using Polyvalent ‘passive’ gears only, Vessels using active and passive gears","0-<10 m, 10-<12 m, 12-<18 m, 18-<24 m, 24-40 m, 40 m or larger",null,"E","Energy consumption ","Questionnaires/Tax declarations/Logbooks/Monthly Journals","A - Census","A",100,null,911,719.69,0.79,0.79,0.79]
["SWE","Baltic Sea, North Sea and Eastern Arctic, and North Atlantic","Beam trawlers, Demersal trawlers and/or demersal seiners, Pelagic trawlers, Purse seiners, Dredgers, Vessel using other active gears, Vessels using Polyvalent ‘active’ gears only, Vessels using hooks, Drift and/or fixed netters, Vessels using Pots and/or traps, Vessels using other Passive gears, Vessels using Polyvalent ‘passive’ gears only, Vessels using active and passive gears","0-<10 m, 10-<12 m, 12-<18 m, 18-<24 m, 24-40 m, 40 m or larger",null,"E","Energy costs","Questionnaires/Tax declarations/Logbooks/Monthly Journals","A - Census","A",100,null,911,710.58,0.78,0.78,0.78]
["SWE","Baltic Sea, North Sea and Eastern Arctic, and North Atlantic","Beam trawlers, Demersal trawlers and/or demersal seiners, Pelagic trawlers, Purse seiners, Dredgers, Vessel using other active gears, Vessels using Polyvalent ‘active’ gears only, Vessels using hooks, Drift and/or fixed netters, Vessels using Pots and/or traps, Vessels using other Passive gears, Vessels using Polyvalent ‘passive’ gears only, Vessels using active and passive gears","0-<10 m, 10-<12 m, 12-<18 m, 18-<24 m, 24-40 m, 40 m or larger",null,"E","Engaged crew ","Questionnaires/Tax declarations/Logbooks/Monthly Journals","A - Census","A",100,null,911,747.02,0.82,0.82,0.82]
["SWE","Baltic Sea, North Sea and Eastern Arctic, and North Atlantic","Beam trawlers, Demersal trawlers and/or demersal seiners, Pelagic trawlers, Purse seiners, Dredgers, Vessel using other active gears, Vessels using Polyvalent ‘active’ gears only, Vessels using hooks, Drift and/or fixed netters, Vessels using Pots and/or traps, Vessels using other Passive gears, Vessels using Polyvalent ‘passive’ gears only, Vessels using active and passive gears","0-<10 m, 10-<12 m, 12-<18 m, 18-<24 m, 24-40 m, 40 m or larger",null,"E","Gross value of landings","Logbooks/Monthly Journals/Landing declarations","A - Census","A",100,null,911,911,1,1,1]
["SWE","Baltic Sea, North Sea and Eastern Arctic, and North Atlantic","Beam trawlers, Demersal trawlers and/or demersal seiners, Pelagic trawlers, Purse seiners, Dredgers, Vessel using other active gears, Vessels using Polyvalent ‘active’ gears only, Vessels using hooks, Drift and/or fixed netters, Vessels using Pots and/or traps, Vessels using other Passive gears, Vessels using Polyvalent ‘passive’ gears only, Vessels using active and passive gears","0-<10 m, 10-<12 m, 12-<18 m, 18-<24 m, 24-40 m, 40 m or larger",null,"E","Income from leasing out quota or other fishing rights ","Questionnaires/Tax declarations/Logbooks/Monthly Journals","A - Census","A",100,null,911,"NA","NA","NA",null,"Not applicable. This variable is not presented seperately. It is included in Other income."]
["SWE","Baltic Sea, North Sea and Eastern Arctic, and North Atlantic","Beam trawlers, Demersal trawlers and/or demersal seiners, Pelagic trawlers, Purse seiners, Dredgers, Vessel using other active gears, Vessels using Polyvalent ‘active’ gears only, Vessels using hooks, Drift and/or fixed netters, Vessels using Pots and/or traps, Vessels using other Passive gears, Vessels using Polyvalent ‘passive’ gears only, Vessels using active and passive gears","0-<10 m, 10-<12 m, 12-<18 m, 18-<24 m, 24-40 m, 40 m or larger",null,"E","Investments in tangible assets, net","Questionnaires/Tax declarations/Logbooks/Monthly Journals","A - Census","A",100,null,911,719.69,0.79,0.79,0.79]
["SWE","Baltic Sea, North Sea and Eastern Arctic, and North Atlantic","Beam trawlers, Demersal trawlers and/or demersal seiners, Pelagic trawlers, Purse seiners, Dredgers, Vessel using other active gears, Vessels using Polyvalent ‘active’ gears only, Vessels using hooks, Drift and/or fixed netters, Vessels using Pots and/or traps, Vessels using other Passive gears, Vessels using Polyvalent ‘passive’ gears only, Vessels using active and passive gears","0-<10 m, 10-<12 m, 12-<18 m, 18-<24 m, 24-40 m, 40 m or larger",null,"E","Lease/rental payments for quota or other fishing rights ","Questionnaires/Tax declarations/Logbooks/Monthly Journals","A - Census","A",100,null,911,"NA","NA","NA","","Not applicable. This variable is not presented seperately. It is included in Variable costs."]
["SWE","Baltic Sea, North Sea and Eastern Arctic, and North Atlantic","Beam trawlers, Demersal trawlers and/or demersal seiners, Pelagic trawlers, Purse seiners, Dredgers, Vessel using other active gears, Vessels using Polyvalent ‘active’ gears only, Vessels using hooks, Drift and/or fixed netters, Vessels using Pots and/or traps, Vessels using other Passive gears, Vessels using Polyvalent ‘passive’ gears only, Vessels using active and passive gears","0-<10 m, 10-<12 m, 12-<18 m, 18-<24 m, 24-40 m, 40 m or larger",null,"E","Long/short Debt ","Questionnaires/Tax declarations/Logbooks/Monthly Journals","A - Census","A",100,null,911,838.12,0.92,0.92,0.92]
["SWE","Baltic Sea, North Sea and Eastern Arctic, and North Atlantic","Beam trawlers, Demersal trawlers and/or demersal seiners, Pelagic trawlers, Purse seiners, Dredgers, Vessel using other active gears, Vessels using Polyvalent ‘active’ gears only, Vessels using hooks, Drift and/or fixed netters, Vessels using Pots and/or traps, Vessels using other Passive gears, Vessels using Polyvalent ‘passive’ gears only, Vessels using active and passive gears","0-<10 m, 10-<12 m, 12-<18 m, 18-<24 m, 24-40 m, 40 m or larger",null,"E","Mean age of vessels ","EU Fleet register","A - Census","A",100,null,911,911,1,1,1]
["SWE","Baltic Sea, North Sea and Eastern Arctic, and North Atlantic","Beam trawlers, Demersal trawlers and/or demersal seiners, Pelagic trawlers, Purse seiners, Dredgers, Vessel using other active gears, Vessels using Polyvalent ‘active’ gears only, Vessels using hooks, Drift and/or fixed netters, Vessels using Pots and/or traps, Vessels using other Passive gears, Vessels using Polyvalent ‘passive’ gears only, Vessels using active and passive gears","0-<10 m, 10-<12 m, 12-<18 m, 18-<24 m, 24-40 m, 40 m or larger",null,"E","Mean LOA of vessels ","EU Fleet register","A - Census","A",100,null,911,911,1,1,1]
["SWE","Baltic Sea, North Sea and Eastern Arctic, and North Atlantic","Beam trawlers, Demersal trawlers and/or demersal seiners, Pelagic trawlers, Purse seiners, Dredgers, Vessel using other active gears, Vessels using Polyvalent ‘active’ gears only, Vessels using hooks, Drift and/or fixed netters, Vessels using Pots and/or traps, Vessels using other Passive gears, Vessels using Polyvalent ‘passive’ gears only, Vessels using active and passive gears","0-<10 m, 10-<12 m, 12-<18 m, 18-<24 m, 24-40 m, 40 m or larger",null,"E","Non-variable costs","Questionnaires/Tax declarations/Logbooks/Monthly Journals","A - Census","A",100,null,911,728.80000000000007,0.8,0.8,0.8]
["SWE","Baltic Sea, North Sea and Eastern Arctic, and North Atlantic","Beam trawlers, Demersal trawlers and/or demersal seiners, Pelagic trawlers, Purse seiners, Dredgers, Vessel using other active gears, Vessels using Polyvalent ‘active’ gears only, Vessels using hooks, Drift and/or fixed netters, Vessels using Pots and/or traps, Vessels using other Passive gears, Vessels using Polyvalent ‘passive’ gears only, Vessels using active and passive gears","0-<10 m, 10-<12 m, 12-<18 m, 18-<24 m, 24-40 m, 40 m or larger",null,"E","Number of fishing enterprises/units  ","Questionnaires/Tax declarations/Logbooks/Monthly Journals","A - Census","A",100,null,911,911,1,1,1]
["SWE","Baltic Sea, North Sea and Eastern Arctic, and North Atlantic","Beam trawlers, Demersal trawlers and/or demersal seiners, Pelagic trawlers, Purse seiners, Dredgers, Vessel using other active gears, Vessels using Polyvalent ‘active’ gears only, Vessels using hooks, Drift and/or fixed netters, Vessels using Pots and/or traps, Vessels using other Passive gears, Vessels using Polyvalent ‘passive’ gears only, Vessels using active and passive gears","0-<10 m, 10-<12 m, 12-<18 m, 18-<24 m, 24-40 m, 40 m or larger",null,"E","Number of vessels","EU Fleet register","A - Census","A",100,null,911,911,1,1,1]
["SWE","Baltic Sea, North Sea and Eastern Arctic, and North Atlantic","Beam trawlers, Demersal trawlers and/or demersal seiners, Pelagic trawlers, Purse seiners, Dredgers, Vessel using other active gears, Vessels using Polyvalent ‘active’ gears only, Vessels using hooks, Drift and/or fixed netters, Vessels using Pots and/or traps, Vessels using other Passive gears, Vessels using Polyvalent ‘passive’ gears only, Vessels using active and passive gears","0-<10 m, 10-<12 m, 12-<18 m, 18-<24 m, 24-40 m, 40 m or larger",null,"E","Operating subsidies ","Questionnaires/Tax declarations/Logbooks/Monthly Journals","A - Census","A",100,null,911,"NA","NA","NA","","No subsidies."]
["SWE","Baltic Sea, North Sea and Eastern Arctic, and North Atlantic","Beam trawlers, Demersal trawlers and/or demersal seiners, Pelagic trawlers, Purse seiners, Dredgers, Vessel using other active gears, Vessels using Polyvalent ‘active’ gears only, Vessels using hooks, Drift and/or fixed netters, Vessels using Pots and/or traps, Vessels using other Passive gears, Vessels using Polyvalent ‘passive’ gears only, Vessels using active and passive gears","0-<10 m, 10-<12 m, 12-<18 m, 18-<24 m, 24-40 m, 40 m or larger",null,"E","Other income","Questionnaires/Tax declarations/Logbooks/Monthly Journals","A - Census","A",100,null,911,838.12,0.92,0.92,0.92]
["SWE","Baltic Sea, North Sea and Eastern Arctic, and North Atlantic","Beam trawlers, Demersal trawlers and/or demersal seiners, Pelagic trawlers, Purse seiners, Dredgers, Vessel using other active gears, Vessels using Polyvalent ‘active’ gears only, Vessels using hooks, Drift and/or fixed netters, Vessels using Pots and/or traps, Vessels using other Passive gears, Vessels using Polyvalent ‘passive’ gears only, Vessels using active and passive gears","0-<10 m, 10-<12 m, 12-<18 m, 18-<24 m, 24-40 m, 40 m or larger",null,"E","Personnel costs ","Questionnaires/Tax declarations/Logbooks/Monthly Journals","A - Census","A",100,null,911,819.9,0.9,0.9,0.9]
["SWE","Baltic Sea, North Sea and Eastern Arctic, and North Atlantic","Beam trawlers, Demersal trawlers and/or demersal seiners, Pelagic trawlers, Purse seiners, Dredgers, Vessel using other active gears, Vessels using Polyvalent ‘active’ gears only, Vessels using hooks, Drift and/or fixed netters, Vessels using Pots and/or traps, Vessels using other Passive gears, Vessels using Polyvalent ‘passive’ gears only, Vessels using active and passive gears","0-<10 m, 10-<12 m, 12-<18 m, 18-<24 m, 24-40 m, 40 m or larger",null,"E","Repair and maintenance costs ","Questionnaires/Tax declarations/Logbooks/Monthly Journals","A - Census","A",100,null,911,710.58,0.78,0.78,0.78]
["SWE","Baltic Sea, North Sea and Eastern Arctic, and North Atlantic","Beam trawlers, Demersal trawlers and/or demersal seiners, Pelagic trawlers, Purse seiners, Dredgers, Vessel using other active gears, Vessels using Polyvalent ‘active’ gears only, Vessels using hooks, Drift and/or fixed netters, Vessels using Pots and/or traps, Vessels using other Passive gears, Vessels using Polyvalent ‘passive’ gears only, Vessels using active and passive gears","0-<10 m, 10-<12 m, 12-<18 m, 18-<24 m, 24-40 m, 40 m or larger",null,"E","Subsidies on investments  ","Questionnaires/Tax declarations/Logbooks/Monthly Journals","A - Census","A",100,null,911,"NA","NA","NA","","No subsidies."]
["SWE","Baltic Sea, North Sea and Eastern Arctic, and North Atlantic","Beam trawlers, Demersal trawlers and/or demersal seiners, Pelagic trawlers, Purse seiners, Dredgers, Vessel using other active gears, Vessels using Polyvalent ‘active’ gears only, Vessels using hooks, Drift and/or fixed netters, Vessels using Pots and/or traps, Vessels using other Passive gears, Vessels using Polyvalent ‘passive’ gears only, Vessels using active and passive gears","0-<10 m, 10-<12 m, 12-<18 m, 18-<24 m, 24-40 m, 40 m or larger",null,"E","Total assets ","Questionnaires/Tax declarations/Logbooks/Monthly Journals","A - Census","A",100,null,911,838.12,0.92,0.92,0.92]
["SWE","Baltic Sea, North Sea and Eastern Arctic, and North Atlantic","Beam trawlers, Demersal trawlers and/or demersal seiners, Pelagic trawlers, Purse seiners, Dredgers, Vessel using other active gears, Vessels using Polyvalent ‘active’ gears only, Vessels using hooks, Drift and/or fixed netters, Vessels using Pots and/or traps, Vessels using other Passive gears, Vessels using Polyvalent ‘passive’ gears only, Vessels using active and passive gears","0-<10 m, 10-<12 m, 12-<18 m, 18-<24 m, 24-40 m, 40 m or larger",null,"E","Total hours worked per year ","Questionnaires/Tax declarations/Logbooks/Monthly Journals","A - Census","A",100,null,911,255.08,0.28000000000000003,0.28000000000000003,0.28000000000000003]
["SWE","Baltic Sea, North Sea and Eastern Arctic, and North Atlantic","Beam trawlers, Demersal trawlers and/or demersal seiners, Pelagic trawlers, Purse seiners, Dredgers, Vessel using other active gears, Vessels using Polyvalent ‘active’ gears only, Vessels using hooks, Drift and/or fixed netters, Vessels using Pots and/or traps, Vessels using other Passive gears, Vessels using Polyvalent ‘passive’ gears only, Vessels using active and passive gears","0-<10 m, 10-<12 m, 12-<18 m, 18-<24 m, 24-40 m, 40 m or larger",null,"E","Total vessel's power ","EU Fleet register","A - Census","A",100,null,911,911,1,1,1]
["SWE","Baltic Sea, North Sea and Eastern Arctic, and North Atlantic","Beam trawlers, Demersal trawlers and/or demersal seiners, Pelagic trawlers, Purse seiners, Dredgers, Vessel using other active gears, Vessels using Polyvalent ‘active’ gears only, Vessels using hooks, Drift and/or fixed netters, Vessels using Pots and/or traps, Vessels using other Passive gears, Vessels using Polyvalent ‘passive’ gears only, Vessels using active and passive gears","0-<10 m, 10-<12 m, 12-<18 m, 18-<24 m, 24-40 m, 40 m or larger",null,"E","Total vessel's tonnage","EU Fleet register","A - Census","A",100,null,911,911,1,1,1]
["SWE","Baltic Sea, North Sea and Eastern Arctic, and North Atlantic","Beam trawlers, Demersal trawlers and/or demersal seiners, Pelagic trawlers, Purse seiners, Dredgers, Vessel using other active gears, Vessels using Polyvalent ‘active’ gears only, Vessels using hooks, Drift and/or fixed netters, Vessels using Pots and/or traps, Vessels using other Passive gears, Vessels using Polyvalent ‘passive’ gears only, Vessels using active and passive gears","0-<10 m, 10-<12 m, 12-<18 m, 18-<24 m, 24-40 m, 40 m or larger",null,"E","Unpaid labour ","Questionnaires/Tax declarations/Logbooks/Monthly Journals","A - Census","A",100,null,911,583.04,0.64,0.64,0.64]
["SWE","Baltic Sea, North Sea and Eastern Arctic, and North Atlantic","Beam trawlers, Demersal trawlers and/or demersal seiners, Pelagic trawlers, Purse seiners, Dredgers, Vessel using other active gears, Vessels using Polyvalent ‘active’ gears only, Vessels using hooks, Drift and/or fixed netters, Vessels using Pots and/or traps, Vessels using other Passive gears, Vessels using Polyvalent ‘passive’ gears only, Vessels using active and passive gears","0-<10 m, 10-<12 m, 12-<18 m, 18-<24 m, 24-40 m, 40 m or larger",null,"E","Value of landings per species ","Logbooks/Monthly Journals/Landing declarations","A - Census","A",100,null,911,911,1,1,1]
["SWE","Baltic Sea, North Sea and Eastern Arctic, and North Atlantic","Beam trawlers, Demersal trawlers and/or demersal seiners, Pelagic trawlers, Purse seiners, Dredgers, Vessel using other active gears, Vessels using Polyvalent ‘active’ gears only, Vessels using hooks, Drift and/or fixed netters, Vessels using Pots and/or traps, Vessels using other Passive gears, Vessels using Polyvalent ‘passive’ gears only, Vessels using active and passive gears","0-<10 m, 10-<12 m, 12-<18 m, 18-<24 m, 24-40 m, 40 m or larger",null,"E","Value of physical capital ","Questionnaires/Tax declarations/Logbooks/Monthly Journals","A - Census","A",100,null,911,619.48,0.68,0.68,0.68]
["SWE","Baltic Sea, North Sea and Eastern Arctic, and North Atlantic","Beam trawlers, Demersal trawlers and/or demersal seiners, Pelagic trawlers, Purse seiners, Dredgers, Vessel using other active gears, Vessels using Polyvalent ‘active’ gears only, Vessels using hooks, Drift and/or fixed netters, Vessels using Pots and/or traps, Vessels using other Passive gears, Vessels using Polyvalent ‘passive’ gears only, Vessels using active and passive gears","0-<10 m, 10-<12 m, 12-<18 m, 18-<24 m, 24-40 m, 40 m or larger",null,"E","Value of quota and other fishing rights ","Questionnaires/Tax declarations/Logbooks/Monthly Journals","A - Census","A",100,null,911,"NA","NA","NA","","NA"]
["SWE","Baltic Sea, North Sea and Eastern Arctic, and North Atlantic","Beam trawlers, Demersal trawlers and/or demersal seiners, Pelagic trawlers, Purse seiners, Dredgers, Vessel using other active gears, Vessels using Polyvalent ‘active’ gears only, Vessels using hooks, Drift and/or fixed netters, Vessels using Pots and/or traps, Vessels using other Passive gears, Vessels using Polyvalent ‘passive’ gears only, Vessels using active and passive gears","0-<10 m, 10-<12 m, 12-<18 m, 18-<24 m, 24-40 m, 40 m or larger",null,"E","Value of unpaid labour ","Questionnaires/Tax declarations/Logbooks/Monthly Journals","A - Census","A",100,null,911,747.02,0.82,0.82,0.82]
["SWE","Baltic Sea, North Sea and Eastern Arctic, and North Atlantic","Beam trawlers, Demersal trawlers and/or demersal seiners, Pelagic trawlers, Purse seiners, Dredgers, Vessel using other active gears, Vessels using Polyvalent ‘active’ gears only, Vessels using hooks, Drift and/or fixed netters, Vessels using Pots and/or traps, Vessels using other Passive gears, Vessels using Polyvalent ‘passive’ gears only, Vessels using active and passive gears","0-<10 m, 10-<12 m, 12-<18 m, 18-<24 m, 24-40 m, 40 m or larger",null,"E","Variable costs","Questionnaires/Tax declarations/Logbooks/Monthly Journals","A - Census","A",100,null,911,728.80000000000007,0.8,0.8,0.8]
["SWE","Baltic Sea, North Sea and Eastern Arctic, and North Atlantic","N/A","0-<10 m, 10-<12 m, 12-<18 m, 18-<24 m, 24-40 m, 40 m or larger",null,"E","Consumption of fixed capital ","Questionnaires/Tax declarations/Logbooks/Monthly Journals","A - Census","A",100,null,298,202.64000000000001,0.68,0.68,0.68,"Consumption of fixed capital for inactive vessels are estimated via a proxy, which is active vessels within same length and gear segments. Achieved sample rate refers to achieved sample rate in the active segment."]
["SWE","Baltic Sea, North Sea and Eastern Arctic, and North Atlantic","N/A","0-<10 m, 10-<12 m, 12-<18 m, 18-<24 m, 24-40 m, 40 m or larger",null,"E","Mean age of vessels ","EU Fleet register","A - Census","A",100,null,298,298,1,1,1]
["SWE","Baltic Sea, North Sea and Eastern Arctic, and North Atlantic","N/A","0-<10 m, 10-<12 m, 12-<18 m, 18-<24 m, 24-40 m, 40 m or larger",null,"E","Mean LOA of vessels ","EU Fleet register","A - Census","A",100,null,298,298,1,1,1]
["SWE","Baltic Sea, North Sea and Eastern Arctic, and North Atlantic","N/A","0-<10 m, 10-<12 m, 12-<18 m, 18-<24 m, 24-40 m, 40 m or larger",null,"E","Number of vessels","EU Fleet register","A - Census","A",100,null,298,298,1,1,1]
["SWE","Baltic Sea, North Sea and Eastern Arctic, and North Atlantic","N/A","0-<10 m, 10-<12 m, 12-<18 m, 18-<24 m, 24-40 m, 40 m or larger",null,"E","Total vessel's power ","EU Fleet register","A - Census","A",100,null,298,298,1,1,1]
["SWE","Baltic Sea, North Sea and Eastern Arctic, and North Atlantic","N/A","0-<10 m, 10-<12 m, 12-<18 m, 18-<24 m, 24-40 m, 40 m or larger",null,"E","Total vessel's tonnage","EU Fleet register","A - Census","A",100,null,298,298,1,1,1]
["SWE","Baltic Sea, North Sea and Eastern Arctic, and North Atlantic","N/A","0-<10 m, 10-<12 m, 12-<18 m, 18-<24 m, 24-40 m, 40 m or larger",null,"E","Value of physical capital ","Questionnaires/Tax declarations/Logbooks/Monthly Journals","A - Census","A",100,null,298,202.64000000000001,0.68,0.68,0.68,"Value of physical capital for inactive vessels are estimated via a proxy, which is active vessels within same length and gear segments. Achieved sample rate refers to achieved sample rate in the active segment."]
["SWE","Baltic Sea, North Sea and Eastern Arctic, and North Atlantic","N/A","0-<10 m, 10-<12 m, 12-<18 m, 18-<24 m, 24-40 m, 40 m or larger",null,"E","Value of quota and other fishing rights ","Questionnaires/Tax declarations/Logbooks/Monthly Journals","A - Census","A",100,null,298,"NA","NA","NA","","NA"]
["SWE","Baltic Sea, North Sea and Eastern Arctic, and North Atlantic","Beam trawlers, Demersal trawlers and/or demersal seiners, Pelagic trawlers, Purse seiners, Dredgers, Vessel using other active gears, Vessels using Polyvalent ‘active’ gears only, Vessels using hooks, Drift and/or fixed netters, Vessels using Pots and/or traps, Vessels using other Passive gears, Vessels using Polyvalent ‘passive’ gears only, Vessels using active and passive gears","0-<10 m, 10-<12 m, 12-<18 m, 18-<24 m, 24-40 m, 40 m or larger",null,"S","Employment by age","Questionnaire","A - Census","Every third year",100,null,911,573.92999999999995,0.63,0.63,0.62999999999999989]
["SWE","Baltic Sea, North Sea and Eastern Arctic, and North Atlantic","Beam trawlers, Demersal trawlers and/or demersal seiners, Pelagic trawlers, Purse seiners, Dredgers, Vessel using other active gears, Vessels using Polyvalent ‘active’ gears only, Vessels using hooks, Drift and/or fixed netters, Vessels using Pots and/or traps, Vessels using other Passive gears, Vessels using Polyvalent ‘passive’ gears only, Vessels using active and passive gears","0-<10 m, 10-<12 m, 12-<18 m, 18-<24 m, 24-40 m, 40 m or larger",null,"S","Employment by education level","Questionnaire","A - Census","Every third year",100,null,911,236.86,0.26,0.26,0.26]
["SWE","Baltic Sea, North Sea and Eastern Arctic, and North Atlantic","Beam trawlers, Demersal trawlers and/or demersal seiners, Pelagic trawlers, Purse seiners, Dredgers, Vessel using other active gears, Vessels using Polyvalent ‘active’ gears only, Vessels using hooks, Drift and/or fixed netters, Vessels using Pots and/or traps, Vessels using other Passive gears, Vessels using Polyvalent ‘passive’ gears only, Vessels using active and passive gears","0-<10 m, 10-<12 m, 12-<18 m, 18-<24 m, 24-40 m, 40 m or larger",null,"S","Employment by employment status","Questionnaire","A - Census","Every third year",100,null,911,583.04,0.64,0.64,0.64]
["SWE","Baltic Sea, North Sea and Eastern Arctic, and North Atlantic","Beam trawlers, Demersal trawlers and/or demersal seiners, Pelagic trawlers, Purse seiners, Dredgers, Vessel using other active gears, Vessels using Polyvalent ‘active’ gears only, Vessels using hooks, Drift and/or fixed netters, Vessels using Pots and/or traps, Vessels using other Passive gears, Vessels using Polyvalent ‘passive’ gears only, Vessels using active and passive gears","0-<10 m, 10-<12 m, 12-<18 m, 18-<24 m, 24-40 m, 40 m or larger",null,"S","Employment by gender","Questionnaire","A - Census","Every third year",100,null,911,583.04,0.64,0.64,0.64]
["SWE","Baltic Sea, North Sea and Eastern Arctic, and North Atlantic","Beam trawlers, Demersal trawlers and/or demersal seiners, Pelagic trawlers, Purse seiners, Dredgers, Vessel using other active gears, Vessels using Polyvalent ‘active’ gears only, Vessels using hooks, Drift and/or fixed netters, Vessels using Pots and/or traps, Vessels using other Passive gears, Vessels using Polyvalent ‘passive’ gears only, Vessels using active and passive gears","0-<10 m, 10-<12 m, 12-<18 m, 18-<24 m, 24-40 m, 40 m or larger",null,"S","Employment by nationality","Questionnaire","A - Census","Every third year",100,null,911,346.18,0.38,0.38,0.38]
["SWE","Baltic Sea, North Sea and Eastern Arctic, and North Atlantic","Beam trawlers, Demersal trawlers and/or demersal seiners, Pelagic trawlers, Purse seiners, Dredgers, Vessel using other active gears, Vessels using Polyvalent ‘active’ gears only, Vessels using hooks, Drift and/or fixed netters, Vessels using Pots and/or traps, Vessels using other Passive gears, Vessels using Polyvalent ‘passive’ gears only, Vessels using active and passive gears","0-<10 m, 10-<12 m, 12-<18 m, 18-<24 m, 24-40 m, 40 m or larger",null,"S","Full time equivalent by gender","Questionnaire","A - Census","Every third year",100,null,911,583.04,0.64,0.64,0.64]
["SWE","Baltic Sea, North Sea and Eastern Arctic, and North Atlantic","Beam trawlers, Demersal trawlers and/or demersal seiners, Pelagic trawlers, Purse seiners, Dredgers, Vessel using other active gears, Vessels using Polyvalent ‘active’ gears only, Vessels using hooks, Drift and/or fixed netters, Vessels using Pots and/or traps, Vessels using other Passive gears, Vessels using Polyvalent ‘passive’ gears only, Vessels using active and passive gears","0-<10 m, 10-<12 m, 12-<18 m, 18-<24 m, 24-40 m, 40 m or larger",null,"S","Full time equivalent by nationality","Questionnaire","A - Census","Every third year",100,null,911,346.18,0.38,0.38,0.38]
["SWE","Baltic Sea, North Sea and Eastern Arctic, and North Atlantic","Beam trawlers, Demersal trawlers and/or demersal seiners, Pelagic trawlers, Purse seiners, Dredgers, Vessel using other active gears, Vessels using Polyvalent ‘active’ gears only, Vessels using hooks, Drift and/or fixed netters, Vessels using Pots and/or traps, Vessels using other Passive gears, Vessels using Polyvalent ‘passive’ gears only, Vessels using active and passive gears","0-<10 m, 10-<12 m, 12-<18 m, 18-<24 m, 24-40 m, 40 m or larger",null,"S","Unpaid labour by gender","Questionnaire","A - Census","Every third year",100,null,911,573.92999999999995,0.63,0.63,0.62999999999999989]

{"sheet":"Table3B Pop segments aquacultur","index":10,"n_rows":293,"n_cols":18,"rows_kept":293,"cut":false,"hidden":false,"merged":[]}
["Table 3B: Population segments for collection of economic and social data for aquaculture"]
[null,null,null,null,null,null,null,null,null,null,null,null,null,null,null,null,"WP  years","2018-2019"]
[null,null,null,null,null,null,null,null,null,null,null,null,null,null,null,null,"AR year",2018]
["MS","Techniques","Species group","Type of variables (E/S)","Variable","Data source","Type of data collection scheme ","Threshold (Y/N)","Threshold Type","Frequency","Planned sample rate % ","Comments","Frame population","Achieved sample number","Achieved Sample Rate %","Response Rate %","Achieved Sample no/Planned sample no.","AR Comment"]
["SWE","Hatcheries and nurseries","Salmon and trout","E","Gross sales ","Financial accounts","A - Census","Y",3,"every year",100,"Salmon and trout needs to be clustered",136,0,{"$f":"N5/M5","v":0},{"$f":"O5","v":0},{"$f":"N5/(M5*K5/100)","v":0},"Segment 8.8 - data quality is too poor to be collected from national register"]
["SWE","Ponds","Other freshwater fish","E","Gross sales ","Financial accounts","A - Census","Y",3,"every year",100,null,136,74,{"$f":"N6/M6","v":0.54411764705882348},{"$f":"O6","v":0.54411764705882348},{"$f":"N6/(M6*K6/100)","v":0.54411764705882348}]
["SWE","Recirculating systems","Other freshwater fish","E","Gross sales ","Financial accounts","A - Census","Y",3,"every year",100,null,136,74,0.54411764705882348,0.54411764705882348,0.54411764705882348]
["SWE","Cages","Other freshwater fish","E","Gross sales ","Financial accounts","A - Census","Y",3,"every year",100,null,136,74,0.54411764705882348,0.54411764705882348,0.54411764705882348]
["SWE","Polyculture","Other freshwater fish","E","Gross sales ","Financial accounts","A - Census","Y",3,"every year",100,null,136,74,0.54411764705882348,0.54411764705882348,0.54411764705882348,"replaced with \"Tanks and raceways\" seg8.2"]
["SWE","Hatcheries and nurseries","Other freshwater fish","E","Gross sales ","Financial accounts","A - Census","Y",3,"every year",100,null,136,74,0.54411764705882348,0.54411764705882348,0.54411764705882348]
["SWE","Other","Mussels and Oysters","E","Gross sales ","Financial accounts","A - Census","Y",3,"every year",100,"Mussels and Oysters needs to be clustered",136,74,0.54411764705882348,0.54411764705882348,0.54411764705882348]
["SWE","Other","Crustaceans","E","Gross sales ","Financial accounts","A - Census","Y",3,"every year",100,null,136,74,0.54411764705882348,0.54411764705882348,0.54411764705882348]
["SWE","Hatcheries and nurseries","Salmon and trout","E","Operating subsidies","Managing authority","A - Census","Y",3,"every year",100,"Salmon and trout needs to be clustered",136,"N/A","N/A","N/A","N/A","No such funds exist in Sweden"]
["SWE","Ponds","Other freshwater fish","E","Operating subsidies","Managing authority","A - Census","Y",3,"every year",100,null,136,"N/A","N/A","N/A","N/A","No such funds exist in Sweden"]
["SWE","Recirculating systems","Other freshwater fish","E","Operating subsidies","Managing authority","A - Census","Y",3,"every year",100,null,136,"N/A","N/A","N/A","N/A","No such funds exist in Sweden"]
["SWE","Cages","Other freshwater fish","E","Operating subsidies","Managing authority","A - Census","Y",3,"every year",100,null,136,"N/A","N/A","N/A","N/A","No such funds exist in Sweden"]
["SWE","Polyculture","Other freshwater fish","E","Operating subsidies","Managing authority","A - Census","Y",3,"every year",100,null,136,"N/A","N/A","N/A","N/A","No such funds exist in Sweden"]
["SWE","Hatcheries and nurseries","Other freshwater fish","E","Operating subsidies","Managing authority","A - Census","Y",3,"every year",100,null,136,"N/A","N/A","N/A","N/A","No such funds exist in Sweden"]
["SWE","Other","Mussels and Oysters","E","Operating subsidies","Managing authority","A - Census","Y",3,"every year",100,"Mussels and Oysters needs to be clustered",136,"N/A","N/A","N/A","N/A","No such funds exist in Sweden"]
["SWE","Other","Crustaceans","E","Operating subsidies","Managing authority","A - Census","Y",3,"every year",100,null,136,"N/A","N/A","N/A","N/A","No such funds exist in Sweden"]
["SWE","Hatcheries and nurseries","Salmon and trout","E","Subsidies on investment","Managing authority","A - Census","Y",3,"every year",100,"Salmon and trout needs to be clustered",136,136,1,1,1,"Only available as total"]
["SWE","Ponds","Other freshwater fish","E","Subsidies on investment","Managing authority","A - Census","Y",3,"every year",100,null,136,136,1,1,1,"Only available as total"]
["SWE","Recirculating systems","Other freshwater fish","E","Subsidies on investment","Managing authority","A - Census","Y",3,"every year",100,null,136,136,1,1,1,"Only available as total"]
["SWE","Cages","Other freshwater fish","E","Subsidies on investment","Managing authority","A - Census","Y",3,"every year",100,null,136,136,1,1,1,"Only available as total"]
["SWE","Polyculture","Other freshwater fish","E","Subsidies on investment","Managing authority","A - Census","Y",3,"every year",100,null,136,136,1,1,1,"Only available as total"]
["SWE","Hatcheries and nurseries","Other freshwater fish","E","Subsidies on investment","Managing authority","A - Census","Y",3,"every year",100,null,136,136,1,1,1,"Only available as total"]
["SWE","Other","Mussels and Oysters","E","Subsidies on investment","Managing authority","A - Census","Y",3,"every year",100,"Mussels and Oysters needs to be clustered",136,136,1,1,1,"Only available as total"]
["SWE","Other","Crustaceans","E","Subsidies on investment","Managing authority","A - Census","Y",3,"every year",100,null,136,136,1,1,1,"Only available as total"]
["SWE","Hatcheries and nurseries","Salmon and trout","E","Other income","Financial accounts","A - Census","Y",3,"every year",100,"Salmon and trout needs to be clustered",136,0,0,0,0,"Segment 8.8 - data quality is too poor to be collected from national register"]
["SWE","Ponds","Other freshwater fish","E","Other income","Financial accounts","A - Census","Y",3,"every year",100,null,136,74,0.54411764705882348,0.54411764705882348,0.54411764705882348]
["SWE","Recirculating systems","Other freshwater fish","E","Other income","Financial accounts","A - Census","Y",3,"every year",100,null,136,74,0.54411764705882348,0.54411764705882348,0.54411764705882348]
["SWE","Cages","Other freshwater fish","E","Other income","Financial accounts","A - Census","Y",3,"every year",100,null,136,74,0.54411764705882348,0.54411764705882348,0.54411764705882348]
["SWE","Polyculture","Other freshwater fish","E","Other income","Financial accounts","A - Census","Y",3,"every year",100,null,136,74,0.54411764705882348,0.54411764705882348,0.54411764705882348,"replaced with \"Tanks and raceways\" seg8.2"]
["SWE","Hatcheries and nurseries","Other freshwater fish","E","Other income","Financial accounts","A - Census","Y",3,"every year",100,null,136,74,0.54411764705882348,0.54411764705882348,0.54411764705882348]
["SWE","Other","Mussels and Oysters","E","Other income","Financial accounts","A - Census","Y",3,"every year",100,"Mussels and Oysters needs to be clustered",136,74,0.54411764705882348,0.54411764705882348,0.54411764705882348]
["SWE","Other","Crustaceans","E","Other income","Financial accounts","A - Census","Y",3,"every year",100,null,136,74,0.54411764705882348,0.54411764705882348,0.54411764705882348]
["SWE","Hatcheries and nurseries","Salmon and trout","E","Total income","Financial accounts","A - Census","Y",3,"every year",100,"Salmon and trout needs to be clustered",136,0,0,0,0,"Segment 8.8 - data quality is too poor to be collected from national register"]
["SWE","Ponds","Other freshwater fish","E","Total income","Financial accounts","A - Census","Y",3,"every year",100,null,136,74,0.54411764705882348,0.54411764705882348,0.54411764705882348,"not a reported variable in EUM but calculated from gross sales, other income and operating subsidies"]
["SWE","Recirculating systems","Other freshwater fish","E","Total income","Financial accounts","A - Census","Y",3,"every year",100,null,136,74,0.54411764705882348,0.54411764705882348,0.54411764705882348,"not a reported variable in EUM but calculated from gross sales, other income and operating subsidies"]
["SWE","Cages","Other freshwater fish","E","Total income","Financial accounts","A - Census","Y",3,"every year",100,null,136,74,0.54411764705882348,0.54411764705882348,0.54411764705882348,"not a reported variable in EUM but calculated from gross sales, other income and operating subsidies"]
["SWE","Polyculture","Other freshwater fish","E","Total income","Financial accounts","A - Census","Y",3,"every year",100,null,136,74,0.54411764705882348,0.54411764705882348,0.54411764705882348,"not a reported variable in EUM but calculated from gross sales, other income and operating subsidies"]
["SWE","Hatcheries and nurseries","Other freshwater fish","E","Total income","Financial accounts","A - Census","Y",3,"every year",100,null,136,74,0.54411764705882348,0.54411764705882348,0.54411764705882348,"not a reported variable in EUM but calculated from gross sales, other income and operating subsidies"]
["SWE","Other","Mussels and Oysters","E","Total income","Financial accounts","A - Census","Y",3,"every year",100,"Mussels and Oysters needs to be clustered",136,74,0.54411764705882348,0.54411764705882348,0.54411764705882348,"not a reported variable in EUM but calculated from gross sales, other income and operating subsidies"]
["SWE","Other","Crustaceans","E","Total income","Financial accounts","A - Census","Y",3,"every year",100,null,136,74,0.54411764705882348,0.54411764705882348,0.54411764705882348,"not a reported variable in EUM but calculated from gross sales, other income and operating subsidies"]
["SWE","Hatcheries and nurseries","Salmon and trout","E","Personnel costs","Financial accounts","A - Census","Y",3,"every year",100,"Salmon and trout needs to be clustered",136,0,0,0,0,"Segment 8.8 - data quality is too poor to be collected from national register"]
["SWE","Ponds","Other freshwater fish","E","Personnel costs","Financial accounts","A - Census","Y",3,"every year",100,null,136,74,0.54411764705882348,0.54411764705882348,0.54411764705882348]
["SWE","Recirculating systems","Other freshwater fish","E","Personnel costs","Financial accounts","A - Census","Y",3,"every year",100,null,136,74,0.54411764705882348,0.54411764705882348,0.54411764705882348]
["SWE","Cages","Other freshwater fish","E","Personnel costs","Financial accounts","A - Census","Y",3,"every year",100,null,136,74,0.54411764705882348,0.54411764705882348,0.54411764705882348]
["SWE","Polyculture","Other freshwater fish","E","Personnel costs","Financial accounts","A - Census","Y",3,"every year",100,null,136,74,0.54411764705882348,0.54411764705882348,0.54411764705882348,"replaced with \"Tanks and raceways\" seg8.2"]
["SWE","Hatcheries and nurseries","Other freshwater fish","E","Personnel costs","Financial accounts","A - Census","Y",3,"every year",100,null,136,74,0.54411764705882348,0.54411764705882348,0.54411764705882348]
["SWE","Other","Mussels and Oysters","E","Personnel costs","Financial accounts","A - Census","Y",3,"every year",100,"Mussels and Oysters needs to be clustered",136,74,0.54411764705882348,0.54411764705882348,0.54411764705882348]
["SWE","Other","Crustaceans","E","Personnel costs","Financial accounts","A - Census","Y",3,"every year",100,null,136,74,0.54411764705882348,0.54411764705882348,0.54411764705882348]
["SWE","Hatcheries and nurseries","Salmon and trout","E","Value of unpaid labour","questionnaires","A - Census","Y",3,"every year",100,"Salmon and trout needs to be clustered",136,72,0.52941176470588236,0.52941176470588236,0.52941176470588236]
["SWE","Ponds","Other freshwater fish","E","Value of unpaid labour","questionnaires","A - Census","Y",3,"every year",100,null,136,72,0.52941176470588236,0.52941176470588236,0.52941176470588236]
["SWE","Recirculating systems","Other freshwater fish","E","Value of unpaid labour","questionnaires","A - Census","Y",3,"every year",100,null,136,"N/A","N/A","N/A","N/A","aggregated into seg 8.2"]
["SWE","Cages","Other freshwater fish","E","Value of unpaid labour","questionnaires","A - Census","Y",3,"every year",100,null,136,72,0.52941176470588236,0.52941176470588236,0.52941176470588236]
["SWE","Polyculture","Other freshwater fish","E","Value of unpaid labour","questionnaires","A - Census","Y",3,"every year",100,null,136,72,0.52941176470588236,0.52941176470588236,0.52941176470588236,"replaced with \"Tanks and raceways\" seg8.2"]
["SWE","Hatcheries and nurseries","Other freshwater fish","E","Value of unpaid labour","questionnaires","A - Census","Y",3,"every year",100,null,136,72,0.52941176470588236,0.52941176470588236,0.52941176470588236]
["SWE","Other","Mussels and Oysters","E","Value of unpaid labour","questionnaires","A - Census","Y",3,"every year",100,"Mussels and Oysters needs to be clustered",136,72,0.52941176470588236,0.52941176470588236,0.52941176470588236]
["SWE","Other","Crustaceans","E","Value of unpaid labour","questionnaires","A - Census","Y",3,"every year",100,null,136,72,0.52941176470588236,0.52941176470588236,0.52941176470588236]
["SWE","Hatcheries and nurseries","Salmon and trout","E","Energy costs","questionnaires","A - Census","Y",3,"every year",100,"Salmon and trout needs to be clustered",136,72,0.52941176470588236,0.52941176470588236,0.52941176470588236]
["SWE","Ponds","Other freshwater fish","E","Energy costs","questionnaires","A - Census","Y",3,"every year",100,null,136,72,0.52941176470588236,0.52941176470588236,0.52941176470588236]
["SWE","Recirculating systems","Other freshwater fish","E","Energy costs","questionnaires","A - Census","Y",3,"every year",100,null,136,"N/A","N/A","N/A","N/A","aggregated into seg 8.2"]
["SWE","Cages","Other freshwater fish","E","Energy costs","questionnaires","A - Census","Y",3,"every year",100,null,136,72,0.52941176470588236,0.52941176470588236,0.52941176470588236]
["SWE","Polyculture","Other freshwater fish","E","Energy costs","questionnaires","A - Census","Y",3,"every year",100,null,136,72,0.52941176470588236,0.52941176470588236,0.52941176470588236,"replaced with \"Tanks and raceways\" seg8.2"]
["SWE","Hatcheries and nurseries","Other freshwater fish","E","Energy costs","questionnaires","A - Census","Y",3,"every year",100,null,136,72,0.52941176470588236,0.52941176470588236,0.52941176470588236]
["SWE","Other","Mussels and Oysters","E","Energy costs","questionnaires","A - Census","Y",3,"every year",100,"Mussels and Oysters needs to be clustered",136,72,0.52941176470588236,0.52941176470588236,0.52941176470588236]
["SWE","Other","Crustaceans","E","Energy costs","questionnaires","A - Census","Y",3,"every year",100,null,136,72,0.52941176470588236,0.52941176470588236,0.52941176470588236]
["SWE","Hatcheries and nurseries","Salmon and trout","E","Livestock costs","questionnaires","A - Census","Y",3,"every year",100,"Salmon and trout needs to be clustered",136,72,0.52941176470588236,0.52941176470588236,0.52941176470588236]
["SWE","Ponds","Other freshwater fish","E","Livestock costs","questionnaires","A - Census","Y",3,"every year",100,null,136,72,{"$f":"N70/M70","v":0.52941176470588236},{"$f":"O70","v":0.52941176470588236},{"$f":"N70/(M70*K70/100)","v":0.52941176470588236}]
["SWE","Recirculating systems","Other freshwater fish","E","Livestock costs","questionnaires","A - Census","Y",3,"every year",100,null,136,"N/A","N/A","N/A","N/A","aggregated into seg 8.2"]
["SWE","Cages","Other freshwater fish","E","Livestock costs","questionnaires","A - Census","Y",3,"every year",100,null,136,72,0.52941176470588236,0.52941176470588236,0.52941176470588236]
["SWE","Polyculture","Other freshwater fish","E","Livestock costs","questionnaires","A - Census","Y",3,"every year",100,null,136,72,0.52941176470588236,0.52941176470588236,0.52941176470588236,"replaced with \"Tanks and raceways\" seg8.2"]
["SWE","Hatcheries and nurseries","Other freshwater fish","E","Livestock costs","questionnaires","A - Census","Y",3,"every year",100,null,136,72,0.52941176470588236,0.52941176470588236,0.52941176470588236]
["SWE","Other","Mussels and Oysters","E","Livestock costs","questionnaires","A - Census","Y",3,"every year",100,"Mussels and Oysters needs to be clustered",136,72,0.52941176470588236,0.52941176470588236,0.52941176470588236]
["SWE","Other","Crustaceans","E","Livestock costs","questionnaires","A - Census","Y",3,"every year",100,null,136,72,0.52941176470588236,0.52941176470588236,0.52941176470588236]
["SWE","Hatcheries and nurseries","Salmon and trout","E","Feed costs","questionnaires","A - Census","Y",3,"every year",100,"Salmon and trout needs to be clustered",136,72,0.52941176470588236,0.52941176470588236,0.52941176470588236]
["SWE","Ponds","Other freshwater fish","E","Feed costs","questionnaires","A - Census","Y",3,"every year",100,null,136,72,0.52941176470588236,0.52941176470588236,0.52941176470588236]
["SWE","Recirculating systems","Other freshwater fish","E","Feed costs","questionnaires","A - Census","Y",3,"every year",100,null,136,"N/A","N/A","N/A","N/A","aggregated into seg 8.2"]
["SWE","Cages","Other freshwater fish","E","Feed costs","questionnaires","A - Census","Y",3,"every year",100,null,136,72,0.52941176470588236,0.52941176470588236,0.52941176470588236]
["SWE","Polyculture","Other freshwater fish","E","Feed costs","questionnaires","A - Census","Y",3,"every year",100,null,136,72,0.52941176470588236,0.52941176470588236,0.52941176470588236,"replaced with \"Tanks and raceways\" seg8.2"]
["SWE","Hatcheries and nurseries","Other freshwater fish","E","Feed costs","questionnaires","A - Census","Y",3,"every year",100,null,136,72,0.52941176470588236,0.52941176470588236,0.52941176470588236]
["SWE","Other","Mussels and Oysters","E","Feed costs","questionnaires","A - Census","Y",3,"every year",100,"Mussels and Oysters needs to be clustered",136,72,0.52941176470588236,0.52941176470588236,0.52941176470588236]
["SWE","Other","Crustaceans","E","Feed costs","questionnaires","A - Census","Y",3,"every year",100,null,136,72,0.52941176470588236,0.52941176470588236,0.52941176470588236]
["SWE","Hatcheries and nurseries","Salmon and trout","E","Repair and maintenance","questionnaires","A - Census","Y",3,"every year",100,"Salmon and trout needs to be clustered",136,72,0.52941176470588236,0.52941176470588236,0.52941176470588236]
["SWE","Ponds","Other freshwater fish","E","Repair and maintenance","questionnaires","A - Census","Y",3,"every year",100,null,136,72,0.52941176470588236,0.52941176470588236,0.52941176470588236]
["SWE","Recirculating systems","Other freshwater fish","E","Repair and maintenance","questionnaires","A - Census","Y",3,"every year",100,null,136,"N/A","N/A","N/A","N/A","aggregated into seg 8.2"]
["SWE","Cages","Other freshwater fish","E","Repair and maintenance","questionnaires","A - Census","Y",3,"every year",100,null,136,72,0.52941176470588236,0.52941176470588236,0.52941176470588236]
["SWE","Polyculture","Other freshwater fish","E","Repair and maintenance","questionnaires","A - Census","Y",3,"every year",100,null,136,72,0.52941176470588236,0.52941176470588236,0.52941176470588236,"replaced with \"Tanks and raceways\" seg8.2"]
["SWE","Hatcheries and nurseries","Other freshwater fish","E","Repair and maintenance","questionnaires","A - Census","Y",3,"every year",100,null,136,72,0.52941176470588236,0.52941176470588236,0.52941176470588236]
["SWE","Other","Mussels and Oysters","E","Repair and maintenance","questionnaires","A - Census","Y",3,"every year",100,"Mussels and Oysters needs to be clustered",136,72,0.52941176470588236,0.52941176470588236,0.52941176470588236]
["SWE","Other","Crustaceans","E","Repair and maintenance","questionnaires","A - Census","Y",3,"every year",100,null,136,72,0.52941176470588236,0.52941176470588236,0.52941176470588236]
["SWE","Hatcheries and nurseries","Salmon and trout","E","Other operational costs","questionnaires","A - Census","Y",3,"every year",100,"Salmon and trout needs to be clustered",136,72,0.52941176470588236,0.52941176470588236,0.52941176470588236]
["SWE","Ponds","Other freshwater fish","E","Other operational costs","questionnaires","A - Census","Y",3,"every year",100,null,136,72,0.52941176470588236,0.52941176470588236,0.52941176470588236]
["SWE","Recirculating systems","Other freshwater fish","E","Other operational costs","questionnaires","A - Census","Y",3,"every year",100,null,136,"N/A","N/A","N/A","N/A","aggregated into seg 8.2"]
["SWE","Cages","Other freshwater fish","E","Other operational costs","questionnaires","A - Census","Y",3,"every year",100,null,136,72,0.52941176470588236,0.52941176470588236,0.52941176470588236]
["SWE","Polyculture","Other freshwater fish","E","Other operational costs","questionnaires","A - Census","Y",3,"every year",100,null,136,72,0.52941176470588236,0.52941176470588236,0.52941176470588236,"replaced with \"Tanks and raceways\" seg8.2"]
["SWE","Hatcheries and nurseries","Other freshwater fish","E","Other operational costs","questionnaires","A - Census","Y",3,"every year",100,null,136,72,0.52941176470588236,0.52941176470588236,0.52941176470588236]
["SWE","Other","Mussels and Oysters","E","Other operational costs","questionnaires","A - Census","Y",3,"every year",100,"Mussels and Oysters needs to be clustered",136,72,0.52941176470588236,0.52941176470588236,0.52941176470588236]
["SWE","Other","Crustaceans","E","Other operational costs","questionnaires","A - Census","Y",3,"every year",100,null,136,72,0.52941176470588236,0.52941176470588236,0.52941176470588236]
["SWE","Hatcheries and nurseries","Salmon and trout","E","Consumtion of fixed capital","Financial accounts","A - Census","Y",3,"every year",100,"Salmon and trout needs to be clustered",136,0,0,0,0,"Segment 8.8 - data quality is too poor to be collected from national register"]
["SWE","Ponds","Other freshwater fish","E","Consumtion of fixed capital","Financial accounts","A - Census","Y",3,"every year",100,null,136,74,0.54411764705882348,0.54411764705882348,0.54411764705882348]
["SWE","Recirculating systems","Other freshwater fish","E","Consumtion of fixed capital","Financial accounts","A - Census","Y",3,"every year",100,null,136,74,0.54411764705882348,0.54411764705882348,0.54411764705882348]
["SWE","Cages","Other freshwater fish","E","Consumtion of fixed capital","Financial accounts","A - Census","Y",3,"every year",100,null,136,74,0.54411764705882348,0.54411764705882348,0.54411764705882348]
["SWE","Polyculture","Other freshwater fish","E","Consumtion of fixed capital","Financial accounts","A - Census","Y",3,"every year",100,null,136,74,0.54411764705882348,0.54411764705882348,0.54411764705882348,"replaced with \"Tanks and raceways\" seg8.2"]
["SWE","Hatcheries and nurseries","Other freshwater fish","E","Consumtion of fixed capital","Financial accounts","A - Census","Y",3,"every year",100,null,136,74,0.54411764705882348,0.54411764705882348,0.54411764705882348]
["SWE","Other","Mussels and Oysters","E","Consumtion of fixed capital","Financial accounts","A - Census","Y",3,"every year",100,"Mussels and Oysters needs to be clustered",136,74,0.54411764705882348,0.54411764705882348,0.54411764705882348]
["SWE","Other","Crustaceans","E","Consumtion of fixed capital","Financial accounts","A - Census","Y",3,"every year",100,null,136,74,0.54411764705882348,0.54411764705882348,0.54411764705882348]
["SWE","Hatcheries and nurseries","Salmon and trout","E","Financial income","Financial accounts","A - Census","Y",3,"every year",100,"Salmon and trout needs to be clustered",136,0,0,0,0,"Segment 8.8 - data quality is too poor to be collected from national register"]
["SWE","Ponds","Other freshwater fish","E","Financial income","Financial accounts","A - Census","Y",3,"every year",100,null,136,74,0.54411764705882348,0.54411764705882348,0.54411764705882348]
["SWE","Recirculating systems","Other freshwater fish","E","Financial income","Financial accounts","A - Census","Y",3,"every year",100,null,136,74,0.54411764705882348,0.54411764705882348,0.54411764705882348]
["SWE","Cages","Other freshwater fish","E","Financial income","Financial accounts","A - Census","Y",3,"every year",100,null,136,74,0.54411764705882348,0.54411764705882348,0.54411764705882348]
["SWE","Polyculture","Other freshwater fish","E","Financial income","Financial accounts","A - Census","Y",3,"every year",100,null,136,74,0.54411764705882348,0.54411764705882348,0.54411764705882348,"replaced with \"Tanks and raceways\" seg8.2"]
["SWE","Hatcheries and nurseries","Other freshwater fish","E","Financial income","Financial accounts","A - Census","Y",3,"every year",100,null,136,74,0.54411764705882348,0.54411764705882348,0.54411764705882348]
["SWE","Other","Mussels and Oysters","E","Financial income","Financial accounts","A - Census","Y",3,"every year",100,"Mussels and Oysters needs to be clustered",136,74,0.54411764705882348,0.54411764705882348,0.54411764705882348]
["SWE","Other","Crustaceans","E","Financial income","Financial accounts","A - Census","Y",3,"every year",100,null,136,74,0.54411764705882348,0.54411764705882348,0.54411764705882348]
["SWE","Hatcheries and nurseries","Salmon and trout","E","financial expenditures","Financial accounts","A - Census","Y",3,"every year",100,"Salmon and trout needs to be clustered",136,0,0,0,0,"Segment 8.8 - data quality is too poor to be collected from national register"]
["SWE","Ponds","Other freshwater fish","E","financial expenditures","Financial accounts","A - Census","Y",3,"every year",100,null,136,74,0.54411764705882348,0.54411764705882348,0.54411764705882348]
["SWE","Recirculating systems","Other freshwater fish","E","financial expenditures","Financial accounts","A - Census","Y",3,"every year",100,null,136,74,0.54411764705882348,0.54411764705882348,0.54411764705882348]
["SWE","Cages","Other freshwater fish","E","financial expenditures","Financial accounts","A - Census","Y",3,"every year",100,null,136,74,0.54411764705882348,0.54411764705882348,0.54411764705882348]
["SWE","Polyculture","Other freshwater fish","E","financial expenditures","Financial accounts","A - Census","Y",3,"every year",100,null,136,74,0.54411764705882348,0.54411764705882348,0.54411764705882348,"replaced with \"Tanks and raceways\" seg8.2"]
["SWE","Hatcheries and nurseries","Other freshwater fish","E","financial expenditures","Financial accounts","A - Census","Y",3,"every year",100,null,136,74,0.54411764705882348,0.54411764705882348,0.54411764705882348]
["SWE","Other","Mussels and Oysters","E","financial expenditures","Financial accounts","A - Census","Y",3,"every year",100,"Mussels and Oysters needs to be clustered",136,74,0.54411764705882348,0.54411764705882348,0.54411764705882348]
["SWE","Other","Crustaceans","E","financial expenditures","Financial accounts","A - Census","Y",3,"every year",100,null,136,74,0.54411764705882348,0.54411764705882348,0.54411764705882348]
["SWE","Hatcheries and nurseries","Salmon and trout","E","Total value of assets","Financial accounts","A - Census","Y",3,"every year",100,"Salmon and trout needs to be clustered",136,0,0,0,0,"Segment 8.8 - data quality is too poor to be collected from national register"]
["SWE","Ponds","Other freshwater fish","E","Total value of assets","Financial accounts","A - Census","Y",3,"every year",100,null,136,74,0.54411764705882348,0.54411764705882348,0.54411764705882348]
["SWE","Recirculating systems","Other freshwater fish","E","Total value of assets","Financial accounts","A - Census","Y",3,"every year",100,null,136,74,0.54411764705882348,0.54411764705882348,0.54411764705882348]
["SWE","Cages","Other freshwater fish","E","Total value of assets","Financial accounts","A - Census","Y",3,"every year",100,null,136,74,0.54411764705882348,0.54411764705882348,0.54411764705882348]
["SWE","Polyculture","Other freshwater fish","E","Total value of assets","Financial accounts","A - Census","Y",3,"every year",100,null,136,74,0.54411764705882348,0.54411764705882348,0.54411764705882348,"replaced with \"Tanks and raceways\" seg8.2"]
["SWE","Hatcheries and nurseries","Other freshwater fish","E","Total value of assets","Financial accounts","A - Census","Y",3,"every year",100,null,136,74,0.54411764705882348,0.54411764705882348,0.54411764705882348]
["SWE","Other","Mussels and Oysters","E","Total value of assets","Financial accounts","A - Census","Y",3,"every year",100,"Mussels and Oysters needs to be clustered",136,74,0.54411764705882348,0.54411764705882348,0.54411764705882348]
["SWE","Other","Crustaceans","E","Total value of assets","Financial accounts","A - Census","Y",3,"every year",100,null,136,74,0.54411764705882348,0.54411764705882348,0.54411764705882348]
["SWE","Hatcheries and nurseries","Salmon and trout","E","Net Investments","Financial accounts","A - Census","Y",3,"every year",100,"Salmon and trout needs to be clustered",136,113,0.83088235294117652,0.83088235294117652,0.83088235294117652]
["SWE","Ponds","Other freshwater fish","E","Net Investments","Financial accounts","A - Census","Y",3,"every year",100,null,136,113,{"$f":"N134/M134","v":0.83088235294117652},{"$f":"O134","v":0.83088235294117652},{"$f":"N134/(M134*K134/100)","v":0.83088235294117652}]
["SWE","Recirculating systems","Other freshwater fish","E","Net Investments","Financial accounts","A - Census","Y",3,"every year",100,null,136,113,0.83088235294117652,0.83088235294117652,0.83088235294117652]
["SWE","Cages","Other freshwater fish","E","Net Investments","Financial accounts","A - Census","Y",3,"every year",100,null,136,113,0.83088235294117652,0.83088235294117652,0.83088235294117652]
["SWE","Polyculture","Other freshwater fish","E","Net Investments","Financial accounts","A - Census","Y",3,"every year",100,null,136,113,0.83088235294117652,0.83088235294117652,0.83088235294117652,"replaced with \"Tanks and raceways\" seg8.2"]
["SWE","Hatcheries and nurseries","Other freshwater fish","E","Net Investments","Financial accounts","A - Census","Y",3,"every year",100,null,136,113,0.83088235294117652,0.83088235294117652,0.83088235294117652]
["SWE","Other","Mussels and Oysters","E","Net Investments","Financial accounts","A - Census","Y",3,"every year",100,"Mussels and Oysters needs to be clustered",136,113,0.83088235294117652,0.83088235294117652,0.83088235294117652]
["SWE","Other","Crustaceans","E","Net Investments","Financial accounts","A - Census","Y",3,"every year",100,null,136,113,0.83088235294117652,0.83088235294117652,0.83088235294117652]
["SWE","Hatcheries and nurseries","Salmon and trout","E","Debt","Financial accounts","A - Census","Y",3,"every year",100,"Salmon and trout needs to be clustered",136,0,0,0,0,"Segment 8.8 - data quality is too poor to be collected from national register"]
["SWE","Ponds","Other freshwater fish","E","Debt","Financial accounts","A - Census","Y",3,"every year",100,null,136,74,0.54411764705882348,0.54411764705882348,0.54411764705882348]
["SWE","Recirculating systems","Other freshwater fish","E","Debt","Financial accounts","A - Census","Y",3,"every year",100,null,136,74,0.54411764705882348,0.54411764705882348,0.54411764705882348]
["SWE","Cages","Other freshwater fish","E","Debt","Financial accounts","A - Census","Y",3,"every year",100,null,136,74,0.54411764705882348,0.54411764705882348,0.54411764705882348]
["SWE","Polyculture","Other freshwater fish","E","Debt","Financial accounts","A - Census","Y",3,"every year",100,null,136,74,0.54411764705882348,0.54411764705882348,0.54411764705882348,"replaced with \"Tanks and raceways\" seg8.2"]
["SWE","Hatcheries and nurseries","Other freshwater fish","E","Debt","Financial accounts","A - Census","Y",3,"every year",100,null,136,74,0.54411764705882348,0.54411764705882348,0.54411764705882348]
["SWE","Other","Mussels and Oysters","E","Debt","Financial accounts","A - Census","Y",3,"every year",100,"Mussels and Oysters needs to be clustered",136,74,0.54411764705882348,0.54411764705882348,0.54411764705882348]
["SWE","Other","Crustaceans","E","Debt","Financial accounts","A - Census","Y",3,"every year",100,null,136,74,0.54411764705882348,0.54411764705882348,0.54411764705882348]
["SWE","Hatcheries and nurseries","Salmon and trout","E","Livestock used","questionnaires","A - Census","Y",3,"every year",100,"Salmon and trout needs to be clustered",136,72,0.52941176470588236,0.52941176470588236,0.52941176470588236]
["SWE","Ponds","Other freshwater fish","E","Livestock used","questionnaires","A - Census","Y",3,"every year",100,null,136,72,0.52941176470588236,0.52941176470588236,0.52941176470588236]
["SWE","Recirculating systems","Other freshwater fish","E","Livestock used","questionnaires","A - Census","Y",3,"every year",100,null,136,"N/A","N/A","N/A","N/A","aggregated into seg 8.2"]
["SWE","Cages","Other freshwater fish","E","Livestock used","questionnaires","A - Census","Y",3,"every year",100,null,136,72,0.52941176470588236,0.52941176470588236,0.52941176470588236]
["SWE","Polyculture","Other freshwater fish","E","Livestock used","questionnaires","A - Census","Y",3,"every year",100,null,136,72,0.52941176470588236,0.52941176470588236,0.52941176470588236,"replaced with \"Tanks and raceways\" seg8.2"]
["SWE","Hatcheries and nurseries","Other freshwater fish","E","Livestock used","questionnaires","A - Census","Y",3,"every year",100,null,136,72,0.52941176470588236,0.52941176470588236,0.52941176470588236]
["SWE","Other","Mussels and Oysters","E","Livestock used","questionnaires","A - Census","Y",3,"every year",100,"Mussels and Oysters needs to be clustered",136,72,0.52941176470588236,0.52941176470588236,0.52941176470588236]
["SWE","Other","Crustaceans","E","Livestock used","questionnaires","A - Census","Y",3,"every year",100,null,136,72,0.52941176470588236,0.52941176470588236,0.52941176470588236]
["SWE","Hatcheries and nurseries","Salmon and trout","E","Feed used","questionnaires","A - Census","Y",3,"every year",100,"Salmon and trout needs to be clustered",136,72,0.52941176470588236,0.52941176470588236,0.52941176470588236]
["SWE","Ponds","Other freshwater fish","E","Feed used","questionnaires","A - Census","Y",3,"every year",100,null,136,72,0.52941176470588236,0.52941176470588236,0.52941176470588236]
["SWE","Recirculating systems","Other freshwater fish","E","Feed used","questionnaires","A - Census","Y",3,"every year",100,null,136,"N/A","N/A","N/A","N/A","aggregated into seg 8.2"]
["SWE","Cages","Other freshwater fish","E","Feed used","questionnaires","A - Census","Y",3,"every year",100,null,136,72,0.52941176470588236,0.52941176470588236,0.52941176470588236]
["SWE","Polyculture","Other freshwater fish","E","Feed used","questionnaires","A - Census","Y",3,"every year",100,null,136,72,0.52941176470588236,0.52941176470588236,0.52941176470588236,"replaced with \"Tanks and raceways\" seg8.2"]
["SWE","Hatcheries and nurseries","Other freshwater fish","E","Feed used","questionnaires","A - Census","Y",3,"every year",100,null,136,72,0.52941176470588236,0.52941176470588236,0.52941176470588236]
["SWE","Other","Mussels and Oysters","E","Feed used","questionnaires","A - Census","Y",3,"every year",100,"Mussels and Oysters needs to be clustered",136,72,0.52941176470588236,0.52941176470588236,0.52941176470588236]
["SWE","Other","Crustaceans","E","Feed used","questionnaires","A - Census","Y",3,"every year",100,null,136,72,0.52941176470588236,0.52941176470588236,0.52941176470588236]
["SWE","Hatcheries and nurseries","Salmon and trout","E","weight of sales","questionnaires","A - Census","Y",3,"every year",100,"Salmon and trout needs to be clustered",136,113,0.83088235294117652,0.83088235294117652,0.83088235294117652]
["SWE","Ponds","Other freshwater fish","E","weight of sales","questionnaires","A - Census","Y",3,"every year",100,null,136,113,0.83088235294117652,0.83088235294117652,0.83088235294117652]
["SWE","Recirculating systems","Other freshwater fish","E","weight of sales","questionnaires","A - Census","Y",3,"every year",100,null,136,113,0.83088235294117652,0.83088235294117652,0.83088235294117652]
["SWE","Cages","Other freshwater fish","E","weight of sales","questionnaires","A - Census","Y",3,"every year",100,null,136,113,0.83088235294117652,0.83088235294117652,0.83088235294117652]
["SWE","Polyculture","Other freshwater fish","E","weight of sales","questionnaires","A - Census","Y",3,"every year",100,null,136,113,0.83088235294117652,0.83088235294117652,0.83088235294117652,"replaced with \"Tanks and raceways\" seg8.2"]
["SWE","Hatcheries and nurseries","Other freshwater fish","E","weight of sales","questionnaires","A - Census","Y",3,"every year",100,null,136,113,0.83088235294117652,0.83088235294117652,0.83088235294117652]
["SWE","Other","Mussels and Oysters","E","weight of sales","questionnaires","A - Census","Y",3,"every year",100,"Mussels and Oysters needs to be clustered",136,113,0.83088235294117652,0.83088235294117652,0.83088235294117652]
["SWE","Other","Crustaceans","E","weight of sales","questionnaires","A - Census","Y",3,"every year",100,null,136,113,0.83088235294117652,0.83088235294117652,0.83088235294117652]
["SWE","Hatcheries and nurseries","Salmon and trout","E","Persons employed, number","questionnaires","A - Census","Y",3,"every year",100,"Salmon and trout needs to be clustered",136,113,0.83088235294117652,0.83088235294117652,0.83088235294117652]
["SWE","Ponds","Other freshwater fish","E","Persons employed, number","questionnaires","A - Census","Y",3,"every year",100,null,136,113,0.83088235294117652,0.83088235294117652,0.83088235294117652]
["SWE","Recirculating systems","Other freshwater fish","E","Persons employed, number","questionnaires","A - Census","Y",3,"every year",100,null,136,113,0.83088235294117652,0.83088235294117652,0.83088235294117652]
["SWE","Cages","Other freshwater fish","E","Persons employed, number","questionnaires","A - Census","Y",3,"every year",100,null,136,113,0.83088235294117652,0.83088235294117652,0.83088235294117652]
["SWE","Polyculture","Other freshwater fish","E","Persons employed, number","questionnaires","A - Census","Y",3,"every year",100,null,136,113,0.83088235294117652,0.83088235294117652,0.83088235294117652,"replaced with \"Tanks and raceways\" seg8.2"]
["SWE","Hatcheries and nurseries","Other freshwater fish","E","Persons employed, number","questionnaires","A - Census","Y",3,"every year",100,null,136,113,0.83088235294117652,0.83088235294117652,0.83088235294117652]
["SWE","Other","Mussels and Oysters","E","Persons employed, number","questionnaires","A - Census","Y",3,"every year",100,"Mussels and Oysters needs to be clustered",136,113,0.83088235294117652,0.83088235294117652,0.83088235294117652]
["SWE","Other","Crustaceans","E","Persons employed, number","questionnaires","A - Census","Y",3,"every year",100,null,136,113,0.83088235294117652,0.83088235294117652,0.83088235294117652]
["SWE","Hatcheries and nurseries","Salmon and trout","E","Unpaid labour","questionnaires","A - Census","Y",3,"every year",100,"Salmon and trout needs to be clustered",136,72,0.52941176470588236,0.52941176470588236,0.52941176470588236]
["SWE","Ponds","Other freshwater fish","E","Unpaid labour","questionnaires","A - Census","Y",3,"every year",100,null,136,72,0.52941176470588236,0.52941176470588236,0.52941176470588236]
["SWE","Recirculating systems","Other freshwater fish","E","Unpaid labour","questionnaires","A - Census","Y",3,"every year",100,null,136,"N/A","N/A","N/A","N/A","aggregated into seg 8.2"]
["SWE","Cages","Other freshwater fish","E","Unpaid labour","questionnaires","A - Census","Y",3,"every year",100,null,136,72,0.52941176470588236,0.52941176470588236,0.52941176470588236]
["SWE","Polyculture","Other freshwater fish","E","Unpaid labour","questionnaires","A - Census","Y",3,"every year",100,null,136,72,0.52941176470588236,0.52941176470588236,0.52941176470588236,"replaced with \"Tanks and raceways\" seg8.2"]
["SWE","Hatcheries and nurseries","Other freshwater fish","E","Unpaid labour","questionnaires","A - Census","Y",3,"every year",100,null,136,72,0.52941176470588236,0.52941176470588236,0.52941176470588236]
["SWE","Other","Mussels and Oysters","E","Unpaid labour","questionnaires","A - Census","Y",3,"every year",100,"Mussels and Oysters needs to be clustered",136,72,0.52941176470588236,0.52941176470588236,0.52941176470588236]
["SWE","Other","Crustaceans","E","Unpaid labour","questionnaires","A - Census","Y",3,"every year",100,null,136,72,0.52941176470588236,0.52941176470588236,0.52941176470588236]
["SWE","Hatcheries and nurseries","Salmon and trout","S","Unpaid labour by gender","questionnaires","A - Census","Y",3,"every 3'rd year",100,"Salmon and trout needs to be clustered",136,72,0.52941176470588236,0.52941176470588236,0.52941176470588236]
["SWE","Ponds","Other freshwater fish","S","Unpaid labour by gender","questionnaires","A - Census","Y",3,"every 3'rd year",100,null,136,72,0.52941176470588236,0.52941176470588236,0.52941176470588236]
["SWE","Recirculating systems","Other freshwater fish","S","Unpaid labour by gender","questionnaires","A - Census","Y",3,"every 3'rd year",100,null,136,72,0.52941176470588236,0.52941176470588236,0.52941176470588236,"aggregated into seg 8.2"]
["SWE","Cages","Other freshwater fish","S","Unpaid labour by gender","questionnaires","A - Census","Y",3,"every 3'rd year",100,null,136,72,0.52941176470588236,0.52941176470588236,0.52941176470588236]
["SWE","Polyculture","Other freshwater fish","S","Unpaid labour by gender","questionnaires","A - Census","Y",3,"every 3'rd year",100,null,136,72,0.52941176470588236,0.52941176470588236,0.52941176470588236,"replaced with \"Tanks and raceways\" seg8.2"]
["SWE","Hatcheries and nurseries","Other freshwater fish","S","Unpaid labour by gender","questionnaires","A - Census","Y",3,"every 3'rd year",100,null,136,72,0.52941176470588236,0.52941176470588236,0.52941176470588236]
["SWE","Other","Mussels and Oysters","S","Unpaid labour by gender","questionnaires","A - Census","Y",3,"every 3'rd year",100,"Mussels and Oysters needs to be clustered",136,72,0.52941176470588236,0.52941176470588236,0.52941176470588236]
["SWE","Other","Crustaceans","S","Unpaid labour by gender","questionnaires","A - Census","Y",3,"every 3'rd year",100,null,136,72,0.52941176470588236,0.52941176470588236,0.52941176470588236]
["SWE","Hatcheries and nurseries","Salmon and trout","S","Employment by gender","questionnaires","A - Census","Y",3,"every 3'rd year",100,"Salmon and trout needs to be clustered",136,72,0.52941176470588236,0.52941176470588236,0.52941176470588236]
["SWE","Ponds","Other freshwater fish","S","Employment by gender","questionnaires","A - Census","Y",3,"every 3'rd year",100,null,136,72,{"$f":"N198/M198","v":0.52941176470588236},{"$f":"O198","v":0.52941176470588236},{"$f":"N198/(M198*K198/100)","v":0.52941176470588236}]
["SWE","Recirculating systems","Other freshwater fish","S","Employment by gender","questionnaires","A - Census","Y",3,"every 3'rd year",100,null,136,72,0.52941176470588236,0.52941176470588236,0.52941176470588236,"aggregated into seg 8.2"]
["SWE","Cages","Other freshwater fish","S","Employment by gender","questionnaires","A - Census","Y",3,"every 3'rd year",100,null,136,72,0.52941176470588236,0.52941176470588236,0.52941176470588236]
["SWE","Polyculture","Other freshwater fish","S","Employment by gender","questionnaires","A - Census","Y",3,"every 3'rd year",100,null,136,72,0.52941176470588236,0.52941176470588236,0.52941176470588236,"replaced with \"Tanks and raceways\" seg8.2"]
["SWE","Hatcheries and nurseries","Other freshwater fish","S","Employment by gender","questionnaires","A - Census","Y",3,"every 3'rd year",100,null,136,72,0.52941176470588236,0.52941176470588236,0.52941176470588236]
["SWE","Other","Mussels and Oysters","S","Employment by gender","questionnaires","A - Census","Y",3,"every 3'rd year",100,"Mussels and Oysters needs to be clustered",136,72,0.52941176470588236,0.52941176470588236,0.52941176470588236]
["SWE","Other","Crustaceans","S","Employment by gender","questionnaires","A - Census","Y",3,"every 3'rd year",100,null,136,72,0.52941176470588236,0.52941176470588236,0.52941176470588236]
["SWE","Hatcheries and nurseries","Salmon and trout","E","Persons employed, FTE","questionnaires","A - Census","Y",3,"every year",100,"Salmon and trout needs to be clustered",136,113,0.83088235294117652,0.83088235294117652,0.83088235294117652]
["SWE","Ponds","Other freshwater fish","E","Persons employed, FTE","questionnaires","A - Census","Y",3,"every year",100,null,136,113,0.83088235294117652,0.83088235294117652,0.83088235294117652]
["SWE","Recirculating systems","Other freshwater fish","E","Persons employed, FTE","questionnaires","A - Census","Y",3,"every year",100,null,136,113,0.83088235294117652,0.83088235294117652,0.83088235294117652]
["SWE","Cages","Other freshwater fish","E","Persons employed, FTE","questionnaires","A - Census","Y",3,"every year",100,null,136,113,0.83088235294117652,0.83088235294117652,0.83088235294117652]
["SWE","Polyculture","Other freshwater fish","E","Persons employed, FTE","questionnaires","A - Census","Y",3,"every year",100,null,136,113,0.83088235294117652,0.83088235294117652,0.83088235294117652,"replaced with \"Tanks and raceways\" seg8.2"]
["SWE","Hatcheries and nurseries","Other freshwater fish","E","Persons employed, FTE","questionnaires","A - Census","Y",3,"every year",100,null,136,113,0.83088235294117652,0.83088235294117652,0.83088235294117652]
["SWE","Other","Mussels and Oysters","E","Persons employed, FTE","questionnaires","A - Census","Y",3,"every year",100,"Mussels and Oysters needs to be clustered",136,113,0.83088235294117652,0.83088235294117652,0.83088235294117652]
["SWE","Other","Crustaceans","E","Persons employed, FTE","questionnaires","A - Census","Y",3,"every year",100,null,136,113,0.83088235294117652,0.83088235294117652,0.83088235294117652]
["SWE","Hatcheries and nurseries","Salmon and trout","S","FTE by gender","questionnaires","A - Census","Y",3,"every 3'rd year",100,"Salmon and trout needs to be clustered",136,72,0.52941176470588236,0.52941176470588236,0.52941176470588236]
["SWE","Ponds","Other freshwater fish","S","FTE by gender","questionnaires","A - Census","Y",3,"every 3'rd year",100,null,136,72,0.52941176470588236,0.52941176470588236,0.52941176470588236]
["SWE","Recirculating systems","Other freshwater fish","S","FTE by gender","questionnaires","A - Census","Y",3,"every 3'rd year",100,null,136,72,0.52941176470588236,0.52941176470588236,0.52941176470588236,"aggregated into seg 8.2"]
["SWE","Cages","Other freshwater fish","S","FTE by gender","questionnaires","A - Census","Y",3,"every 3'rd year",100,null,136,72,0.52941176470588236,0.52941176470588236,0.52941176470588236]
["SWE","Polyculture","Other freshwater fish","S","FTE by gender","questionnaires","A - Census","Y",3,"every 3'rd year",100,null,136,72,0.52941176470588236,0.52941176470588236,0.52941176470588236,"replaced with \"Tanks and raceways\" seg8.2"]
["SWE","Hatcheries and nurseries","Other freshwater fish","S","FTE by gender","questionnaires","A - Census","Y",3,"every 3'rd year",100,null,136,72,0.52941176470588236,0.52941176470588236,0.52941176470588236]
["SWE","Other","Mussels and Oysters","S","FTE by gender","questionnaires","A - Census","Y",3,"every 3'rd year",100,"Mussels and Oysters needs to be clustered",136,72,0.52941176470588236,0.52941176470588236,0.52941176470588236]
["SWE","Other","Crustaceans","S","FTE by gender","questionnaires","A - Census","Y",3,"every 3'rd year",100,null,136,72,0.52941176470588236,0.52941176470588236,0.52941176470588236]
["SWE","Hatcheries and nurseries","Salmon and trout","S","Employment by age","questionnaires","A - Census","Y",3,"every 3'rd year",100,"Salmon and trout needs to be clustered",136,72,0.52941176470588236,0.52941176470588236,0.52941176470588236]
["SWE","Ponds","Other freshwater fish","S","Employment by age","questionnaires","A - Census","Y",3,"every 3'rd year",100,null,136,72,0.52941176470588236,0.52941176470588236,0.52941176470588236]
["SWE","Recirculating systems","Other freshwater fish","S","Employment by age","questionnaires","A - Census","Y",3,"every 3'rd year",100,null,136,72,0.52941176470588236,0.52941176470588236,0.52941176470588236,"aggregated into seg 8.2"]
["SWE","Cages","Other freshwater fish","S","Employment by age","questionnaires","A - Census","Y",3,"every 3'rd year",100,null,136,72,0.52941176470588236,0.52941176470588236,0.52941176470588236]
["SWE","Polyculture","Other freshwater fish","S","Employment by age","questionnaires","A - Census","Y",3,"every 3'rd year",100,null,136,72,0.52941176470588236,0.52941176470588236,0.52941176470588236,"replaced with \"Tanks and raceways\" seg8.2"]
["SWE","Hatcheries and nurseries","Other freshwater fish","S","Employment by age","questionnaires","A - Census","Y",3,"every 3'rd year",100,null,136,72,0.52941176470588236,0.52941176470588236,0.52941176470588236]
["SWE","Other","Mussels and Oysters","S","Employment by age","questionnaires","A - Census","Y",3,"every 3'rd year",100,"Mussels and Oysters needs to be clustered",136,72,0.52941176470588236,0.52941176470588236,0.52941176470588236]
["SWE","Other","Crustaceans","S","Employment by age","questionnaires","A - Census","Y",3,"every 3'rd year",100,null,136,72,0.52941176470588236,0.52941176470588236,0.52941176470588236]
["SWE","Hatcheries and nurseries","Salmon and trout","S","Employment by education level","questionnaires","A - Census","Y",3,"every 3'rd year",100,"Salmon and trout needs to be clustered",136,72,0.52941176470588236,0.52941176470588236,0.52941176470588236]
["SWE","Ponds","Other freshwater fish","S","Employment by education level","questionnaires","A - Census","Y",3,"every 3'rd year",100,null,136,72,0.52941176470588236,0.52941176470588236,0.52941176470588236]
["SWE","Recirculating systems","Other freshwater fish","S","Employment by education level","questionnaires","A - Census","Y",3,"every 3'rd year",100,null,136,72,0.52941176470588236,0.52941176470588236,0.52941176470588236,"aggregated into seg 8.2"]
["SWE","Cages","Other freshwater fish","S","Employment by education level","questionnaires","A - Census","Y",3,"every 3'rd year",100,null,136,72,0.52941176470588236,0.52941176470588236,0.52941176470588236]
["SWE","Polyculture","Other freshwater fish","S","Employment by education level","questionnaires","A - Census","Y",3,"every 3'rd year",100,null,136,72,0.52941176470588236,0.52941176470588236,0.52941176470588236,"replaced with \"Tanks and raceways\" seg8.2"]
["SWE","Hatcheries and nurseries","Other freshwater fish","S","Employment by education level","questionnaires","A - Census","Y",3,"every 3'rd year",100,null,136,72,0.52941176470588236,0.52941176470588236,0.52941176470588236]
["SWE","Other","Mussels and Oysters","S","Employment by education level","questionnaires","A - Census","Y",3,"every 3'rd year",100,"Mussels and Oysters needs to be clustered",136,72,0.52941176470588236,0.52941176470588236,0.52941176470588236]
["SWE","Other","Crustaceans","S","Employment by education level","questionnaires","A - Census","Y",3,"every 3'rd year",100,null,136,72,0.52941176470588236,0.52941176470588236,0.52941176470588236]
["SWE","Hatcheries and nurseries","Salmon and trout","S","Employment by nationality","questionnaires","A - Census","Y",3,"every 3'rd year",100,"Salmon and trout needs to be clustered",136,72,0.52941176470588236,0.52941176470588236,0.52941176470588236]
["SWE","Ponds","Other freshwater fish","S","Employment by nationality","questionnaires","A - Census","Y",3,"every 3'rd year",100,null,136,72,0.52941176470588236,0.52941176470588236,0.52941176470588236]
["SWE","Recirculating systems","Other freshwater fish","S","Employment by nationality","questionnaires","A - Census","Y",3,"every 3'rd year",100,null,136,72,0.52941176470588236,0.52941176470588236,0.52941176470588236,"aggregated into seg 8.2"]
["SWE","Cages","Other freshwater fish","S","Employment by nationality","questionnaires","A - Census","Y",3,"every 3'rd year",100,null,136,72,0.52941176470588236,0.52941176470588236,0.52941176470588236]
["SWE","Polyculture","Other freshwater fish","S","Employment by nationality","questionnaires","A - Census","Y",3,"every 3'rd year",100,null,136,72,0.52941176470588236,0.52941176470588236,0.52941176470588236,"replaced with \"Tanks and raceways\" seg8.2"]
["SWE","Hatcheries and nurseries","Other freshwater fish","S","Employment by nationality","questionnaires","A - Census","Y",3,"every 3'rd year",100,null,136,72,0.52941176470588236,0.52941176470588236,0.52941176470588236]
["SWE","Other","Mussels and Oysters","S","Employment by nationality","questionnaires","A - Census","Y",3,"every 3'rd year",100,"Mussels and Oysters needs to be clustered",136,72,0.52941176470588236,0.52941176470588236,0.52941176470588236]
["SWE","Other","Crustaceans","S","Employment by nationality","questionnaires","A - Census","Y",3,"every 3'rd year",100,null,136,72,0.52941176470588236,0.52941176470588236,0.52941176470588236]
["SWE","Hatcheries and nurseries","Salmon and trout","S","Employment by employment status","questionnaires","A - Census","Y",3,"every 3'rd year",100,"Salmon and trout needs to be clustered",136,72,0.52941176470588236,0.52941176470588236,0.52941176470588236]
["SWE","Ponds","Other freshwater fish","S","Employment by employment status","questionnaires","A - Census","Y",3,"every 3'rd year",100,null,136,72,0.52941176470588236,0.52941176470588236,0.52941176470588236]
["SWE","Recirculating systems","Other freshwater fish","S","Employment by employment status","questionnaires","A - Census","Y",3,"every 3'rd year",100,null,136,72,0.52941176470588236,0.52941176470588236,0.52941176470588236,"aggregated into seg 8.2"]
["SWE","Cages","Other freshwater fish","S","Employment by employment status","questionnaires","A - Census","Y",3,"every 3'rd year",100,null,136,72,0.52941176470588236,0.52941176470588236,0.52941176470588236]
["SWE","Polyculture","Other freshwater fish","S","Employment by employment status","questionnaires","A - Census","Y",3,"every 3'rd year",100,null,136,72,0.52941176470588236,0.52941176470588236,0.52941176470588236,"replaced with \"Tanks and raceways\" seg8.2"]
["SWE","Hatcheries and nurseries","Other freshwater fish","S","Employment by employment status","questionnaires","A - Census","Y",3,"every 3'rd year",100,null,136,72,0.52941176470588236,0.52941176470588236,0.52941176470588236]
["SWE","Other","Mussels and Oysters","S","Employment by employment status","questionnaires","A - Census","Y",3,"every 3'rd year",100,"Mussels and Oysters needs to be clustered",136,72,0.52941176470588236,0.52941176470588236,0.52941176470588236]
["SWE","Other","Crustaceans","S","Employment by employment status","questionnaires","A - Census","Y",3,"every 3'rd year",100,null,136,72,0.52941176470588236,0.52941176470588236,0.52941176470588236]
["SWE","Hatcheries and nurseries","Salmon and trout","S","FTE National","questionnaires","A - Census","Y",3,"every 3'rd year",100,"Salmon and trout needs to be clustered",136,72,0.52941176470588236,0.52941176470588236,0.52941176470588236]
["SWE","Ponds","Other freshwater fish","S","FTE National","questionnaires","A - Census","Y",3,"every 3'rd year",100,null,136,72,0.52941176470588236,0.52941176470588236,0.52941176470588236]
["SWE","Recirculating systems","Other freshwater fish","S","FTE National","questionnaires","A - Census","Y",3,"every 3'rd year",100,null,136,"N/A","N/A","N/A","N/A","aggregated into seg 8.2"]
["SWE","Cages","Other freshwater fish","S","FTE National","questionnaires","A - Census","Y",3,"every 3'rd year",100,null,136,72,0.52941176470588236,0.52941176470588236,0.52941176470588236]
["SWE","Polyculture","Other freshwater fish","S","FTE National","questionnaires","A - Census","Y",3,"every 3'rd year",100,null,136,72,0.52941176470588236,0.52941176470588236,0.52941176470588236,"replaced with \"Tanks and raceways\" seg8.2"]
["SWE","Hatcheries and nurseries","Other freshwater fish","S","FTE National","questionnaires","A - Census","Y",3,"every 3'rd year",100,null,136,72,0.52941176470588236,0.52941176470588236,0.52941176470588236]
["SWE","Other","Mussels and Oysters","S","FTE National","questionnaires","A - Census","Y",3,"every 3'rd year",100,"Mussels and Oysters needs to be clustered",136,72,0.52941176470588236,0.52941176470588236,0.52941176470588236]
["SWE","Other","Crustaceans","S","FTE National","questionnaires","A - Census","Y",3,"every 3'rd year",100,null,136,72,0.52941176470588236,0.52941176470588236,0.52941176470588236]
["SWE","Hatcheries and nurseries","Salmon and trout","E","Number of hours worked, employees","questionnaires","A - Census","Y",3,"every year",100,"Salmon and trout needs to be clustered",136,72,0.52941176470588236,0.52941176470588236,0.52941176470588236]
["SWE","Ponds","Other freshwater fish","E","Number of hours worked, employees","questionnaires","A - Census","Y",3,"every year",100,null,136,72,{"$f":"N262/M262","v":0.52941176470588236},{"$f":"O262","v":0.52941176470588236},{"$f":"N262/(M262*K262/100)","v":0.52941176470588236}]
["SWE","Recirculating systems","Other freshwater fish","E","Number of hours worked, employees","questionnaires","A - Census","Y",3,"every year",100,null,136,"N/A","N/A","N/A","N/A","aggregated into seg 8.2"]
["SWE","Cages","Other freshwater fish","E","Number of hours worked, employees","questionnaires","A - Census","Y",3,"every year",100,null,136,72,0.52941176470588236,0.52941176470588236,0.52941176470588236]
["SWE","Polyculture","Other freshwater fish","E","Number of hours worked, employees","questionnaires","A - Census","Y",3,"every year",100,null,136,72,0.52941176470588236,0.52941176470588236,0.52941176470588236,"replaced with \"Tanks and raceways\" seg8.2"]
["SWE","Hatcheries and nurseries","Other freshwater fish","E","Number of hours worked, employees","questionnaires","A - Census","Y",3,"every year",100,null,136,72,0.52941176470588236,0.52941176470588236,0.52941176470588236]
["SWE","Other","Mussels and Oysters","E","Number of hours worked, employees","questionnaires","A - Census","Y",3,"every year",100,"Mussels and Oysters needs to be clustered",136,72,0.52941176470588236,0.52941176470588236,0.52941176470588236]
["SWE","Other","Crustaceans","E","Number of hours worked, employees","questionnaires","A - Census","Y",3,"every year",100,null,136,72,0.52941176470588236,0.52941176470588236,0.52941176470588236]
["SWE","Hatcheries and nurseries","Salmon and trout","E","Number of hours worked, unpaid workers","questionnaires","A - Census","Y",3,"every year",100,"Salmon and trout needs to be clustered",136,72,0.52941176470588236,0.52941176470588236,0.52941176470588236]
["SWE","Ponds","Other freshwater fish","E","Number of hours worked, unpaid workers","questionnaires","A - Census","Y",3,"every year",100,null,136,72,0.52941176470588236,0.52941176470588236,0.52941176470588236]
["SWE","Recirculating systems","Other freshwater fish","E","Number of hours worked, unpaid workers","questionnaires","A - Census","Y",3,"every year",100,null,136,"N/A","N/A","N/A","N/A","aggregated into seg 8.2"]
["SWE","Cages","Other freshwater fish","E","Number of hours worked, unpaid workers","questionnaires","A - Census","Y",3,"every year",100,null,136,72,0.52941176470588236,0.52941176470588236,0.52941176470588236]
["SWE","Polyculture","Other freshwater fish","E","Number of hours worked, unpaid workers","questionnaires","A - Census","Y",3,"every year",100,null,136,72,0.52941176470588236,0.52941176470588236,0.52941176470588236,"replaced with \"Tanks and raceways\" seg8.2"]
["SWE","Hatcheries and nurseries","Other freshwater fish","E","Number of hours worked, unpaid workers","questionnaires","A - Census","Y",3,"every year",100,null,136,72,0.52941176470588236,0.52941176470588236,0.52941176470588236]
["SWE","Other","Mussels and Oysters","E","Number of hours worked, unpaid workers","questionnaires","A - Census","Y",3,"every year",100,"Mussels and Oysters needs to be clustered",136,72,0.52941176470588236,0.52941176470588236,0.52941176470588236]
["SWE","Other","Crustaceans","E","Number of hours worked, unpaid workers","questionnaires","A - Census","Y",3,"every year",100,null,136,72,0.52941176470588236,0.52941176470588236,0.52941176470588236]
["SWE","Hatcheries and nurseries","Salmon and trout","E","Number of enterprises ","questionnaires","A - Census","Y",3,"every year",100,"Salmon and trout needs to be clustered",136,113,0.83088235294117652,0.83088235294117652,0.83088235294117652]
["SWE","Ponds","Other freshwater fish","E","Number of enterprises ","questionnaires","A - Census","Y",3,"every year",100,null,136,113,0.83088235294117652,0.83088235294117652,0.83088235294117652]
["SWE","Recirculating systems","Other freshwater fish","E","Number of enterprises ","questionnaires","A - Census","Y",3,"every year",100,null,136,113,0.83088235294117652,0.83088235294117652,0.83088235294117652]
["SWE","Cages","Other freshwater fish","E","Number of enterprises ","questionnaires","A - Census","Y",3,"every year",100,null,136,113,0.83088235294117652,0.83088235294117652,0.83088235294117652]
["SWE","Polyculture","Other freshwater fish","E","Number of enterprises ","questionnaires","A - Census","Y",3,"every year",100,null,136,113,0.83088235294117652,0.83088235294117652,0.83088235294117652,"replaced with \"Tanks and raceways\" seg8.2"]
["SWE","Hatcheries and nurseries","Other freshwater fish","E","Number of enterprises ","questionnaires","A - Census","Y",3,"every year",100,null,136,113,0.83088235294117652,0.83088235294117652,0.83088235294117652]
["SWE","Other","Mussels and Oysters","E","Number of enterprises ","questionnaires","A - Census","Y",3,"every year",100,"Mussels and Oysters needs to be clustered",136,113,0.83088235294117652,0.83088235294117652,0.83088235294117652]
["SWE","Other","Crustaceans","E","Number of enterprises ","questionnaires","A - Census","Y",3,"every year",100,null,136,113,0.83088235294117652,0.83088235294117652,0.83088235294117652]
["SWE","Hatcheries and nurseries","Salmon and trout","Environmental","Mortalities","questionnaires","A - Census","Y",3,"every year",100,"Salmon and trout needs to be clustered",136,"N/A","N/A","N/A","N/A","data collection methodology still under development"]
["SWE","Ponds","Other freshwater fish","Environmental","Mortalities","questionnaires","A - Census","Y",3,"every year",100,null,136,"N/A","N/A","N/A","N/A","data collection methodology still under development"]
["SWE","Recirculating systems","Other freshwater fish","Environmental","Mortalities","questionnaires","A - Census","Y",3,"every year",100,null,136,"N/A","N/A","N/A","N/A","data collection methodology still under development"]
["SWE","Cages","Other freshwater fish","Environmental","Mortalities","questionnaires","A - Census","Y",3,"every year",100,null,136,"N/A","N/A","N/A","N/A","data collection methodology still under development"]
["SWE","Polyculture","Other freshwater fish","Environmental","Mortalities","questionnaires","A - Census","Y",3,"every year",100,null,136,"N/A","N/A","N/A","N/A","data collection methodology still under development"]
["SWE","Hatcheries and nurseries","Other freshwater fish","Environmental","Mortalities","questionnaires","A - Census","Y",3,"every year",100,null,136,"N/A","N/A","N/A","N/A","data collection methodology still under development"]
["SWE","Other","Mussels and Oysters","Environmental","Mortalities","questionnaires","A - Census","Y",3,"every year",100,"Mussels and Oysters needs to be clustered",136,"N/A","N/A","N/A","N/A","data collection methodology still under development"]
["SWE","Other","Crustaceans","Environmental","Mortalities","questionnaires","A - Census","Y",3,"every year",100,null,136,"N/A","N/A","N/A","N/A","data collection methodology still under development"]
["SWE","all techniques clustered","all segments clustered","Environmental","Medicines or treatments administered","questionnaires","A - Census","y",3,"every year",100,"Data only available as total amount used",136,136,1,1,1,"not questionnaire but managing authority"]

{"sheet":"Table3C Pop segments processing","index":11,"n_rows":31,"n_cols":15,"rows_kept":31,"cut":false,"hidden":false,"merged":[]}
["Table 3C: Population segments for collection of economic and social data for the processing industry"]
[null,null,null,null,null,null,null,null,null,null,null,null,null,"WP  years","2018-2019"]
[null,null,null,null,null,null,null,null,null,null,null,null,null,"AR year",2018]
["MS","Segment","Type of variables (E/S)","Variables ","Data sources","Type of data collection scheme ","Frequency","Planned sample rate % ","Comments","Frame population","Achieved sample number","Achieved Sample Rate %","Response Rate %","Achieved Sample no/Planned sample no.","AR Comments"]
["SWE","all segments. Enterprises with ≥ 250 employees will be clustered with enterprises with 50-249 employees due to confidentiality reasons.","E","Turnover","financial accounts","A - Census","Every year",1,null,213,213,{"$f":"K5/J5","v":1},100,{"$f":"K5/(J5*H5/100)","v":100}]
["SWE","all segments. Enterprises with ≥ 250 employees will be clustered with enterprises with 50-249 employees due to confidentiality reasons.","E","Other income","financial accounts","A - Census","Every year",1,null,213,213,{"$f":"K6/J6","v":1},101,{"$f":"K6/(J6*H6/100)","v":100}]
["SWE","all segments. Enterprises with ≥ 250 employees will be clustered with enterprises with 50-249 employees due to confidentiality reasons.","E","Personnel costs","financial accounts","A - Census","Every year",1,null,213,213,1,102,100]
["SWE","all segments. Enterprises with ≥ 250 employees will be clustered with enterprises with 50-249 employees due to confidentiality reasons.","E","Value of unpaid labour","Expert evaluation","A - Census","Every year",1,"The value is based on expert evaluation which is different from the WP which states own calculations.",213,213,1,103,100,"Data will be based on an expert evaluation made by the competent authority Statistics Sweden. The reason for this is that it is not possible to use any regular data collection scheme. "]
["SWE","all segments. Enterprises with ≥ 250 employees will be clustered with enterprises with 50-249 employees due to confidentiality reasons.","E","Value for external agency workers (optional)",null,null,null,null,"It's optional and SWE will not collect the data. ",null,null,null,null,null,"Did not collect as stated in WP."]
["SWE","all segments. Enterprises with ≥ 250 employees will be clustered with enterprises with 50-249 employees due to confidentiality reasons.","E","energy costs","questionnaires","C - Non-Probability Sample Survey","Every year",1,null,17,17,{"$f":"K10/J10","v":1},100,{"$f":"K10/(J10*H10/100)","v":99.999999999999986}]
["SWE","all segments. Enterprises with ≥ 250 employees will be clustered with enterprises with 50-249 employees due to confidentiality reasons.","E","Purchase of fish and other raw material for produkction","financial accounts + questionnaires","A - Census","Every year",1,null,213,213,{"$f":"K11/J11","v":1},103,{"$f":"K11/(J11*H11/100)","v":100}]
["SWE","all segments. Enterprises with ≥ 250 employees will be clustered with enterprises with 50-249 employees due to confidentiality reasons.","E","other operational costs","financial accounts","A - Census","Every year",1,null,213,213,1,103,100]
["SWE","all segments. Enterprises with ≥ 250 employees will be clustered with enterprises with 50-249 employees due to confidentiality reasons.","E","operating subsidies","questionnaires","C - Non-Probability Sample Survey","Every year",1,"It's not possible for SWE to seperate subsidies to a reasonable cost. We'll collect data for the variable group.",17,17,{"$f":"K13/J13","v":1},100,{"$f":"K13/(J13*H13/100)","v":99.999999999999986},"We reported according to WP."]
["SWE","all segments. Enterprises with ≥ 250 employees will be clustered with enterprises with 50-249 employees due to confidentiality reasons.","E","subsidies on investments","questionnaires","C - Non-Probability Sample Survey","Every year",1,"It's not possible for SWE to seperate subsidies to a reasonable cost. We'll collect data for the variable group.",17,17,{"$f":"K14/J14","v":1},100,{"$f":"K14/(J14*H14/100)","v":99.999999999999986},"We reported according to WP."]
["SWE","all segments. Enterprises with ≥ 250 employees will be clustered with enterprises with 50-249 employees due to confidentiality reasons.","E","consumption of fixed capital","financial accounts","A - Census","Every year",1,null,213,213,{"$f":"K15/J15","v":1},103,{"$f":"K15/(J15*H15/100)","v":100}]
["SWE","all segments. Enterprises with ≥ 250 employees will be clustered with enterprises with 50-249 employees due to confidentiality reasons.","E","total value of assets","financial accounts","A - Census","Every year",1,null,213,213,1,103,100]
["SWE","all segments. Enterprises with ≥ 250 employees will be clustered with enterprises with 50-249 employees due to confidentiality reasons.","E","Financial income","financial accounts","A - Census","Every year",1,null,213,213,1,103,100]
["SWE","all segments. Enterprises with ≥ 250 employees will be clustered with enterprises with 50-249 employees due to confidentiality reasons.","E","Financial expenditure","financial accounts","A - Census","Every year",1,null,213,213,1,103,100]
["SWE","all segments. Enterprises with ≥ 250 employees will be clustered with enterprises with 50-249 employees due to confidentiality reasons.","E","Net investments","financial accounts","A - Census","Every year",1,null,213,213,1,103,100]
["SWE","all segments. Enterprises with ≥ 250 employees will be clustered with enterprises with 50-249 employees due to confidentiality reasons.","E","debt","financial accounts","A - Census","Every year",1,null,213,213,1,103,100]
["SWE","all segments. Enterprises with ≥ 250 employees will be clustered with enterprises with 50-249 employees due to confidentiality reasons.","E","Number of persons employed","Employment Register","A - Census","Every year",1,null,213,213,1,103,100]
["SWE","all segments. Enterprises with ≥ 250 employees will be clustered with enterprises with 50-249 employees due to confidentiality reasons.","E","FTE National","financial accounts","A - Census","Every year",1,null,213,213,1,103,100]
["SWE","all segments. Enterprises with ≥ 250 employees will be clustered with enterprises with 50-249 employees due to confidentiality reasons.","E","Unpaid labour","Expert evaluation","A - Census","Evey year",1,null,213,null,null,null,null,"Data is based on an expert evaluation made by the competent authority Statistics Sweden. The reason for this is that it is not possible to use any regular data collection scheme. "]
["SWE","all segments. Enterprises with ≥ 250 employees will be clustered with enterprises with 50-249 employees due to confidentiality reasons.","E","Number of hours worked by employees and unpaid workers",null,"A - Census","Every year",1,"The datacollection in SWE is on a aggregate level. It's not sure SWE can collect disagregated data. ",213,null,null,null,null,"Not possible for SWE to collect as stated in WP."]
["SWE","all segments. Enterprises with ≥ 250 employees will be clustered with enterprises with 50-249 employees due to confidentiality reasons.","E","Number of enterprises","Business Register","A - Census","Every year",1,null,213,213,{"$f":"K25/J25","v":1},103,{"$f":"K25/(J25*H25/100)","v":100}]
["SWE","all segments. Enterprises with ≥ 250 employees will be clustered with enterprises with 50-249 employees due to confidentiality reasons.","E","Weight of raw material per species and origin (optional)",null,null,null,null,"It's optional and SWE will not collect the data. ",null,null,null,null,null,"Did not collect as stated in WP."]
["SWE","all segments. EnteB32:N47rprises with ≥ 250 employees will be clustered with enterprises with 50-249 employees due to confidentiality reasons.","S","Employment by gender","Employment Register","A - Census","Every 3rd year",1,null,213,213,1,103,100]
["SWE","all segments. Enterprises with ≥ 250 employees will be clustered with enterprises with 50-249 employees due to confidentiality reasons.","S","Employment by age","Employment Register","A - Census","Every 3rd year",1,null,213,213,1,103,100]
["SWE","all segments. Enterprises with ≥ 250 employees will be clustered with enterprises with 50-249 employees due to confidentiality reasons.","S","Employment by education level","Employment Register","A - Census","Every 3rd year",1,null,213,213,1,103,100]
["SWE","all segments. Enterprises with ≥ 250 employees will be clustered with enterprises with 50-249 employees due to confidentiality reasons.","S","Employment by nationality","Employment Register","A - Census","Every 3rd year",1,null,213,213,1,103,100]
["SWE","all segments. Enterprises with ≥ 250 employees will be clustered with enterprises with 50-249 employees due to confidentiality reasons.","S","FTE National","financial accounts","A - Census","Every 3rd year",1,null,213,213,1,103,100]

{"sheet":"Table4A Sampling plan descripti","index":12,"n_rows":38,"n_cols":25,"rows_kept":38,"cut":false,"hidden":false,"merged":[[3,15,3,17],[3,18,3,24]]}
["Table 4A: Sampling plan description for biological data"]
[null,null,null,null,null,null,null,null,null,null,null,null,null,null,null,null,null,null,null,null,null,null,null,"WP  years","2018-2019"]
[null,null,null,null,null,null,null,null,null,null,null,null,null,null,null,null,null,null,null,null,null,null,null,"AR year",2018]
[null,null,null,null,null,null,null,null,null,null,null,null,null,null,null,"Conformity",null,null,"Informative Data"]
["MS","MS participating in sampling","Region","RFMO/RFO/IO","Sub-area / Fishing ground","Scheme","Stratum ID code","PSU type","Catch fractions covered","Species/ Stocks covered for estimation of volume and length of catch fractions","Seasonality (Temporal strata)","Reference years","Average Number of PSU during the reference years         ","Planned number of PSUs","Comments","Total number of PSU in the sampling year","Achieved number of PSU in the sampling year","% of achievement (100*Q/N)","Number of unique vessels with activity in the stratum","Number of unique vessels sampled ","Number of fishing trips in the stratum","Number of fishing trips sampled ","Number of species with length measurements","Total number of length measurements","AR Comments "]
["SWE","SWE","North sea and Eastern Arctic","ICES","20,21","Skagerrak/Kattegat at-sea","SWE - SkaKat (at-sea) - Act - 20/21 - PanTrawlTun","Vessel","landings+discards","All species and stocks","Quarterly","2013-2015",32.299999999999997,3,null,24,9,{"$f":"100*9/12","v":75},24,6,781,9,64,{"$f":"10837+5709","v":16546},"Value for planned PSUs (column N) refers to quarterly sample size so annual sample size is really n=3*4=12. Albeit PSU is vessel, vessels are selected without replacement from quarterly sampling frames with one trip taken for each vessel selected. This means the same vessel can be present in multiple quarters and the number of PSU sampled (column Q)is identical to the number of fishing trips (column V). Based on the above, % achievement (Column R)  was 9/(3*4)*100 = 75%. Slight departure from 100% relates to difficulties in compensating for bad weather events. "]
["SWE","SWE","North sea and Eastern Arctic","ICES","20,21","Skagerrak/Kattegat at-sea","SWE - SkaKat (at-sea) - Act - 20/21 - PanTrawlNoTun","Vessel","landings+discards","All species and stocks","Quarterly","2013-2015",51,3,null,46,12,{"$f":"100*12/12","v":100},46,12,1811,12,29,{"$f":"667+7344","v":8011},"Value for planned PSUs (column N) refers to quarterly sample size so annual sample size is really n=3*4=12. Albeit PSU is vessel, vessels are selected without replacement from quarterly sampling frames with one trip taken for each vessel selected. This means the same vessel can be present in multiple quarters and the number of PSU sampled (column Q)is identical to the number of fishing trips (column V). Based on the above, % achievement (Column R)  was 12/(3*4)*100 = 100%."]
["SWE","SWE","North sea and Eastern Arctic","ICES",20,"Skagerrak/Kattegat at-sea","SWE - SkaKat (at-sea) - Act - 20 - NepTrawlGrid","Vessel","landings+discards","All species and stocks","Quarterly","2013-2015",80,3,null,69,12,{"$f":"100*12/12","v":100},69,11,3349,12,36,9077,"Value for planned PSUs (column N) refers to quarterly sample size so annual sample size is really n=3*4=12. Albeit PSU is vessel, vessels are selected without replacement from quarterly sampling frames with one trip taken for each vessel selected. This means the same vessel can be present in multiple quarters and the number of PSU sampled (column Q)is identical to the number of fishing trips (column V). Based on the above, % achievement (Column R)  was 12/(3*4)*100 = 100%."]
["SWE","SWE","North sea and Eastern Arctic","ICES",21,"Skagerrak/Kattegat at-sea","SWE - SkaKat (at-sea) - Act - 21 - NepTrawlGrid","Vessel","landings+discards","All species and stocks","Quarterly","2013-2015",41,3,null,39,9,{"$f":"100*9/12","v":75},39,7,1260,9,46,9144,"Value for planned PSUs (column N) refers to quarterly sample size so annual sample size is really n=3*4=12. Albeit PSU is vessel, vessels are selected without replacement from quarterly sampling frames with one trip taken for each vessel selected. This means the same vessel can be present in multiple quarters and the number of PSU sampled (column Q)is identical to the number of fishing trips (column V). Based on the above, % achievement (Column R)  was 9/(3*4)*100 = 75%. Slight departure from 100% relates to difficulties in compensating for bad weather events. "]
["SWE","SWE","North sea and Eastern Arctic","ICES",20,"Skagerrak/Kattegat at-sea","SWE - SkaKat (at-sea) - Act - 20 - MixTrawl","Vessel","landings+discards","All species and stocks","Quarterly","2013-2015",68.7,3,null,64,12,{"$f":"100*12/12","v":100},64,10,1901,12,52,11997,"Value for planned PSUs (column N) refers to quarterly sample size so annual sample size is really n=3*4=12. Albeit PSU is vessel, vessels are selected without replacement from quarterly sampling frames with one trip taken for each vessel selected. This means the same vessel can be present in multiple quarters and the number of PSU sampled (column Q)is identical to the number of fishing trips (column V). Based on the above, % achievement (Column R)  was 12/(3*4)*100 = 100%."]
["SWE","SWE","North sea and Eastern Arctic","ICES",21,"Skagerrak/Kattegat at-sea","SWE - SkaKat (at-sea) - Act - 21 - MixTrawl","Vessel","landings+discards","All species and stocks","Quarterly","2013-2015",43,3,null,48,12,{"$f":"100*12/12","v":100},48,10,1624,12,46,12672,"Value for planned PSUs (column N) refers to quarterly sample size so annual sample size is really n=3*4=12. Albeit PSU is vessel, vessels are selected without replacement from quarterly sampling frames with one trip taken for each vessel selected. This means the same vessel can be present in multiple quarters and the number of PSU sampled (column Q)is identical to the number of fishing trips (column V). Based on the above, % achievement (Column R)  was 12/(3*4)*100 = 100%."]
["SWE","SWE","North sea and Eastern Arctic","ICES","20,21","Skagerrak/Kattegat at-sea","SWE - SkaKat (at-sea) - Pass - 20/21 - NepPots","Vessel","landings+discards","All species and stocks","Quarterly","2013-2015",105.7,3,null,95,9,{"$f":"100*9/12","v":75},95,8,6455,9,26,{"$f":"314+3865","v":4179},"Value for planned PSUs (column N) refers to quarterly sample size so annual sample size is really n=3*4=12. Albeit PSU is vessel, vessels are selected without replacement from quarterly sampling frames with one trip taken for each vessel selected. This means the same vessel can be present in multiple quarters and the number of PSU sampled (column Q)is identical to the number of fishing trips (column V). Based on the above, % achievement (Column R)  was 9/(3*4)*100 = 75%. Slight departure from 100% relates to difficulties in compensating for bad weather events. "]
["SWE","SWE","North sea and Eastern Arctic","ICES","20,21","Skagerrak/Kattegat at-sea","SWE - SkaKat (at-sea) - OutOfFrame","Vessel","None","None","None","2013-2015",339,0,"Out of frame - includes all PSUs that are not covered by the sampling scheme Skagerrak/Kattegat at-sea",297,0,null,297,0,10115,0,0,0]
["SWE","SWE","Baltic Sea","ICES","22-32","Baltic self-sampling","SWE - Balt (self) - Act - 22/32 - DemTrawl","Week","Landings","selected species/stocks","Quarterly","2013-2015",52,{"$f":"8*4","v":32},"Only cod is measured",52,20,{"$f":"100*20/20","v":100},33,14,488,54,1,13594,"PSU sampling goals were reduced from 8 to 5 weeks per quarter, i.e., to 20 weeks per year, as a response to the situation of the fishery (-58% relative to reference years). Results indicate that present sampling by size category still performs well at these lower level. Planned number of PSUs refers to quarterly sample size so in reality annual value is 5*4 = 20 weeks (column N) and % achievement in terms of PSUs (column Q) was 20/(5*4)*100 = 100%. "]
["SWE","SWE","Baltic Sea","ICES","24-25","Baltic at-sea","SWE - Balt (at-sea) - Act - 24/25 - DemTrawl","Vessel","landings+discards","All species and stocks","Quarterly","2013-2015",34.700000000000003,4,null,33,12,{"$f":"100*12/12","v":100},33,6,488,12,15,24383,"Value for planned PSUs (column N) refers to quarterly sample size so annual sample size is really n=3*4=12. Albeit PSU is vessel, vessels are selected without replacement from quarterly sampling frames with one trip taken for each vessel selected. This means the same vessel can be present in multiple quarters and the number of PSU sampled (column Q) is identical to the number of fishing trips (column V). Based on the above, % achievement (Column R) was 12/(3*4)*100 = 100%."]
["SWE","SWE","Baltic Sea","ICES",23,"Baltic at-sea or self-sampling","SWE - Balt (at-sea/self) - Pass - 23 - DemNets","Vessel (at-sea); Week (self-sampling)","landings+discards","All species and stocks","Quarterly","2013-2015","51.0 (at-sea)","4 (at-sea)","The stratum will primarily be sampled at-sea. Final decision between at-sea and self-sampling in this stratum depends on yet-unknown logistics, safety and refusals in at-sea sampling;",48,"12 weeks",{"$f":"100*12/20","v":60},48,18,2206,27,24,5009,"Changes to sampling plan made in the begining of 2018 are described in TexBox 4A. Briefly, PSU adopted was week and sampling effort was set to 5 weeks per quarter with 1-2 trips sampled each week as response to large decreases in the fishery. Accordingly, the expected number of annual PSU (column Q) was 20 weeks and % achievement in terms of PSU (column R) was effectively 12/20*100 = 60%. The main reason for <100% achievement relates to the fact that the cod fishery have deteriorated in recent years primarily due to the poor status of the Eastern Baltic cod. In 2018 only 29% of the quota was utilized and swedish landings from western baltic cod were -56%  of those registered during the reference period. The small scale coastal fishery is also deteriorating due to seal predation in the gears. The rapid decline in the fishery makes it difficult to predict fishing patterns (more details in textBox 4A)"]
["SWE","SWE","Baltic Sea","ICES",24,"Baltic at-sea or self-sampling","SWE - Balt (at-sea/self) - Pass - 24 - DemNets","Week (self-sampling); Vessel (at-sea)","landings","All species and stocks","Quarterly","2013-2015","12 (self-sampling)","8 (self-sampling)","The stratum will primarily be sampled through self-sampling. Final decision between at-sea and self-sampling in this stratum depends on logistics, safety and refusals in at-sea sampling; Sampling in 2016-2017 revealed a low percentage of discards in SD 24-29. In these areas cod below minimum landing size is usually landed. The landed BMS cod will be picked up by the self-sampling programme.",52,"8 weeks",{"$f":"100*8/20","v":40},39,19,1244,24,13,2831,"Changes to sampling plan made in the begining of 2018 are described in TexBox 4A. PSU sampling goals were reduced from 8 to 5 weeks per quarter, i.e., to 20 weeks per year, as response to large decreases in the fishery. Planned number of PSUs (column N) refers to quarterly sample size so in reality annual value is 5*4 = 20 weeks and % achievement in terms of PSUs (column R) was 8/20*100 = 40%.  Reasons for the departure from expected were relate to the fact that the cod fishery have deteriorated in recent years primarily due to the poor status of the Eastern Baltic cod. In 2018 only 29% of the quota was utilized and swedish landings are now less than 50% of those registered during the reference period. The small scale coastal fishery is also deteriorating due to seal predation in the gears. The rapid decline in the fishery makes it difficult to predict fishing patterns (more details in TextBox4A). "]
["SWE","SWE","Baltic Sea","ICES",25,"Baltic at-sea or self-sampling","SWE - Balt (at-sea/self) - Pass - 25 - DemNets","Week (self-sampling); Vessel (at-sea)","landings","All species and stocks","Quarterly","2013-2015","12 (self-sampling)","8 (self-sampling)","The stratum will primarily be sampled through self-sampling. Final decision between at-sea and self-sampling in this stratum depends on logistics, safety and refusals in at-sea sampling; Sampling in 2016-2017 revealed a low percentage of discards in SD 24-29. In these areas cod below minimum landing size is usually landed. The landed BMS cod will be picked up by the self-sampling programme.",52,"17 weeks",{"$f":"100*17/20","v":85},77,13,1967,23,14,2606,"Changes to sampling plan made in the begining of 2018 are described in TexBox 4A.  PSU sampling goals were reduced from 8 to 5 weeks per quarter, i.e., to 20 weeks per year, as response to large decreases in the fishery. Planned number of PSUs (column N) refers to quarterly sample size so in reality annual value is 5*4 = 20 weeks and % achievement in terms of PSUs (column R) was  17/20*100 = 85%.   The main reason for <100% achievement relates to the fact that the cod fishery have deteriorated in recent years primarily due to the poor status of the Eastern Baltic cod  (more details in TextBox4A). . "]
["SWE","SWE","Baltic Sea","ICES","27-29","Baltic at-sea or self-sampling","SWE - Balt (at-sea/self) - Pass - 27/29 - DemNets","Week (self-sampling); Vessel (at-sea)","landings","All species and stocks","Quarterly","2013-2015","12 (self-sampling)","6 (self-sampling)","The stratum will primarily be sampled through self-sampling. Final decision between at-sea and self-sampling in this stratum depends on logistics, safety and refusals in at-sea sampling; Sampling in 2016-2017 revealed a low percentage of discards in SD 24-29. In these areas cod below minimum landing size is usually landed. The landed BMS cod will be picked up by the self-sampling programme.",52,"5 weeks",{"$f":"100*5/20","v":25},62,9,1494,18,11,5667,"Changes to sampling plan made in the begining of 2018 are described in TexBox 4A. PSU sampling goals were reduced from 8 to 5 weeks per quarter, i.e., to 20 weeks per year, as a response to the situation of the fishery. Planned number of PSUs (column N) refers to quarterly sample size so in reality annual value is 5*4 = 20 weeks and % achievement in terms of PSUs (column R) was 5/20*100 = 25%. Reasons for the departure from expected were relate to the fact that the cod fishery have deteriorated in recent years primarily due to the poor status of the Eastern Baltic cod. In 2018 only 29% of the quota was utilized and swedish landings are now less than 50% of those registered during the reference period. The small scale coastal fishery is also deteriorating due to seal predation in the gears. The rapid decline in the fishery makes it difficult to predict fishing patterns.  (more details in TextBox4A). "]
["SWE","SWE","Baltic Sea","ICES",24,"Baltic at-sea or self-sampling","SWE - Balt (at-sea/self) - Pass - 24 - DemLonglines","Week (self-sampling); Vessel (at-sea)","landings","All species and stocks","Quarterly","2013-2015","12 (self-sampling)","6 (self-sampling)","The stratum will primarily be sampled through self-sampling. Final decision between at-sea and self-sampling in this stratum depends on logistics, safety and refusals in at-sea sampling; Sampling in 2016-2017 revealed a low percentage of discards in SD 24-29. In these areas cod below minimum landing size is usually landed. The landed BMS cod will be picked up by the self-sampling programme.",52,"3 weeks",{"$f":"100*19/20","v":95},5,2,41,3,3,345,"Changes to sampling plan made in the begining of 2018 are described in TexBox 4A.  Additional change involved the merging of strata \"24 DemLonglines\" and \"25 DemLonglines\" were merged . Planned number of PSUs (column N) refers to quarterly sample size so in reality annual value is 5*4 = 20 weeks (for both strata) and % achievement in terms of PSUs (column R) was  19/20*100 = 95%.  Reasons for the departure from expected  are the same as reported for other passive strata with the negative consequences of baltic cod deterioration being attenuated by the decision of merging strata (most trips take place in SD25)"]
["SWE","SWE","Baltic Sea","ICES",25,"Baltic at-sea or self-sampling","SWE - Balt (at-sea/self) - Pass - 25 - DemLonglines","Week (self-sampling); Vessel (at-sea)","landings","All species and stocks","Quarterly","2013-2015","12 (self-sampling)","6 (self-sampling)","The stratum will primarily be sampled through self-sampling. Final decision between at-sea and self-sampling in this stratum depends on logistics, safety and refusals in at-sea sampling; Sampling in 2016-2017 revealed a low percentage of discards in SD 24-29. In these areas cod below minimum landing size is usually landed. The landed BMS cod will be picked up by the self-sampling programme.",52,"19 weeks",{"$f":"100*19/20","v":95},21,6,319,22,5,3651,"Changes to sampling plan made in the begining of 2018 are described in TexBox 4A.  Additional change involved the merging of strata \"24 DemLonglines\" and \"25 DemLonglines\" were merged . Planned number of PSUs (column N) refers to quarterly sample size so in reality annual value is 5*4 = 20 weeks (for both strata) and % achievement in terms of PSUs (column R) was  19/20*100 = 95%."]
["SWE","SWE","Baltic Sea","ICES","22-32","Baltic at-sea or self-sampling","SWE - Balt (at-sea/self) - OutOfFrame","Vessel","None","None","None","2013-2015",487.7,0,null,460,0,null,460,0,23465,0,0,0]
["SWE","SWE","Baltic Sea","ICES","SD30","Baltic onshore sampling","KBN3","Vessel","Landings+Discards","all species and stocks","monthly",2015,16,1,"Seasonality: Monthly throughout the year provided that ice conditions permit fishery.",2,2,{"$f":"100*Q23/N23","v":200},2,2,218,7,7,3695]
["SWE","SWE","Baltic Sea","ICES","SD30-31","Baltic onshore sampling","KBN4","Vessel","Landings+Discards","all species and stocks","monthly",2015,80,6,"Seasonality: Monthly during fishing season (April-September).",71,6,{"$f":"100*Q24/N24","v":100},71,6,1663,11,9,3617]
["SWE","SWE","Baltic Sea","ICES","SD31","Baltic onshore sampling","KBN5","Local fishing area","Landings+Discards","all species and stocks","monthly",2015,5,5,"Seasonality: Monthly during fishing season (limited to the vendace's spawning period in September-October). PSU: 5 different local fishing areas are identified within the Sub-area/Fishing ground SD31. To ensure that data are collected from all these 5 areas, as required by  the national stock assessment group, \"local fishing area\" is set as the PSU.",5,5,{"$f":"100*Q25/N25","v":100},35,4,554,4,7,925]
["SWE","SWE","Baltic Sea","EIFAAC/ICES/GFCM ","SD22-24","Baltic at-sea 2","KBWE2","Vessel","Landings+Discards","all species and stocks","monthly",2015,17,1,"Seasonality: Monthly during fishing season (special individual permit is required where start and stop days are defined).  Besides the metier-sampling, silver eel are collected for biological (stock) sampling and they are selected by length stratification.",5,0,{"$f":"100*Q26/N26","v":0},5,0,429,0,0,0,"Not sampled in 2018 due to restrictions in the fishery and therefore underachieved."]
["SWE","SWE","Baltic Sea","EIFAAC/ICES/GFCM ","SD25-29,32","Baltic at-sea 2","KBEE2/KBEE3","Vessel","Landings+Discards","all species and stocks","monthly",2015,127,2,"Seasonality: Monthly during fishing season (special individual permit is required where start and stop days are defined).  Besides the metier-sampling, silver eel are collected for biological (stock) sampling and they are selected by length stratification.",60,4,{"$f":"100*Q27/N27","v":200},60,2,6469,6,29,2287,"In SD 25  three different boats were used for the metier sampling and in four we were onboard. "]
["SWE","SWE","North sea and Eastern Arctic","ICES",20,"Skagerrak/Kattegat other (market stock specific)","SWE - SkaKat (stock spec) - Act - 20 - HerSpr","Fishing trip x species (HER, SPR)","landings","selected species/stocks","Quarterly","2013-2015",214,"Not defined","PSU number calculated from trip * species combinations",100,33,"NA",13,8,100,33,2,2409]
["SWE","SWE","North sea and Eastern Arctic","ICES",21,"Skagerrak/Kattegat other (market stock specific)","SWE - SkaKat (stock spec) - Act - 21 - HerSpr","Fishing trip x species (HER, SPR)","landings","selected species/stocks","Quarterly","2013-2015",64.7,"Not defined","PSU number calculated from trip * species combinations",81,20,"NA",7,6,81,20,2,1311]
["SWE","SWE","North sea and Eastern Arctic","ICES",20,"Skagerrak/Kattegat other (market stock specific)","SWE - SkaKat (stock spec) - Act - 20 - Cod","Fishing trip x species (COD)","Landings","selected species/stocks","Quarterly","2013-2015",2254.3000000000002,"Not defined","PSU number calculated from trip * species combinations",2663.9,64,"NA",109,23,2664,64,1,1780]
["SWE","SWE","North sea and Eastern Arctic","ICES",21,"Skagerrak/Kattegat other (market stock specific)","SWE - SkaKat (stock spec) - Act - 21 - Cod","Fishing trip x species (COD)","Landings","selected species/stocks","Quarterly","2013-2015",495.3,"Not defined","PSU number calculated from trip * species combinations",795.3,34,"NA",47,10,795,34,1,642]
["SWE","SWE","Baltic Sea","ICES",24,"Baltic other (market, stock specific)","SWE - Balt (stock spec) - Act - 24 - HerSpr","Fishing trip x species (HER, SPR)","landings","selected species/stocks","Quarterly","2013-2015",43,"Not defined","PSU number calculated from trip * species combinations",27,12,"NA",3,2,27,12,2,1459]
["SWE","SWE","Baltic Sea","ICES",25,"Baltic other (market, stock specific)","SWE - Balt (stock spec) - Act - 25 - HerSpr","Fishing trip x species (HER, SPR)","landings","selected species/stocks","Quarterly","2013-2015",705.3,"Not defined","PSU number calculated from trip * species combinations",732.3,33,"NA",29,6,732,33,2,3747]
["SWE","SWE","Baltic Sea","ICES",26,"Baltic other (market, stock specific)","SWE - Balt (stock spec) - Act - 26 - HerSpr","Fishing trip x species (HER, SPR)","landings","selected species/stocks","Quarterly","2013-2015",19,"Not defined","PSU number calculated from trip * species combinations",43,7,"NA",11,5,43,7,2,926]
["SWE","SWE","Baltic Sea","ICES",27,"Baltic other (market, stock specific)","SWE - Balt (stock spec) - Act - 27 - HerSpr","Fishing trip x species (HER, SPR)","landings","selected species/stocks","Quarterly","2013-2015",592.70000000000005,"Not defined","PSU number calculated from trip * species combinations",780.3,13,"NA",31,4,780,13,2,2235]
["SWE","SWE","Baltic Sea","ICES",28,"Baltic other (market, stock specific)","SWE - Balt (stock spec) - Act - 28 - HerSpr","Fishing trip x species (HER, SPR)","landings","selected species/stocks","Quarterly","2013-2015",383.3,"Not defined","PSU number calculated from trip * species combinations",490.5,13,"NA",22,7,490,13,2,1725]
["SWE","SWE","Baltic Sea","ICES",29,"Baltic other (market, stock specific)","SWE - Balt (stock spec) - Act - 29 - HerSpr","Fishing trip x species (HER, SPR)","landings","selected species/stocks","Quarterly","2013-2015",115,"Not defined","PSU number calculated from trip * species combinations",148.69999999999999,3,"NA",17,3,149,3,2,435]
["SWE","SWE","Freshwater","ICES","freshwater","logbooks & journals","EEL-Fresh","Fisherman X lake","landings + discard","Eel","annual ","2015-2017","NA","NA","Fishery statistics required for the assessment. All trips are sampled as all catch is reported. Biological sampling described in textbox 4A and table 1C.",57,3,100,57,3,"NA",3,1,324,"NA = due to different legal requirements in different lakes, no measure of fishing effort exists."]

{"sheet":"Table4B Sampling frame descrip","index":13,"n_rows":39,"n_cols":6,"rows_kept":39,"cut":false,"hidden":false,"merged":[]}
["Table 4B: Sampling frame description for biological data"]
[null,null,null,null,"WP  years","2018-2019"]
[null,null,null,null,"AR year",2018]
["MS","Stratum ID number","Stratum","Sampling frame description ","Method of PSU selection ","Comments"]
["SWE","SWE - SkaKat (at-sea) - Act - 20/21 - PanTrawlTun","Shrimp trawlers operating with tunnel in Skagerrak and Kattegat ","List of trawlers active in the Pandalus fishery with tunnel in subdiv 20 or 21 during 2016","random draw from vessel list with unequal probability (probability proportional to number of trips; draw with replacement)"]
["SWE","SWE - SkaKat (at-sea) - Act - 20/21 - PanTrawlNoTun","Shrimp trawlers operating without tunnel in Skagerrak and Kattegat ","List of trawlers active in the Pandalus fishery without tunnel in subdiv 20 or 21 during 2016","random draw from vessel list with unequal probability (probability proportional to number of trips; draw with replacement)"]
["SWE","SWE - SkaKat (at-sea) - Act - 20 - NepTrawlGrid","Nephrops trawlers operating with grid in Skagerrak","List of trawlers active in the Nephrops trawl fishery with grid in subdiv 20 during 2016","random draw from vessel list with unequal probability (probability proportional to number of trips; draw with replacement)"]
["SWE","SWE - SkaKat (at-sea) - Act - 21 - NepTrawlGrid","Nephrops trawlers operating with grid in Kattegat","List of trawlers active in the Nephrops trawl fishery with grid in subdiv 21 during 2016","random draw from vessel list with unequal probability (probability proportional to number of trips; draw with replacement)"]
["SWE","SWE - SkaKat (at-sea) - Act - 20 - MixTrawl","Mix fish and crustacean trawlers operating in Skagerrak","List of trawlers active in the Mix Fish and Crustacean fishery in subdiv 20 during 2016","random draw from vessel list with unequal probability (probability proportional to number of trips; draw with replacement)"]
["SWE","SWE - SkaKat (at-sea) - Act - 21 - MixTrawl","Mix fish and crustacean trawlers operating in Kattegat","List of trawlers active in the Mix Fish and Crustacean fishery in subdiv 21 during 2016","random draw from vessel list with unequal probability (probability proportional to number of trips; draw with replacement)"]
["SWE","SWE - SkaKat (at-sea) - Pass - 20/21 - NepPots","Nephrops potters operating in Skagerrak and Kattegat","List of vessels active in the Nephrops Pot fishery in subdiv 20 or 21 during 2016","random draw from vessel list with unequal probability (probability proportional to number of trips; draw with replacement)"]
["SWE","SWE - SkaKat (at-sea) - OutOfFrame","Vessels in region operating in fisheries not targetted in the sampling scheme Skagerrak/Kattegat at-sea","List of active vessels in 2016 not covered in other strata of the sampling scheme","NA"]
["SWE","SWE - Balt (self) - Act - 22/32 - DemTrawl","Demersal trawlers operating in Subdiv 24 to 32","List of weeks of the year (with some restrictions)","random draw from list without replacement"]
["SWE","SWE - Balt (self) - OutOfFrame","Vessels in region operating in fisheries not targetted in the sampling scheme Baltic self-sampling","List of active vessels in 2016 not covered in other strata of the sampling scheme","NA"]
["SWE","SWE - Balt (at-sea) - Act - 24/25 - DemTrawl","Demersal trawlers operating in Subdiv 24 and 25","List of vessels active in the Demersal trawl fishery in subdiv 24 or 25 during 2016","random draw from vessel list with unequal probability (probability proportional to number of trips; draw with replacement)"]
["SWE","SWE - Balt (at-sea) - OutOfFrame","Vessels in region operating in fisheries not targetted in the sampling scheme Baltic at-sea","List of active vessels in 2016 not covered in other strata of the sampling scheme","NA"]
["SWE","SWE - Balt (at-sea/self) - Pass - 23 - DemNets","Demersal Gillnetters operating in Subdiv 23","List of weeks of the year or List of vessels active in the demersal fishery with nets of subdiv 23 during 2016","random draw from vessel list (if at-sea); random draw from week list without replacement (if self-sampling)","Final decision between at-sea and self-sampling in this stratum depends on yet-unknown logistics, safety and refusals in at-sea sampling;"]
["SWE","SWE - Balt (at-sea/self) - Pass - 24 - DemNets","Demersal Gillnetters operating in Subdiv 24","List of weeks of the year or List of vessels active in the demersal fishery with nets of subdiv 24 during 2016","random draw from vessel list (if at-sea); random draw from week list without replacement (if self-sampling)","Final decision between at-sea and self-sampling in this stratum depends on yet-unknown logistics, safety and refusals in at-sea sampling;"]
["SWE","SWE - Balt (at-sea/self) - Pass - 25 - DemNets","Demersal Gillnetters operating in Subdiv 25","List of weeks of the year or List of vessels active in the demersal fishery with nets of subdiv 25 during 2016","random draw from vessel list (if at-sea); random draw from week list without replacement (if self-sampling)","Final decision between at-sea and self-sampling in this stratum depends on yet-unknown logistics, safety and refusals in at-sea sampling;"]
["SWE","SWE - Balt (at-sea/self) - Pass - 27/29 - DemNets","Demersal Gillnetters operating in Subdiv 27 to 29","List of weeks of the year or List of vessels active in the demersal fishery with nets of subdiv 27 to 29 during 2016","random draw from vessel list (if at-sea); random draw from week list without replacement (if self-sampling)","Final decision between at-sea and self-sampling in this stratum depends on yet-unknown logistics, safety and refusals in at-sea sampling;"]
["SWE","SWE - Balt (at-sea/self) - Pass - 24 - DemLonglines","Demersal Longliners operating in Subdiv 24","List of weeks of the year or List of vessels active in the demersal fishery with longlines of subdiv 24 during 2016","random draw from vessel list (if at-sea); random draw from week list without replacement (if self-sampling)","Final decision between at-sea and self-sampling in this stratum depends on yet-unknown logistics, safety and refusals in at-sea sampling;"]
["SWE","SWE - Balt (at-sea/self) - Pass - 25 - DemLonglines","Demersal Longliners operating in Subdiv 25","List of weeks of the year or List of vessels active in the demersal fishery with longlines of subdiv 25 during 2016","random draw from vessel list (if at-sea); random draw from week list without replacement (if self-sampling)","Final decision between at-sea and self-sampling in this stratum depends on yet-unknown logistics, safety and refusals in at-sea sampling;"]
["SWE","SWE - Balt (at-sea/self) - Pass - OutOfFrame","Vessels in region operating in fisheries not targetted in the sampling scheme \"Baltic at-sea or self-sampling\"","List of active vessels in 2016 not covered in other strata of sampling scheme","NA"]
["SWE","KBN3","Trawlers targeting herring","Commercial trawlers targeting herring in the Bothnian Sea","preselected vessels contracted on a yearly basis"]
["SWE","KBN4","Gillnetters targeting herring","Licensed fishermen targeting herring by gill nets in the Gulf of Bothnia","preselected fishermen contracted on a yearly basis"]
["SWE","KBN5","Trawlers targeting vendace","Commercial vessels with permit to conduct vendace pair-trawling","predefined local fishing areas"]
["SWE","KBWE2","Pound nets","Licensed pound net fishermen with permit to target silver eel","preselected fishermen contracted on a yearly basis"]
["SWE","KBEE2/KBEE3","Pound nets","Licensed pound net fishermen with permit to target silver eel","preselected fishermen contracted on a yearly basis"]
["SWE","SWE - SkaKat (stock spec)- Act - 20 - HerSpr","Landings of Herring and Sprat from vessels operating in Skagerrak","Hypothetical list of fishing trips with landings of herring or sprat from subdiv 20 during 2017","ad-hoc selection by first hand buyer until sampling quota is attained"]
["SWE","SWE - SkaKat (stock spec)- Act - 21 - HerSpr","Landings of Herring and Sprat from vessels operating in Kattegat","Hypothetical list of fishing trips with landings of herring or sprat from subdiv 21 during 2017","ad-hoc selection by first hand buyer until sampling quota is attained"]
["SWE","SWE - SkaKat (stock spec)- Act - 20 - Cod","Landings of Cod from vessels operating in Skagerrak","Hypothetical list of fishing trips with landings of cod from subdiv 20 during 2017","ad-hoc selection by first hand buyer until sampling targets are attained"]
["SWE","SWE - SkaKat (stock spec)- Act - 21 - Cod","Landings of Cod from vessels operating in Kattegat","Hypothetical list of fishing trips with landings of cod from subdiv 21 during 2017","ad-hoc selection by first hand buyer until sampling targets are attained"]
["SWE","SWE - Balt (stock spec) - Act - 24 - HerSpr","Landings of Herring and Sprat from Subdivision 24","Hypothetical list of fishing trips with landings of herring or sprat from subdiv 24 during 2017","ad-hoc selection by first hand buyer until sampling targets are attained"]
["SWE","SWE - Balt (stock spec) - Act - 25 - HerSpr","Landings of Herring and Sprat from Subdivision 25","Hypothetical list of fishing trips with landings of herring or sprat from subdiv 25 during 2017","ad-hoc selection by first hand buyer until sampling targets are attained"]
["SWE","SWE - Balt (stock spec)- Act - 26 - HerSpr","Landings of Herring and Sprat from Subdivision 26","Hypothetical list of fishing trips with landings of herring or sprat from subdiv 26 during 2017","ad-hoc selection by first hand buyer until sampling targets are attained"]
["SWE","SWE - Balt (stock spec)- Act - 27 - HerSpr","Landings of Herring and Sprat from Subdivision 27","Hypothetical list of fishing trips with landings of herring or sprat from subdiv 27 during 2017","ad-hoc selection by first hand buyer until sampling targets are attained"]
["SWE","SWE - Balt (stock spec)- Act - 28 - HerSpr","Landings of Herring and Sprat from Subdivision 28","Hypothetical list of fishing trips with landings of herring or sprat from subdiv 28 during 2017","ad-hoc selection by first hand buyer until sampling targets are attained"]
["SWE","SWE - Balt (stock spec)- Act - 29 - HerSpr","Landings of Herring and Sprat from Subdivision 29","Hypothetical list of fishing trips with landings of herring or sprat from subdiv 29 during 2017","ad-hoc selection by first hand buyer until sampling targets are attained"]
["SWE","EEL-Fresh","Freshwater","Commercial eel fishers","Representaive eelfisherman in three lakes","All catch reported to SwAM for numbers and total weight. Biological sampling described in textbox 4A and table 1C."]

{"sheet":"Table4C Data on the fisheries","index":14,"n_rows":123,"n_cols":22,"rows_kept":123,"cut":false,"hidden":false,"merged":[]}
["Table 4C: Data on the fisheries by member state"]
[null,null,null,null,null,null,null,null,null,null,null,null,null,null,null,null,null,null,null,null,"WP  years","2018-2019"]
[null,null,null,null,null,null,null,null,null,null,null,null,null,null,null,null,null,null,null,null,"AR year",2018]
["MS","Region","RFMO/RFO/IO","Sub-area / Fishing ground","Reference years","Fleet segment / Metier","Targeted species / species assemblage","Average number of vessels","Average number of fishing trips ","Average number of fishing days ","Average landings (tons) ","Average landings (tons) in national ports","Average landings (tons) in foreign ports","Comments","Number of vessels","Number of fishing trips","Number of fishing days","Is the fleet segment/ metier covered by any stratum (Y/N)","Landings (tons)","Landings (tons) in national ports","Landings (tons) in foreign ports","AR  Comments"]
["SWE","North Sea and Eastern Arctic","ICES","ICES area II","2013-2015","OTM_SPF_32-69_0_0","Small pelagic fish",1,1,1,238,0,238,"Vessels can be involved in more than one metier; number of trips is metier specific and cannot be summed across metiers. For vessels <10m, reporting by monthly journals, number of trips is assumed to be equal to number of fishing days. (Comment applicable to the entire table)",3,3,5,"N",675.2,0,675.2]
["SWE","North Sea and Eastern Arctic","ICES","ICES area II","2013-2015","PS_SPF_32-69_0_0","Small pelagic fish",1,3,3,1100,0,1100,null,1,2,2,"N",660,0,660]
["SWE","North Sea and Eastern Arctic","ICES","ICES area II","2013-2015","PTM_SPF_32-69_0_0","Small pelagic fish",1,2,2,295,0,295,null,0,0,0,"NotApplicable",0,0,0]
["SWE","Baltic Sea","ICES","ICES areas III b-d","2013-2015","FPN_ANA_>0_0_0","Anadromous species",1,77,77,2,2,0,null,1,4,4,"Y",0.02,0.02,0]
["SWE","Baltic Sea","ICES","ICES areas III b-d","2013-2015","FPN_CAT_>0_0_0","Catadromous species",79,4390,4390,153,153,0,null,65,3038,3038,"Y",87.269199999999998,87.269199999999998,0]
["SWE","Baltic Sea","ICES","ICES areas III b-d","2013-2015","FPN_DEF_>0_0_0","Demersal species",2,26,26,1,1,0,null,2,25,25,"N",0.314,0.314,0]
["SWE","Baltic Sea","ICES","ICES areas III b-d","2013-2015","FPN_FWS_>0_0_0","Freshwater species",6,180,180,5,5,0,null,5,57,57,"N",1.6539999999999999,1.6539999999999999,0]
["SWE","Baltic Sea","ICES","ICES areas III b-d","2013-2015","FPN_SPF_>0_0_0","Small pelagic fish",1,38,38,1,1,0,null,2,28,28,"Y",0.70099999999999996,0.70099999999999996,0]
["SWE","Baltic Sea","ICES","ICES areas III b-d","2013-2015","FPO_ANA_>0_0_0","Anadromous species",112,2981,2981,224,224,0,null,103,2206,2206,"Y",224.07550000000001,224.07550000000001,0]
["SWE","Baltic Sea","ICES","ICES areas III b-d","2013-2015","FPO_CAT_>0_0_0","Catadromous species",26,872,872,15,15,0,null,24,720,720,"Y",11.4139,11.4139,0]
["SWE","Baltic Sea","ICES","ICES areas III b-d","2013-2015","FPO_DEF_>0_0_0","Demersal species",9,111,111,4,4,0,null,8,205,205,"N",9.718,9.718,0]
["SWE","Baltic Sea","ICES","ICES areas III b-d","2013-2015","FPO_FWS_>0_0_0","Freshwater species",31,910,910,20,20,0,null,28,736,736,"N",25.266999999999999,25.266999999999999,0]
["SWE","Baltic Sea","ICES","ICES areas III b-d","2013-2015","FPO_SPF_>0_0_0","Small pelagic fish",1,7,7,0.14000000000000001,0.14000000000000001,0,null,0,0,0,"NotApplicable",0,0,0]
["SWE","Baltic Sea","ICES","ICES areas III b-d","2013-2015","FYK_ANA_>0_0_0","Anadromous species",10,237,237,8,8,0,null,6,111,111,"Y",9.1881000000000004,9.1881000000000004,0]
["SWE","Baltic Sea","ICES","ICES areas III b-d","2013-2015","FYK_CAT_>0_0_0","Catadromous species",87,3312,3312,67,67,0,null,83,3154,3154,"Y",54.872999999999998,54.872999999999998,0]
["SWE","Baltic Sea","ICES","ICES areas III b-d","2013-2015","FYK_FWS_>0_0_0","Freshwater species",10,166,166,2,2,0,null,8,286,286,"N",2.0505,2.0505,0]
["SWE","Baltic Sea","ICES","ICES areas III b-d","2013-2015","FYK_SPF_>0_0_0","Small pelagic fish",18,504,504,35,35,0,null,15,473,473,"Y",29.7514,29.7514,0]
["SWE","Baltic Sea","ICES","ICES areas III b-d","2013-2015","GNS_ANA_>=157_0_0","Anadromous species",1,16,16,0.5,0.5,0,null,2,77,77,"N",1.8914,1.8914,0]
["SWE","Baltic Sea","ICES","ICES areas III b-d","2013-2015","GNS_ANA_110-156_0_0","Anadromous species",8,82,82,1,1,0,null,8,134,134,"N",3.2986,3.2986,0]
["SWE","Baltic Sea","ICES","ICES areas III b-d","2013-2015","GNS_DEF_>=157_0_0","Demersal species",76,1141,1143,242,224,18,null,73,1240,1242,"Y",172.24430000000001,163.3263,8.9179999999999993]
["SWE","Baltic Sea","ICES","ICES areas III b-d","2013-2015","GNS_DEF_110-156_0_0","Demersal species",229,7645,7721,1254,1231,23,null,165,5154,5196,"Y",684.64179999999999,644.5788,40.063000000000002]
["SWE","Baltic Sea","ICES","ICES areas III b-d","2013-2015","GNS_DEF_90-109_0_0","Demersal species",2,13,13,0.7,0.4,0.3,null,0,0,0,"NotApplicable",0,0,0]
["SWE","Baltic Sea","ICES","ICES areas III b-d","2013-2015","GNS_FWS_>0_0_0","Freshwater species",201,9021,9056,296,296,0,null,180,6790,6798,"N",199.44550000000001,199.44550000000001,0]
["SWE","Baltic Sea","ICES","ICES areas III b-d","2013-2015","GNS_SPF_16-109_0_0","Small pelagic fish",92,2098,2087,668,668,0,null,84,1772,1749,"Y",654.06849999999997,654.06849999999997,0]
["SWE","Baltic Sea","ICES","ICES areas III b-d","2013-2015","GNS_SPF_32-109_0_0","Small pelagic fish",46,949,945,413,119,294,null,33,719,718,"Y",432.88099999999997,127.21299999999999,305.66800000000001]
["SWE","Baltic Sea","ICES","ICES areas III b-d","2013-2015","GTR_DEF_>=157_0_0","Demersal species",12,313,313,48,48,0,null,9,153,153,"Y",9.0168999999999997,9.0168999999999997,0]
["SWE","Baltic Sea","ICES","ICES areas III b-d","2013-2015","GTR_DEF_110-156_0_0","Demersal species",21,606,607,88,83,5,null,16,419,417,"Y",59.274799999999999,58.636800000000001,0.63800000000000001]
["SWE","Baltic Sea","ICES","ICES areas III b-d","2013-2015","GTR_DEF_90-109_0_0","Demersal species",1,1,1,0.01,0.01,0,null,0,0,0,"NotApplicable",0,0,0]
["SWE","Baltic Sea","ICES","ICES areas III b-d","2013-2015","LHP_FIF_0_0_0","Finfish",11,97,97,21,21,0,null,9,130,130,"N",24.775099999999998,24.775099999999998,0]
["SWE","Baltic Sea","ICES","ICES areas III b-d","2013-2015","LLS_CAT_0_0_0","Catadromous species",2,23,23,0.2,0.2,0,null,0,0,0,"NotApplicable",0,0,0]
["SWE","Baltic Sea","ICES","ICES areas III b-d","2013-2015","LLS_DEF_0_0_0","Demersal species",45,908,931,299,288,11,null,25,367,366,"Y",97.421700000000001,97.421700000000001,0]
["SWE","Baltic Sea","ICES","ICES areas III b-d","2013-2015","MIS_MIS_0_0_0","Miscellaneous",4,42,42,0.4,0.4,0,null,0,0,0,"NotApplicable",0,0,0]
["SWE","Baltic Sea","ICES","ICES areas III b-d","2013-2015","OTB_DEF_>=105_1_120","Demersal species",26,621,1065,2395,2278,117,null,16,76,152,"Y",270.30399999999997,268.5453,1.7586999999999999]
["SWE","Baltic Sea","ICES","ICES areas III b-d","2013-2015","OTB_DEF_>=120_0_0","Demersal species",16,300,564,1303,1183,120,null,16,177,304,"Y",675.81029999999998,605.01890000000003,70.791399999999996]
["SWE","Baltic Sea","ICES","ICES areas III b-d","2013-2015","OTB_SPF_16-104_0_0","Small pelagic fish",15,334,408,5078,5078,0,null,9,200,207,"Y",2309.0189999999998,2309.0189999999998,0]
["SWE","Baltic Sea","ICES","ICES areas III b-d","2013-2015","OTB_SPF_16-31_0_0","Small pelagic fish",12,474,476,4369,4297,72,null,6,402,402,"Y",2482.0913999999998,2482.0913999999998,0]
["SWE","Baltic Sea","ICES","ICES areas III b-d","2013-2015","OTB_SPF_32-104_0_0","Small pelagic fish",6,164,165,979,979,0,null,1,5,5,"Y",22.6,22.6,0]
["SWE","Baltic Sea","ICES","ICES areas III b-d","2013-2015","OTM_DEF_>=105_1_120","Demersal species",4,10,11,2,2,0,null,0,0,0,"NotApplicable",0,0,0]
["SWE","Baltic Sea","ICES","ICES areas III b-d","2013-2015","OTM_DEF_>=120_0_0","Demersal species",1,7,7,2,2,0,null,0,0,0,"NotApplicable",0,0,0]
["SWE","Baltic Sea","ICES","ICES areas III b-d","2013-2015","OTM_SPF_16-104_0_0","Small pelagic fish",19,302,646,24562,12277,12285,null,18,491,1059,"Y",73135.539999999994,35387.11,37748.43]
["SWE","Baltic Sea","ICES","ICES areas III b-d","2013-2015","OTM_SPF_16-31_0_0","Small pelagic fish",10,121,191,11336,3935,7401,null,16,354,602,"Y",46223.968000000001,21385.358,24838.61]
["SWE","Baltic Sea","ICES","ICES areas III b-d","2013-2015","OTM_SPF_32-104_0_0","Small pelagic fish",5,113,111,1730,1707,23,null,5,120,120,"Y",1113.47,1113.47,0]
["SWE","Baltic Sea","ICES","ICES areas III b-d","2013-2015","OTT_CRU_>0_0_0","Crustaceans",1,1,1,3.0000000000000001E-3,3.0000000000000001E-3,0,null,0,0,0,"NotApplicable",0,0,0]
["SWE","Baltic Sea","ICES","ICES areas III b-d","2013-2015","OTT_DEF_>=105_1_120","Demersal species",7,365,514,1281,1259,22,null,3,95,120,"Y",168.9562,168.40129999999999,0.55489999999999995]
["SWE","Baltic Sea","ICES","ICES areas III b-d","2013-2015","OTT_DEF_>=120_0_0","Demersal species",3,31,83,224,207,17,null,1,1,1,"Y",0.93430000000000002,0.93430000000000002,0]
["SWE","Baltic Sea","ICES","ICES areas III b-d","2013-2015","PS_SPF_16-31_0_0","Small pelagic fish",2,99,91,585,585,0,null,1,42,31,"Y",197.761,197.761,0]
["SWE","Baltic Sea","ICES","ICES areas III b-d","2013-2015","PS_SPF_32-104_0_0","Small pelagic fish",2,2,2,3,3,0,null,1,34,32,"Y",125.43600000000001,125.43600000000001,0]
["SWE","Baltic Sea","ICES","ICES areas III b-d","2013-2015","PTB_FWS_>0_0_0","Freshwater species",30,553,547,1724,1724,0,null,30,553,552,"Y",1317.7971,1317.7971,0]
["SWE","Baltic Sea","ICES","ICES areas III b-d","2013-2015","PTB_SPF_16-104_0_0","Small pelagic fish",2,17,17,75,75,0,null,2,24,24,"Y",65.7,65.7,0]
["SWE","Baltic Sea","ICES","ICES areas III b-d","2013-2015","PTB_SPF_32-104_0_0","Small pelagic fish",2,20,20,2,2,0,null,0,0,0,"NotApplicable",0,0,0]
["SWE","Baltic Sea","ICES","ICES areas III b-d","2013-2015","PTM_SPF_16-104_0_0","Small pelagic fish",9,64,165,25715,11115,14600,null,0,0,0,"NotApplicable",0,0,0]
["SWE","Baltic Sea","ICES","ICES areas III b-d","2013-2015","PTM_SPF_16-31_0_0","Small pelagic fish",12,91,152,20299,10967,9332,null,2,43,48,"Y",4064.752,4064.752,0]
["SWE","Baltic Sea","ICES","ICES areas III b-d","2013-2015","PTM_SPF_32-104_0_0","Small pelagic fish",4,75,77,3661,3608,53,null,2,66,62,"Y",3573.058,3573.058,0]
["SWE","Baltic Sea","ICES","ICES areas III b-d","2013-2015","SB_FIF_>0_0_0","Finfish",2,8,8,28,28,0,null,2,19,19,"N",2.6459999999999999,2.6459999999999999,0]
["SWE","North Sea and Eastern Arctic","ICES","ICES area IIIa","2013-2015","DRB_MOL_>=0_0_0","Molluscs",2,36,36,4,4,0,null,2,18,18,"N",0.29599999999999999,0.29599999999999999,0]
["SWE","North Sea and Eastern Arctic","ICES","ICES area IIIa","2013-2015","FPO_CRU_>0_0_0","Crustaceans",274,13760,13752,566,561,5,null,242,12054,12019,"Y",577.43640000000005,574.58640000000003,2.85]
["SWE","North Sea and Eastern Arctic","ICES","ICES area IIIa","2013-2015","FPO_FIF_>0_0_0","Finfish",9,136,136,4,4,0,null,15,400,400,"N",12.745100000000001,12.745100000000001,0]
["SWE","North Sea and Eastern Arctic","ICES","ICES area IIIa","2013-2015","FPO_MOL_>0_0_0","Molluscs",1,14,14,0.2,0.2,0,null,0,0,0,"NotApplicable",0,0,0]
["SWE","North Sea and Eastern Arctic","ICES","ICES area IIIa","2013-2015","FYK_CAT_>0_0_0","Catadromous species",17,849,849,29,29,0,null,18,660,660,"N",20.924299999999999,20.924299999999999,0]
["SWE","North Sea and Eastern Arctic","ICES","ICES area IIIa","2013-2015","GNS_CRU_>0_0_0","Crustaceans",6,71,71,13,13,0,null,7,105,105,"N",11.08,11.08,0]
["SWE","North Sea and Eastern Arctic","ICES","ICES area IIIa","2013-2015","GNS_DEF_>=220_0_0","Demersal species",14,175,175,45,45,0,null,11,228,228,"Y",29.125699999999998,29.125699999999998,0]
["SWE","North Sea and Eastern Arctic","ICES","ICES area IIIa","2013-2015","GNS_DEF_100-119_0_0","Demersal species",5,102,102,8,8,0,null,4,35,35,"Y",0.73699999999999999,0.73699999999999999,0]
["SWE","North Sea and Eastern Arctic","ICES","ICES area IIIa","2013-2015","GNS_DEF_120-219_0_0","Demersal species",40,687,689,91,71,20,null,38,522,524,"Y",81.9739,43.340299999999999,38.633600000000001]
["SWE","North Sea and Eastern Arctic","ICES","ICES area IIIa","2013-2015","GNS_DEF_90-99_0_0","Demersal species",2,11,11,0.02,0.02,0,null,2,14,14,"Y",0.66949999999999998,0.66949999999999998,0]
["SWE","North Sea and Eastern Arctic","ICES","ICES area IIIa","2013-2015","GNS_SPF_10-30_0_0","Small pelagic fish",32,246,245,55,55,0,null,3,22,22,"Y",4.782,4.782,0]
["SWE","North Sea and Eastern Arctic","ICES","ICES area IIIa","2013-2015","GNS_SPF_50-70_0_0","Small pelagic fish",75,879,876,190,189,1,null,70,641,632,"Y",102.0397,101.9397,0.1]
["SWE","North Sea and Eastern Arctic","ICES","ICES area IIIa","2013-2015","GTR_DEF_>=220_0_0","Demersal species",1,9,9,1,1,0,null,2,20,23,"Y",12.375,0,12.375]
["SWE","North Sea and Eastern Arctic","ICES","ICES area IIIa","2013-2015","GTR_DEF_100-119_0_0","Demersal species",1,13,13,0.42000000000000004,0.4,0.02,null,0,0,0,"NotApplicable",0,0,0]
["SWE","North Sea and Eastern Arctic","ICES","ICES area IIIa","2013-2015","GTR_DEF_120-219_0_0","Demersal species",23,616,617,118,100,18,null,22,554,554,"Y",79.307100000000005,48.022100000000002,31.285]
["SWE","North Sea and Eastern Arctic","ICES","ICES area IIIa","2013-2015","GTR_DEF_90-99_0_0","Demersal species",2,18,18,2,2,0,null,1,10,10,"Y",1.5184,1.5184,0]
["SWE","North Sea and Eastern Arctic","ICES","ICES area IIIa","2013-2015","LHP_FIF_0_0_0","Finfish",109,1275,1285,193,150,43,null,73,739,738,"N",120.64570000000001,89.365700000000004,31.28]
["SWE","North Sea and Eastern Arctic","ICES","ICES area IIIa","2013-2015","LLS_DEF_0_0_0","Demersal species",2,4,4,1,1,0,null,1,9,9,"N",1.4530000000000001,1.4530000000000001,0]
["SWE","North Sea and Eastern Arctic","ICES","ICES area IIIa","2013-2015","MIS_MIS_0_0_0","Miscellaneous",6,251,251,64,64,0,null,7,182,186,"N",14.9716,14.9716,0]
["SWE","North Sea and Eastern Arctic","ICES","ICES area IIIa","2013-2015","OTB_CRU_>=120_0_0","Crustaceans",1,1,2,0.03,0.03,0,null,1,1,1,"Y",5.8000000000000003E-2,5.8000000000000003E-2,0]
["SWE","North Sea and Eastern Arctic","ICES","ICES area IIIa","2013-2015","OTB_CRU_32-69_0_0","Crustaceans",5,10,18,5,4,1,null,0,0,0,"NotApplicable",0,0,0]
["SWE","North Sea and Eastern Arctic","ICES","ICES area IIIa","2013-2015","OTB_CRU_32-69_2_22","Crustaceans",51,2135,2689,693,658,35,null,45,1767,1963,"Y",447.10379999999998,444.68529999999998,2.4184999999999999]
["SWE","North Sea and Eastern Arctic","ICES","ICES area IIIa","2013-2015","OTB_CRU_70-89_2_35","Crustaceans",60,2260,2258,175,174,1,null,55,2556,2531,"Y",280.09890000000001,280.0489,0.05]
["SWE","North Sea and Eastern Arctic","ICES","ICES area IIIa","2013-2015","OTB_CRU_90-119_0_0","Crustaceans",9,146,161,11,11,0,null,1,15,15,"Y",1.3965000000000001,1.3965000000000001,0]
["SWE","North Sea and Eastern Arctic","ICES","ICES area IIIa","2013-2015","OTB_CRU_90-119_1_120","Crustaceans",13,151,164,10,10,0,null,30,377,387,"Y",42.354399999999998,41.895400000000002,0.45900000000000002]
["SWE","North Sea and Eastern Arctic","ICES","ICES area IIIa","2013-2015","OTB_DEF_<16_0_0","Demersal species",1,1,1,25,25,0,null,0,0,0,"NotApplicable",0,0,0]
["SWE","North Sea and Eastern Arctic","ICES","ICES area IIIa","2013-2015","OTB_DEF_>=120_0_0","Demersal species",12,98,117,97,16,81,null,11,136,153,"Y",141.4659,41.5321,99.933800000000005]
["SWE","North Sea and Eastern Arctic","ICES","ICES area IIIa","2013-2015","OTB_DEF_90-119_0_0","Demersal species",10,48,63,594,77,517,null,0,0,0,"NotApplicable",0,0,0]
["SWE","North Sea and Eastern Arctic","ICES","ICES area IIIa","2013-2015","OTB_DEF_90-119_1_120","Demersal species",22,186,192,68,63,5,null,11,29,32,"Y",80.403400000000005,9.4033999999999995,71]
["SWE","North Sea and Eastern Arctic","ICES","ICES area IIIa","2013-2015","OTB_MCD_>=120_0_0","Mixed crustaceans and demersal",2,2,2,0.3,0.3,0,null,2,27,27,"Y",5.8781999999999996,5.8781999999999996,0]
["SWE","North Sea and Eastern Arctic","ICES","ICES area IIIa","2013-2015","OTB_MCD_90-119_0_0","Mixed crustaceans and demersal",11,96,103,15,15,0,null,0,0,0,"NotApplicable",0,0,0]
["SWE","North Sea and Eastern Arctic","ICES","ICES area IIIa","2013-2015","OTB_MCD_90-119_1_120","Mixed crustaceans and demersal",17,210,227,28,28,0,null,26,134,134,"Y",14.0587,13.2347,0.82399999999999995]
["SWE","North Sea and Eastern Arctic","ICES","ICES area IIIa","2013-2015","OTM_SPF_16-31_0_0","Small pelagic fish",2,29,32,724,31,693,null,0,0,0,"NotApplicable",0,0,0]
["SWE","North Sea and Eastern Arctic","ICES","ICES area IIIa","2013-2015","OTM_SPF_32-69_0_0","Small pelagic fish",6,36,45,3672,3034,638,null,6,35,42,"Y",6345.5450000000001,2804.1950000000002,3541.35]
["SWE","North Sea and Eastern Arctic","ICES","ICES area IIIa","2013-2015","OTT_CRU_32-69_0_0","Crustaceans",5,16,25,4,3,1,null,0,0,0,"NotApplicable",0,0,0]
["SWE","North Sea and Eastern Arctic","ICES","ICES area IIIa","2013-2015","OTT_CRU_32-69_2_22","Crustaceans",21,537,1246,868,813,55,null,20,794,1626,"Y",1159.4698000000001,1127.4474,32.022399999999998]
["SWE","North Sea and Eastern Arctic","ICES","ICES area IIIa","2013-2015","OTT_CRU_70-89_2_35","Crustaceans",55,3133,3144,475,467,8,null,43,2015,2105,"Y",537.13400000000001,535.88040000000001,1.2536]
["SWE","North Sea and Eastern Arctic","ICES","ICES area IIIa","2013-2015","OTT_CRU_90-119_0_0","Crustaceans",14,113,114,12,12,0,null,0,0,0,"NotApplicable",0,0,0]
["SWE","North Sea and Eastern Arctic","ICES","ICES area IIIa","2013-2015","OTT_CRU_90-119_1_120","Crustaceans",29,202,212,28,27,1,null,45,1537,1574,"Y",377.07740000000001,367.62779999999998,9.4496000000000002]
["SWE","North Sea and Eastern Arctic","ICES","ICES area IIIa","2013-2015","OTT_DEF_>=120_0_0","Demersal species",13,156,256,362,307,55,null,12,252,394,"Y",538.36959999999999,518.11530000000005,20.254300000000001]
["SWE","North Sea and Eastern Arctic","ICES","ICES area IIIa","2013-2015","OTT_DEF_90-119_0_0","Demersal species",20,81,95,63,59,4,null,0,0,0,"NotApplicable",0,0,0]
["SWE","North Sea and Eastern Arctic","ICES","ICES area IIIa","2013-2015","OTT_DEF_90-119_1_120","Demersal species",34,453,533,446,418,28,null,31,339,457,"Y",428.59609999999998,371.87549999999999,56.720599999999997]
["SWE","North Sea and Eastern Arctic","ICES","ICES area IIIa","2013-2015","OTT_MCD_>=120_0_0","Mixed crustaceans and demersal",5,8,10,4,4,0,null,4,9,9,"Y",4.6055000000000001,4.6055000000000001,0]
["SWE","North Sea and Eastern Arctic","ICES","ICES area IIIa","2013-2015","OTT_MCD_90-119_0_0","Mixed crustaceans and demersal",25,305,318,73,72,1,null,0,0,0,"NotApplicable",0,0,0]
["SWE","North Sea and Eastern Arctic","ICES","ICES area IIIa","2013-2015","OTT_MCD_90-119_1_120","Mixed crustaceans and demersal",34,534,599,203,188,15,null,49,1504,1577,"Y",496.4769,474.80669999999998,21.670200000000001]
["SWE","North Sea and Eastern Arctic","ICES","ICES area IIIa","2013-2015","PS_SPF_16-31_0_0","Small pelagic fish",7,106,107,6240,6183,57,null,3,47,48,"Y",5819.2849999999999,5819.2849999999999,0]
["SWE","North Sea and Eastern Arctic","ICES","ICES area IIIa","2013-2015","PS_SPF_32-69_0_0","Small pelagic fish",2,15,15,103,103,0,null,1,12,12,"Y",88.435000000000002,88.435000000000002,0]
["SWE","North Sea and Eastern Arctic","ICES","ICES area IIIa","2013-2015","PTM_SPF_16-31_0_0","Small pelagic fish",2,5,5,224,43,181,null,0,0,0,"NotApplicable",0,0,0]
["SWE","North Sea and Eastern Arctic","ICES","ICES area IIIa","2013-2015","PTM_SPF_32-69_0_0","Small pelagic fish",11,86,93,7401,4502,2899,null,7,72,77,"Y",5918.0086000000001,4937.6985999999997,980.31]
["SWE","North Sea and Eastern Arctic","ICES","ICES area IIIa","2013-2015","SB_FIF_>0_0_0","Finfish",11,154,154,28,28,0,null,4,118,101,"N",40.738999999999997,40.738999999999997,0]
["SWE","North Sea and Eastern Arctic","ICES","ICES area IIIa","2013-2015","SDN_DEF_>=120_0_0","Demersal species",1,21,33,138,29,109,null,1,20,44,"Y",121.52509999999999,50.211399999999998,71.313699999999997]
["SWE","North Sea and Eastern Arctic","ICES","ICES area IV","2013-2015","LHP_FIF_0_0_0","Finfish",2,9,9,2,0,2,null,0,0,0,"NotApplicable",0,0,0]
["SWE","North Sea and Eastern Arctic","ICES","ICES area IV","2013-2015","OTB_CRU_32-69_0_0","Crustaceans",7,11,26,52,28,24,null,0,0,0,"NotApplicable",0,0,0]
["SWE","North Sea and Eastern Arctic","ICES","ICES area IV","2013-2015","OTB_CRU_32-69_2_22","Crustaceans",2,2,5,1,1,0,null,0,0,0,"NotApplicable",0,0,0]
["SWE","North Sea and Eastern Arctic","ICES","ICES area IV","2013-2015","OTB_CRU_70-89_2_35","Crustaceans",1,1,1,0.01,0.01,0,null,0,0,0,"NotApplicable",0,0,0]
["SWE","North Sea and Eastern Arctic","ICES","ICES area IV","2013-2015","OTB_DEF_<16_0_0","Demersal species",11,45,292,26287,0,26287,null,8,21,126,"N",16411.072,0,16411.072]
["SWE","North Sea and Eastern Arctic","ICES","ICES area IV","2013-2015","OTB_DEF_>=120_0_0","Demersal species",5,83,215,1202,0,1202,null,5,79,219,"N",1089.7601,0,1089.7601]
["SWE","North Sea and Eastern Arctic","ICES","ICES area IV","2013-2015","OTM_SPF_16-31_0_0","Small pelagic fish",3,9,39,4178,0,4178,null,4,13,43,"N",7672.98,0,7672.98]
["SWE","North Sea and Eastern Arctic","ICES","ICES area IV","2013-2015","OTM_SPF_32-69_0_0","Small pelagic fish",5,15,20,3854,1552,2302,null,9,51,74,"N",18654.34,3176.78,15477.56]
["SWE","North Sea and Eastern Arctic","ICES","ICES area IV","2013-2015","OTT_CRU_32-69_0_0","Crustaceans",7,42,134,56,31,25,null,0,0,0,"NotApplicable",0,0,0]
["SWE","North Sea and Eastern Arctic","ICES","ICES area IV","2013-2015","OTT_CRU_32-69_2_22","Crustaceans",11,63,193,63,42,21,null,12,67,174,"Y",140.5778,109.35899999999999,31.218800000000002]
["SWE","North Sea and Eastern Arctic","ICES","ICES area IV","2013-2015","OTT_DEF_>=120_0_0","Demersal species",3,15,33,212,2,210,null,2,14,32,"N",130.29830000000001,2.7942999999999998,127.504]
["SWE","North Sea and Eastern Arctic","ICES","ICES area IV","2013-2015","PS_SPF_32-69_0_0","Small pelagic fish",3,22,26,6342,87,6255,null,3,13,19,"N",3093.82,0,3093.82]
["SWE","North Sea and Eastern Arctic","ICES","ICES area IV","2013-2015","PTM_SPF_32-69_0_0","Small pelagic fish",6,24,32,6619,1699,4920,null,1,2,3,"N",452,0,452]
["SWE","North Sea and Eastern Arctic","ICES","ICES area IV","2013-2015","SDN_DEF_>=120_0_0","Demersal species",1,10,19,82,6,76,null,1,6,9,"N",33.597799999999999,5.0224000000000002,28.575399999999998]

{"sheet":"Table4D Landing locations","index":15,"n_rows":5,"n_cols":11,"rows_kept":5,"cut":false,"hidden":false,"merged":[]}
["Table 4D: Landing locations"]
[null,null,null,null,null,null,null,null,null,"WP  years","2018-2019"]
[null,null,null,null,null,null,null,null,null,"AR year",2018]
["MS","Region","Sub-area / Fishing ground","Reference years","Landing locations(s)","Average number of locations","Average number of registered landings ","Average landed tonnage ","Average landed tonnage of national fleet","Average landed tonnage of foreign fleet","Comments"]
["SWE","All regions","All areas","2013-2015","ports",338,26445,{"$f":"I5+J5","v":230222},183952,46270,"Average number of registred landings derived from logbooks. This table states the landings of national fleet regardless of port (also Swedish landings abroad). The table is therefore not comparable with Table 4C."]

{"sheet":"Table5A Quality assurance frame","index":16,"n_rows":43,"n_cols":20,"rows_kept":43,"cut":false,"hidden":false,"merged":[[3,0,3,6],[3,7,3,8],[3,10,3,11],[3,12,3,13],[3,14,3,17]]}
["Table 5A: Quality assurance framework for biological data"]
[null,null,null,null,null,null,null,null,null,null,null,null,null,null,null,null,null,null,"WP  years","2018-2019"]
[null,null,null,null,null,null,null,null,null,null,null,null,null,null,null,null,null,null,"AR year",2018]
[null,null,null,null,null,null,null,"Sampling design",null,"Sampling implementation","Data capture",null,"Data Storage",null,"Data processing"]
["MS","MS participating in sampling","Sampling year/ period ","Region","RFMO/RFO/IO","Name of sampling scheme","Sampling frame ","Is the sampling design documented?","Where can documentation on sampling design be found? ","Are non-responses and refusals recorded?","Are quality checks to validate detailed data documented?","Where can documentation on quality checks for data capture be found?","In which national database are data stored?","In which international database(s) are data stored?","Are processes to evaluate data accuracy (bias and precision) documented?","Where can documentation on processes to evaluate accuracy be found? ","Are the editing and imputation methods documented?","Where can documentation on editing and imputation be found? ","Comments ","AR Comments"]
["SWE","SWE",2018,"North Sea and Eastern Arctic","ICES","Skagerrak/Kattegat at-sea","demersal trawlers","Y","Some documentation in former NPs and on internal server","Y","Y","National quality checks are documented internally, in the database and on a server.","FiskData2","RDB-FishFrame, InterCatch","N","NA","Y","On internal server","The aim is to have the different aspects of the sampling scheme properly documented and accessible through a public website in 2019. ","Updates in col. H, L, Q and R"]
["SWE","SWE",2018,"North Sea and Eastern Arctic","ICES","Skagerrak/Kattegat other (market stock specific)","fishing trips * cod SD 20","Y","Some documentation in former NPs and on internal server","N","Y","National quality checks are documented internally, in the database and on a server.","FiskData2","RDB-FishFrame, InterCatch","N","NA","Y","On internal server","The aim is to have the different aspects of the sampling scheme properly documented and accessible through a public website in 2019. ","Updates in col. H, J, L, Q and R"]
["SWE","SWE",2018,"North Sea and Eastern Arctic","ICES","Skagerrak/Kattegat other (market stock specific)","fishing trips * cod SD 21","Y","Some documentation in former NPs and on internal server","N","Y","National quality checks are documented internally, in the database and on a server.","FiskData2","RDB-FishFrame, InterCatch","N","NA","Y","On internal server","The aim is to have the different aspects of the sampling scheme properly documented and accessible through a public website in 2019. ","Updates in col. H, J, L, Q and R"]
["SWE","SWE",2018,"North Sea and Eastern Arctic","ICES","Skagerrak/Kattegat other (market stock specific)","fishing trips* herring and sprat SD 20","Y","Some documentation in former NPs and on internal server","N","Y","National quality checks are documented internally, in the database and on a server.","FiskData2","RDB-FishFrame, InterCatch","N","NA","Y ","On internal server","The aim is to have the different aspects of the sampling scheme properly documented and accessible through a public website in 2019. ","Updates in col. H, L, Q and R"]
["SWE","SWE",2018,"North Sea and Eastern Arctic","ICES","Skagerrak/Kattegat other (market stock specific)","fishing trips* herring and sprat SD 21","Y","Some documentation in former NPs and on internal server","N","Y","National quality checks are documented internally, in the database and on a server.","FiskData2","RDB-FishFrame, InterCatch","N","NA","Y ","On internal server","The aim is to have the different aspects of the sampling scheme properly documented and accessible through a public website in 2019. ","Updates in col. H, L, Q and R"]
["SWE","SWE",2018,"Baltic Sea","ICES","Baltic at-sea","demersal trawlers","Y","Some documentation in former NPs and on internal server","Y","Y","National quality checks are documented internally, in the database and on a server.","FiskData2","RDB-FishFrame, InterCatch","N","NA","N","NA","The aim is to have the different aspects of the sampling scheme properly documented and accessible through a public website in 2019. ","Updates in col. H and L."]
["SWE","SWE",2018,"Baltic Sea","ICES","Baltic self-sampling (market stock specific)","weeks","Y","Some documentation in former NPs and on internal server","Y","Y","National quality checks are documented internally, in the database and on a server.","FiskData2","RDB-FishFrame, InterCatch","N","NA","Y","On internal server","The aim is to have the different aspects of the sampling scheme properly documented and accessible through a public website in 2019. ","Updates in col. H, L, Q and R"]
["SWE","SWE",2018,"Baltic Sea","ICES","Baltic at-sea or self-sampling","gillnetters (vessels if sea sampling, weeks if self-sampling)","Y","Some documentation in former NPs and on internal server","Y","Y","National quality checks are documented internally, in the database and on a server.","FiskData2","RDB-FishFrame, InterCatch","N","NA","N","NA","The aim is to have the different aspects of the sampling scheme properly documented and accessible through a public website in 2019. ","Updates in col. H and L."]
["SWE","SWE",2018,"Baltic Sea","ICES","Baltic at-sea or self-sampling","longliners (vessels if sea sampling, weeks if self-sampling)","Y","Some documentation in former NPs and on internal server","Y","Y","National quality checks are documented internally, in the database and on a server.","FiskData2","RDB-FishFrame, InterCatch","N","NA","N","NA","The aim is to have the different aspects of the sampling scheme properly documented and accessible through a public website in 2019. ","Updates in col. H and L."]
["SWE","SWE",2018,"Baltic Sea","ICES","Baltic other (market, stock specific)","fishing trips* herring and sprat SD 24","Y","Some documentation in former NPs and on internal server","N","Y","National quality checks are documented internally, in the database and on a server.","FiskData2","RDB-FishFrame, InterCatch","N","NA","N","NA","The aim is to have the different aspects of the sampling scheme properly documented and accessible through a public website in 2019. ","Updates in col. H and L."]
["SWE","SWE",2018,"Baltic Sea","ICES","Baltic other (market, stock specific)","fishing trips* herring and sprat SD 25","Y","Some documentation in former NPs and on internal server","N","Y","National quality checks are documented internally, in the database and on a server.","FiskData2","RDB-FishFrame, InterCatch","N","NA","N","NA","The aim is to have the different aspects of the sampling scheme properly documented and accessible through a public website in 2019. ","Updates in col. H and L."]
["SWE","SWE",2018,"Baltic Sea","ICES","Baltic other (market, stock specific)","fishing trips* herring and sprat SD 26","Y","Some documentation in former NPs and on internal server","N","Y","National quality checks are documented internally, in the database and on a server.","FiskData2","RDB-FishFrame, InterCatch","N","NA","N","NA","The aim is to have the different aspects of the sampling scheme properly documented and accessible through a public website in 2019. ","Updates in col. H and L."]
["SWE","SWE",2018,"Baltic Sea","ICES","Baltic other (market, stock specific)","fishing trips* herring and sprat SD 27","Y","Some documentation in former NPs and on internal server","N","Y","National quality checks are documented internally, in the database and on a server.","FiskData2","RDB-FishFrame, InterCatch","N","NA","N","NA","The aim is to have the different aspects of the sampling scheme properly documented and accessible through a public website in 2019. ","Updates in col. H and L."]
["SWE","SWE",2018,"Baltic Sea","ICES","Baltic other (market, stock specific)","fishing trips* herring and sprat SD 28","Y","Some documentation in former NPs and on internal server","N","Y","National quality checks are documented internally, in the database and on a server.","FiskData2","RDB-FishFrame, InterCatch","N","NA","N","NA","The aim is to have the different aspects of the sampling scheme properly documented and accessible through a public website in 2019. ","Updates in col. H and L."]
["SWE","SWE",2018,"Baltic Sea","ICES","Baltic other (market, stock specific)","fishing trips* herring and sprat SD 29","Y","Some documentation in former NPs and on internal server","N","Y","National quality checks are documented internally, in the database and on a server.","FiskData2","RDB-FishFrame, InterCatch","N","NA","N","NA","The aim is to have the different aspects of the sampling scheme properly documented and accessible through a public website in 2019. ","Updates in col. H and L."]
["SWE","SWE,DNK, DEU, POL, LTU,LVA",2018,"Baltic Sea","ICES","BITS Q1 \nBITS Q4","NA","Y","http://datras.ices.dk/Documents/Manuals/Manuals.aspx","NA","Y","National quality checks in Fiskdata2; https://fd2.slu.se/Documents- User manual and System documentation    #1  \nInternational quality checks DATRAS: http://www.ices.dk/marine-data/data-portals/Pages/DATRAS-Docs.aspx   #2","FiskData2","DATRAS","Partly","http://www.ices.dk/community/groups/Pages/WGBIFS.aspx","Y","http://www.ices.dk/community/groups/Pages/WGBIFS.aspx","Documentation available\n#1 Access through user name and password\n#2 The quality assurance work on the international level are addressed to the planning group for the survey (design issues, no otoliths etc)","No changes made compared to WP. The link to Fiskdata2 can only be opened by authotized login"]
["SWE","SWE, DNK, DEU, POL ,LTU, LVA",2018,"Baltic Sea","ICES","BIAS","NA","Y","http://www.ices.dk/community/groups/Pages/WGBIFS.aspx","NA","Y","National quality checks in Fiskdata2; https://fd2.slu.se/Documents- User manual and System documentation    #1  \nInternational quality checks DATRAS: http://www.ices.dk/marine-data/data-portals/Pages/DATRAS-Docs.aspx   #2","Biological data: FiskData2, Acoustic data: server, IMR, Lysekil","IBAS","Y","http://www.ices.dk/community/groups/Pages/WGBIFS.aspx","Y","http://www.ices.dk/community/groups/Pages/WGBIFS.aspx","Documentation available\n#1 Access through user name and password\n#2 The quality assurance work on the international level are addressed to the planning group for the survey (design issues, no otoliths etc)","No changes made compared to WP."]
["SWE","SWE,DEU, POL,LTU, LVA,POL,  EST",2018,"North Sea & Eastern Arctic","ICES","IBTS Q1\nIBTS Q3","NA","Y","http://datras.ices.dk/Documents/Manuals/Manuals.aspx","NA","Y","National quality checks in Fiskdata2; https://fd2.slu.se/Documents- User manual and System documentation    #1  \nInternational quality checks DATRAS: http://www.ices.dk/marine-data/data-portals/Pages/DATRAS-Docs.aspx   #2","FiskData2","DATRAS","Y","http://www.ices.dk/community/groups/Pages/IBTSWG.aspx","Y","http://www.ices.dk/community/groups/Pages/IBTSWG.aspx","Documentation available\n#1 Access through user name and password\n#2 The quality assurance work on the international level are addressed to the planning group for the survey (design issues, gear, no otoliths etc)","No changes made compared to WP. Note: The link to Fiskdata2 can only be opened by authotized login."]
["SWE","SWE,DNK",2018,"North Sea & Eastern Arctic","ICES","NTV3&4","NA","Y","http://www.ices.dk/community/groups/Pages/WGNEPS.aspx","NA","Y","R script \"Lin's CCC\" measure quality of burrow counter","On back-up DVD at Institute of Marine Research","No international database","R script \"Lin's CCC\" measure quality of burrow counter","See comments","N","See comments","WGNEPS are working on the documentation.","Updates to col. S."]
["SWE","SWE",2018,"Baltic Sea","ICES","fishermen logbooks, coastal (diadromous)","list of  licensed fishermen and sampling strata ","Y","Local server","NA","Y","see comments","Swedish Agency for Marine and Water Management","RDB-FishFrame","Y","NA","N","NA","This is part of the Swedish official catch statistics and is collected and documented accordingly by SwAM.","No changes made compared to WP."]
["SWE","SWE",2018,"Baltic Sea","ICES","fishermen catch reports, rivers (diadromous)","list of  licensed fishermen and sampling strata ","Y","Local server","NA","Y","see comments","Swedish Agency for Marine and Water Management","RDB-FishFrame","Y","NA","N","NA","This is part of the Swedish official catch statistics and is collected and documented accordingly by SwAM.","No changes made compared to WP."]
["SWE","SWE",2018,"Baltic Sea","ICES","Recreational river catches survey ","salmon recreational fishermen","Y","Local server","N","N","NA","No, work in progress","N, data deliverd to WGBAST","N","NA","N","NA","River catches are esetimated from volontary catch reports and expert estimates of the unreported catch. No single survey for all rivers exists. Work to document data processing routines are in progress. The aim is to have the different aspects of the sampling scheme properly documented and accessible through a public website 2019. We aim to document designs and processes for data validation in 2017-2018. In 2018-2019, when more guidance are available from expert groups, we aim to document estimation methods and other aspects of data processing. ","Updates made to column H-I and S since AR 2017.  Sampling design is now documented."]
["SWE","SWE",2018,"Baltic Sea","ICES","river sampling, salmon parr counts","designated rivers","Y","http://www.slu.se/elfiskeregistret","NA","Y","\\\\storage-ob.slu.se\\common$\\Berit\\Elfiskeregistret_arbetsgång_uttagslogg","Swedish Electrofishing RegiSter (SERS) #1","None","Y","local server","Y","local Access-database","Documntation available\n#1 A national database held by SLU (http://aquarapport.slu.se/default.aspx?ID=6)","Updates made to column O-R  since AR 2017. Data processing is now documented."]
["SWE","SWE",2018,"Baltic Sea","ICES","river sampling, counts of ascending individuals salmon","designated rivers","Partly","At consultant, eg http://fiskdata.se","NA","Y","At consultant, eg http://fiskdata.se","N","N, data deliverd to WGBAST","Y","At consultant","Y","At consultant","The counting of ascending individuals are conducted by external consultants (different consultants in differet rivers) and an estimate is delivered to SLU. Processes to evaluate data accuracy are unique to each consultant and documentation on sampling design and data processing can be found at each consultant. This documentation is for some consultants publically available at their website. ","Updates made to column H-S since AR 2017. Documenttion on the different processes are now partly publically available from consultants. "]
["SWE","SWE",2018,"Baltic Sea","ICES","river sampling, salmon smolt counts","designated rivers","Y","local server","NA","Y","local server","Sötebasen","N, data deliverd to WGBAST","Y","Samu Mäntyniemi, Atso Romakkaniemi, 2002. Bayesian mark–recapture estimation with an application to a salmonid smolt population\n\nCanadian Journal of Fisheries and Aquatic Sciences, 2002, 59:1748-1758, https://doi.org/10.1139/f02-146","Y","local server","The aim is to have the different aspects of the sampling scheme properly documented (2019) and accessible through a public website. We have documented the designs and processes for data validation, estimation methods and other aspects of data processing in 2017-2018.","Uptdats made to column L-S since AR 2017. We have documented the designs and processes for data validation, estimation methods and other aspects of data processing in 2017-2018."]
["SWE","SWE",2017,"Freshwater","ICES","Logbooks & journals","Commercial eel fishers","Y","Local server","NA","Y","see comments","Swedish Agency for Marine and Water Management","RDB-FishFrame","Y","NA","N","NA","This is part of the Swedish official catch statistics and is collected and documented accordingly","No changes made compared to WP."]
["SWE","SWE",2017,"Freshwater","ICES","yellow eel recruitment","electofishing & traps","Y","http://www.slu.se/elfiskeregistret","NA","Y","\\\\storage-ob.slu.se\\common$\\Berit\\Elfiskeregistret_arbetsgång_uttagslogg","Swedish Electrofishing RegiSter (SERS)","None","N","NA","N","NA","Documentation available\nA national database held by SLU","No changes made compared to WP."]
["SWE","SWE",2017,"Freshwater","ICES","Mark-recapure","silver eel escapement","N","NA","NA","N","NA","Sötebasen (starting in 2017)","No","N","NA","N","NA","A new database (Sötebasen) is under construction. The aim is to have the different aspects of the sampling scheme properly documented and accessible through a public website (2019). We aim to document designs and processes for data validation in 2017-2018. In 2018-2019, when more guidance are available from expert groups, we aim to document estimation methods and other aspects of data processing.","No changes made compared to WP."]
["SWE","SWE",2017,"baltic/freshwater","ICES","recruitment and production survey","designated rivers","N","No ","N","N","NA","No","No","N","NA","N","NA","Not yet implemented, starts in 2017 with a preliminary study","No changes made compared to WP."]
["SWE","SWE",2017,"Freshwater","ICES","Monitoring of introduced populations","Fyke netting & traps","Y","NA","NA","Y","No ","Sötebasen (starting in 2017)","NA","N","NA","N","NA","A new database (Sötebasen) is under construction. The aim is to have the different aspects of the sampling scheme properly documented and accessible through a public website. We aim to document designs and processes for data validation in 2017-2018. In 2018-2019, when more guidance are available from expert groups, we aim to document estimation methods and other aspects of data processing.","No changes made compared to WP."]
["SWE","SWE",2018,"Freshwater & marine","ICES","data collection of stocked amounts and sites","data collection of stocked amounts and sites","Y","Local server","Census","NA","NA","N (local server)","N, data deliverd to WGBAST","NA","NA","NA","NA","Census data. The number of stocked salmon is provided to SLU by the fishfarms which breed and stock the fish. No data processing is made. ","Updates made to column I-K and N-M since AR 2017."]
["SWE","SWE",2017,"Baltic Sea","ICES","sampling on shore","Commercial trawlers targeting herring in the Bothnian Sea","Y","Some documentation in former NPs and on internal server","Y","Y","National quality checks are documented internally, in the database.","FiskData2","RDB-FishFrame, InterCatch","N","NA","N","NA","The aim is to have the different aspects of the sampling scheme properly documented and accessible through a public website (2019). We will during 2017-2018 work to document designs and processes to validate detailed data. During 2018-2019, when more guidance are available from expert groups, will we work to document estimation methods and other aspects of data processing.","No changes made compared to WP."]
["SWE","SWE",2017,"Baltic Sea","ICES","sampling on shore","Licensed fishermen targeting herring by gill nets in the Gulf of Bothnia","Y","Some documentation in former NPs and on internal server","Y","Y","National quality checks are documented internally, in the database.","FiskData2","RDB-FishFrame, InterCatch","N","NA","N","NA","The aim is to have the different aspects of the sampling scheme properly documented and accessible through a public website (2019). We will during 2017-2018 work to document designs and processes to validate detailed data. During 2018-2019, when more guidance are available from expert groups, will we work to document estimation methods and other aspects of data processing.","No changes made compared to WP. Note: The link to Fiskdata2 can only be opened by authotized login."]
["SWE","SWE",2017,"Baltic Sea","ICES","sampling on shore","Commercial vessels with permit to conduct vendace pair-trawling","Y","See Comments","N1","Y","See Comments","KUL","See Comments","N","NA","N","NA","Documentation on sampling design, sampling implementation and data capture is stored on a locked internal share-point. This documentation will be improved, at the same time as documentation on data processing will be produced. Latest 2019, everything will be made available on an open web page. Data storage: Upload to RDB-FishFrame is underway. 1Sampling implementation/Non-responses-refusals: None has turned up so far and therefore a routine for this has not yet been established (the sampling is performed by a sub-contractor). For future work, a routine will be developed.","No changes made compared to WP."]
["SWE","SWE",2017,"Baltic Sea","EIFAAC/ICES/GFCM ","sampling at sea","Licensed pound net fishermen with permit to target silver eel","Y","See Comments","Y","Y","See Comments","KUL","RDB-FishFrame","N","NA","N","NA","Documentation on sampling design, sampling implementation and data capture is stored on a locked internal share-point. This documentation will be improved, at the same time as documentation on data processing will be produced. Latest 2019, everything will be made available on an open web page.","No changes made compared to WP."]
["SWE","SWE",2017,"Baltic Sea","EIFAAC/ICES/GFCM ","catadromous survey","Survey aiming to collect eel with fyke nets, same gear/fishing method formely used  in the commercial fisheries","Y","See Comments","NA","Y","See Comments","KUL","NA","N","NA","N","NA","Documentation on sampling design, sampling implementation and data capture is stored on a locked internal share-point. This documentation will be improved, at the same time as documentation on data processing will be produced. Latest 2019, everything will be made available on an open web page.","No changes made compared to WP."]
["SWE","SWE",2017,"Baltic Sea","ICES","recreational fisheries- postal questionnaire","Approximately 19 000 randomly selected permanent residents in Sweden, age 18-80 year.","Y","Statistical Technical Report","Y","Y","Statistical Technical Report","Data warehouse at The Swedish Agency for Marine and Water Management","N","Y","Statistical Technical Report","Y","Statistical Technical Report",null,"No changes made compared to WP."]
["SWE","SWE",2017,"North Sea and Eastern Arctic","ICES","recreational fisheries- postal questionnaire","Approximately 19,000 randomly selected permanent residents in Sweden, age 18-80 year.","Y","Statistical Technical Report","Y","Y","Statistical Technical Report","Data warehouse at The Swedish Agency for Marine and Water Management","N","Y","Statistical Technical Report","Y","Statistical Technical Report",null,"No changes made compared to WP."]

{"sheet":"Table5B Quality assurance frame","index":17,"n_rows":13,"n_cols":33,"rows_kept":13,"cut":false,"hidden":false,"merged":[[4,28,4,30],[4,31,5,31],[4,32,5,32],[3,0,4,6],[3,7,3,11],[3,12,3,21],[3,22,3,30],[4,7,4,8],[4,9,4,11],[4,12,4,14],[4,15,4,19],[4,23,4,24],[4,26,4,27]]}
["Table 5B: Quality assurance framework for socio-economic data"]
[null,null,null,null,null,null,null,null,null,null,null,null,null,null,null,null,null,null,null,null,null,null,null,null,null,null,null,null,null,null,null,"WP  years","2018-2019"]
[null,null,null,null,null,null,null,null,null,null,null,null,null,null,null,null,null,null,null,null,null,null,null,null,null,null,null,null,null,null,null,"AR year",2018]
[null,null,null,null,null,null,null,"Institutional environment",null,null,null,null,"Statistical processes",null,null,null,null,null,null,null,null,null,"Statistical Outputs"]
[null,null,null,null,null,null,null,"P3 Impartiality and objectiveness",null,"P4 Confidentiality",null,null,"P5 Sound methodology",null,null,"P6 Appropriate statistical procedures",null,null,null,null,"P7 Non-excessive burden on respondents","P8 Cost effectiveness","P9 Relevance","P10 Accuracy and reliability",null,"P11 Timeliness and punctuality","P12 coherence and comparability",null,"P13 Accessibility and Clarity",null,null,"Comments","AR Comments"]
["MS","Sector Name","Sampling year/ period","Region","RFMO/RFO/IO/NSB","Type of data collection scheme","Data Sources","Statistically sound sources and methods","Error checking","Are procedures for confidential data handling in place and documented?","Are protocols to enforce confidentiality between DCF partners in place and documented?","Are protocols to enforce confidentiality with external users in place and documented?","Is sound methodology documented ?","Does it follow international standards, guidelines and best practices?","Are methodologies consistent at MS, regional and EU level?","Is there consistency between administrative and other statistical data?","Are there agreements for access and quality of administrative data between partners?","Are data collection, entry and coding checked?","Are editing and imputation methods used and checked?","Are revisions documented and available?","Is duplication of data collection avoided?","Do automatic techniques for data capture, data coding and validation exist?","Are end-users listed and updated?","Are sources, intermediate results and outputs regularly assessed and validated?","Are errors measured and documented? ","Are procedures in place to ensure timely execution?","Are procedures in place to monitor internal coherence?","Are statistics comparable over time?","Are methodological documents publicly available?","Are data stored in databases?","Where can documentation be found? "]
["SWE","Fishing",2017,"All regions","NA","A - Census","Questionnaries - Revenue/cost","Y","Y","Y","Y","Y","Y","Y","Y","Y","Y","Y","Y","Y","Y","Y","Y","Y","Y","Y","Y","Y","Y","Y","https://www.havochvatten.se/en/swam/eu--international/international-cooperation/data-collection-framework-dcf/national-programs-and-annual-reports.html"]
["SWE","Fishing",2017,"All regions","NA","A - Census","Questionnaries - Social data","Y","Y","Y","Y","Y","Y","Y","Y","Y","Y","Y","Y","Y","Y","Y","Y","Y","Y","Y","Y","Y","Y","Y","https://www.havochvatten.se/en/swam/eu--international/international-cooperation/data-collection-framework-dcf/national-programs-and-annual-reports.html"]
["SWE","Fishing",2017,"All regions","NA","A - Census","Tax declarations - Revenue/cost","Y","Y","Y","Y","Y","Y","Y","Y","Y","Y","Y","Y","Y","Y","Y","Y","Y","Y","Y","Y","Y","Y","Y","https://www.havochvatten.se/en/swam/eu--international/international-cooperation/data-collection-framework-dcf/national-programs-and-annual-reports.html"]
["SWE","Fishing",2017,"All regions","NA","A - Census","Logbooks - Revenue","Y","Y","Y","Y","Y","Y","Y","Y","Y","Y","Y","Y","Y","Y","Y","Y","Y","Y","Y","Y","Y","Y","Y","https://www.havochvatten.se/en/swam/eu--international/international-cooperation/data-collection-framework-dcf/national-programs-and-annual-reports.html"]
["SWE","Fishing",2017,"All regions","NA","A - Census","Monthly journals - Revenue","Y","Y","Y","Y","Y","Y","Y","Y","Y","Y","Y","Y","Y","Y","Y","Y","Y","Y","Y","Y","Y","Y","Y","https://www.havochvatten.se/en/swam/eu--international/international-cooperation/data-collection-framework-dcf/national-programs-and-annual-reports.html"]
["SWE","Aquaculture",2016,"All regions","NA","A - census","Financial accounts, managing authority and questionnaires","Y","Y","Y","Y","Y","Y","Y","Y","Y","Y","Y","Y","Y","Y","Y","Y","Y","Y","Y","Y","Y","Y","Y","https://www.havochvatten.se/https://www.scb.se","Statistics include: Tax declaration, questionnaires, official data on medical treatments, labour market statistics "]
["SWE","processing",2016,"all regions","NA","C - Non-Probability Sample Survey, A - census","Official statistics","Y","Y","Y","Y","Y","Y","Y","Y","Y","Y","Y","Y","Y","Y","Y","Y","Y","Y","Y","Y","Y","Y","Y","www.scb.se"]

{"sheet":"Table6A_Data_availability","index":18,"n_rows":20,"n_cols":10,"rows_kept":20,"cut":false,"hidden":false,"merged":[]}
["Table 6A: Data availability"]
[null,null,null,null,null,null,null,null,"WP  years","2018-2019"]
[null,null,null,null,null,null,null,null,"AR year",2018]
["MS","Data set","Section","Variable group","Year(s) of WP implementation","Reference year ","Final data available after","Comments","Date when data was available","AR Comments"]
["SWE","Biological variables","1B/1C/1H","Age, length, weight, sex ratio, sexual maturity  ","N","N"," N+1 March 31","Stocks as listed in 1B/1C ","wgbfas 20190318\nwgbie 20190321\nwgceph 20190401\nwgnssk 20190403\nwgdeep 20190411\nwgcse 20190417\nRDB 20190401"]
["SWE","Recreational fisheries","1D","River catches; Salmo salar Baltic Sea + North sea and Eastern Arctic and Salmo trutta Baltic Sea","N","N","N+1, February 28",null,20190228]
["SWE","Recreational fisheries","1D","Trolling catches; Salmo salar Baltic Sea","N","N","N+1, February 28","This survey is done every second year",null,"This survey is done every second year"]
["SWE","Recreational fisheries","1D","Trap net catches; Salmo salar Baltic Sea","N","N","N+1, February 28","This survey is done every 4th year",null,"This survey is done every 4th year"]
["SWE","Anadromous and catadromous species data collection in fresh water ","1E","Electrofishing, smolt traps adult counters, fishery statistics; Salmo salar Baltic Sea + North Sea and Eastern Arctic","N","N","N+1, February 28",null,20190228]
["SWE","Anadromous and catadromous species data collection in fresh and brackish water ","1E","Age, length, weight, sex ratio, sexual maturity; Anguilla anguilla; Inland, Baltic Sea + North Sea and Eastern Arctic","N","N","N+1, June 15",null,20190615]
["SWE","Anadromous and catadromous species data collection in fresh and brackish water ","1E","Electrofishing, silver eel traps, yellow eel monitoring, young eel recruitment, fishery statistics; Anguilla anguilla; Inland, Baltic Sea + North Sea and Eastern Arctic","N","N","N+1, June 15",null,20180615]
["SWE","Recreational fish","1D","Recreational fish -  cod, salmon, sea trout ","N","N"," N+1 March 31","Annual estimate of catch, data from the  pilot studies","wgef 20190517","No pilot study on salmon and sea trout, only cod."]
["SWE","Incidental Bycatch  ","1F","Incidental Bycatch  ","N","N"," N+1 March 31",null,"wgbyc 20190215"]
["SWE","Fleet economic","3A","Revenue/costs/social data","N","N-1","N+1, March 1",null,20190301]
["SWE","Capacity","2A","Capacity ","N","N-1","N+1 March 31","Variable collected for all areas",20190201,"Preliminary data available in february. Final data: 20190601"]
["SWE","Effort","2A","Effort","N","N-1","N+1 March 31","Variable collected for all areas",20190201,"Preliminary data available in february. Final data: 20190601"]
["SWE","Landings ","2A","Landings ","N","N-1","N+1 March 31",null,20190201,"Preliminary data available in february. Final data: 20190601"]
["SWE","Aquaculture economic","3B","all","N","N-2","N+1, March 1","Due to financial accounting there is a two year delay",20180430,"There was an error in WP. Final data available after should be changed to April 30"]
["SWE","Fish processing economic","3C","All except 1 variable; unpaid labour.","N","N-2","N+1, November 1",null,20181212,"Subsidies are separated. There was an error in WP. Final data available after should be changed to December 1. "]
["SWE","Research surveys at sea","1G","Biological data ","N","N","N+1 March 31",null,"IBTS q3 2018; 20180926\nBITS q4 2018; 20190111\nBIAS 2018; 20190502\nIBTS q1 2018; 20180409\nBITS q1 2018; 20180604","The variable not listed in WP 2018-2019 by mistake, added here."]

{"sheet":"Table7A_Planned Regional_coord","index":19,"n_rows":44,"n_cols":8,"rows_kept":44,"cut":false,"hidden":false,"merged":[[8,0,8,5],[15,0,15,5],[22,0,22,5],[30,0,30,5]]}
["Table 7A: Planned regional and international coordination"]
[null,null,null,null,null,null,"WP  years","2018-2019"]
[null,null,null,null,null,null,"AR year",2018]
["MS","Acronym","Name of meeting","RFMO/RFO/IO","Planned MS participation","Comments","Number of participants","AR Comments"]
["(1) Data collection: National and EU coordination"]
["SWE","NC meeting","Expert Group on Fisheries Data Collection meeting","NA","X",null,1]
["SWE","National Coordination","National coordination meeting","NA","X",null,9]
["SWE","WGIMM","Working Group on Integration of Economics, Stock Assessment and Fisheries Management (web-ex)","ICES",1,"By correspondence",null,"No meeting was conducted"]
["(2) Data collection: Regional coordination"]
["SWE","RCG Baltic ","Regional Coordination Meeting for the Baltic","ICES","X","including NC part time",4]
["SWE","RCG NS & EA","Regional Coordination Meeting for the North Sea and Eastern Arctic","ICES","X","including NC part time",3,"Subgroup of diadroma species was included in this RCG. 1 persons for eel and 1 persons for salmon /seatrout part time participation"]
["SWE","14th Liason Meeting","14th Liason Meeting ","ICES","NA",null,1,"chair for RCG Baltic were participating"]
["SWE","RDB-SC-1","Meeting of the Steering Committee of the Regional Database - Baltic, North Sea & North Atlantic ","ICES","X",null,1]
["SWE","PGECON","Planning Group for Economic Issues","COM","X",null,1]
["SWE","SUBGROUPS in RCG","Subgroups established in RCGs to work intersessionaly","NA","X",null,0,"starting up of app 10 intersessional subgroups. Skype meetings"]
["(3) ICES & other Planning Groups or Workshops related to the DCF"]
["SWE","WGCATCH","The Working Group on Commercial Catches","ICES","X",null,1]
["SWE","PGDATA","Planning Group on Data Needs for Assessment and Advice","ICES","X",null,0,"Due to overlap with other duties, the meeting could not be prioritized."]
["SWE","WGBIOP","Working Group on Biological Parameters","ICES","X",null,2]
["SWE","WKRDB","ICES Workshop to develop the RDB data format for design based sampling and estimation with particular emphasis on population data","ICES","X","participation if meeting will be hold",3]
["SWE","WGECON","Working Group on Economics","ICES","X",null,1,"This meeting was not listed in the WP 2018-2019"]
["SWE","WGRFS","Working Group on Recreational Fisheries Surveys","ICES","X",null,5]
["(5) Planning Groups on surveys at sea "]
["SWE","IBTSWG","International Bottom Trawl Survey Working Group","ICES","X",null,1]
["SWE","WGBIFS","Baltic International Fish Survey Working Group","ICES","X",null,4]
["SWE","WGNEPS","Working Group on Nephrops surveys","ICES","X",null,1]
["SWE","WGISUR","Working Group on Integrating Surveys for the Ecosystem Approach","ICES","X",null,0,"Due to overlap with other duties, the meeting could not be prioritized."]
["SWE","WGFTFB","ICES-FAO Working group of Fishing Technology and Fish Behaviour","ICES","X",null,3]
["SWE","WGFAST","Working Group on Fisheries Acoustics, Science and Technology","ICES","X",null,2]
["SWE","WGISDAA","Working Group on Improving use of Survey Data for Assessment and Advice","ICES","X",null,0,"Due to overlap with other duties, the meeting could not be prioritized."]
["(6) Support to Scientific Advice - ICES"]
["SWE","WGCHAIRS","Annual Meeting of Advisory Working Group Chairs","ICES","X",null,2]
["SWE","NIPAG","NAFO/ICES Pandalus Assessment Meeting","ICES/NAFO","X",null,0]
["SWE","HAWG","Herring Assessment Working Group for the Area South of 62⁰N","ICES","X",null,1]
["SWE","WGBAST","Baltic Salmon and Trout Assessment Working Group","ICES","X",null,7,"4 persons were attending part of the meeting or partly by skype."]
["SWE","WGBFAS","Baltic Fisheries Assessment Working Group","ICES","X",null,8,"2 persons were attending part of the meeting."]
["SWE","WGNSSK","Working Group on the Assessment of Demersal Stocks in the North Sea and Skagerrak","ICES","X",null,3,"2 persons attending by correspondance."]
["SWE","WGEEL","Joint EIFAC/ICES Working Group on Eels","ICES/EIFAC","X",null,1]
["SWE","WGECO","Working Group on the Ecosystem Effects of Fishing Activities","ICES","X",null,1]
["SWE","WGSFD","Working Group on Spatial Fisheries Data","ICES","X",null,1]
["SWE","WGSAM","Working Group on Multispecies Assessment Method","ICES","X",null,3]
["SWE","WGBYC","Working Group on Bycatch of Protected Species Fishing Behaviour ","ICES","X",null,1]
["SWE","WGBIODIV","Working Group on Biodiversity Science","ICES","X",null,1]
["SWE",null,"Relevant datacompilations WK and Benchmarks","ICES","X",null,1]

{"sheet":"Table7B_Follow up of Recommenda","index":20,"n_rows":5,"n_cols":11,"rows_kept":5,"cut":false,"hidden":false,"merged":[]}
["Table 7B: Follow-up of recommendations and agreements"]
[null,null,null,null,null,null,null,null,null,"WP  years","2018-2019"]
[null,null,null,null,null,null,null,null,null,"AR year",2018]
["MS","Region","RFMO/RFO/IO","Source","Section ","Topic","Recommendation number","Recommendation/ Agreement","Follow-up action","Comments","MS action taken "]
["SWE","North Sea & Eastern Arctic","ICES","LM 2016",null,"Cost sharing of surveys","5. Agreements","Cost-sharing agreement for the conducting of the International Ecosystem Survey in the Nordic Seas (ASH) and the Blue Whiting Survey in 2016 and 2017","Approval by National Correspondents from  Denmark, Germany, the Netherlands, Sweden and the UK. \nDenmark, Germany, the Netherlands, Sweden and the UK agreed at the 2016 RCM NS&EA. ","At the time for this agreement, the 5% contribution threshold was still applicable, meaning that, for Sweden, this agreement only referred to the ASH-survey. ","Threshold changed to 3 % contribution, meaning that, for Sweden, this agreement referred to both the ASH-survey and Blue Whiting Survey in 2018.Sweden will finance its parts of these surveys."]

{"sheet":"Table7C_Bi- and multilateral ","index":21,"n_rows":13,"n_cols":10,"rows_kept":13,"cut":false,"hidden":false,"merged":[]}
["Table7C: Bi- and multilateral agreements"]
[]
[null,null,null,null,null,null,null,null,"WP  years","2018-2019"]
[null,null,null,null,null,null,null,null,"AR year",2018]
["MSs","Contact persons","Content","Coordination","Description of sampling / sampling protocol / sampling intensity","Data transmission  ","Access to vessels ","Validity ","Comments","AR Comments"]
["SWE - BEL","SWE: Anna Hasslow, anna.hasslow@havochvatten.se; BEL: els Torreele, Els.Torreele@ilvo.vlaanderen.be","To optimize and exchange the age reading expertise on sole collected in the IBTS survey. ","described in next column","SWE sends the otoliths collected during the IBTS q1 and q3 survey to BEL for age reading. App 50 -100 individuals per year. Belgium sends the results of the age readings together with the otoliths at the latest in December each year.","SWE is responsible for submitting the data to the relevant ICES Expert Groups, and to the EC under the requirements of its Data Collection Framework.","no need",2018,"Bilateral agreement for 2018 is under preparation.","The planned work was carried out in accordance by mutual consent between the countries concerned "]
["SWE - DNK","SWE: Anna Hasslow, anna.hasslow@havochvatten.se; DNK: Jørgen Dalskov, jd@aqua.dtu.dk","a) Sampling of the following species has been discussed and agreed: plaice in Skagerrak and Kattegat, cod in the Baltic, haddock in div.IIIa, saithe in div.IIIa, sole in div.IIIa, whiting in div.IIIa, norway lobster in Kattegat and Skagerrak, hake in div.IIIa, salmon in Baltic Sea.\nb) Special agreements for: herring in div.IIIa and div.IIIb-d, and sprat div.IIIb-d, witch flounder in div.IIIa.","described in next column","a) plaice: only DNK to sample, age reading calibration between DNK and SWE to be carried out on routine basis. cod: only DNK to sample. haddock: only DNK to sample. saithe: only DNK to sample. sole: only DNK to sample. whiting: discard rates will continue to be obtained. norway lobster: DNK & SWE to sample. hake: DNK to sample. \nb) \nherring IIIa: DNK to sample from trawl fisheries targeting small pelagic fish, si: 5 samples, 50 age readings/sample, 50 length measurements/sample, 50 individual weight/sample.\nherring IIIb-d: DNK to sample from trawl fisheries targeting small pelagic fish, si: 14 samples, 50 age readings/sample, 50 length measurements/sample, 50 individual weight/sample.\nsprat IIIb-d: DNK to sample from trawl fisheries targeting small pelagic fish, si: 28 samples, 50 age readings/sample, 50 length measurements/sample, 50 individual weight/sample.\nwitch flounder IIIa: app 600 individuals will be collected in DNK and sent to SWE for age reading."," \nherring IIIa: DNK obtains samples by market sampling from unsorted catches stratified by fishery. Samples to be delivered to SWE regularly on a quartely basis during the year of sampling. SWE responsible for submitting data to the respective end-users.\n\nherring IIIb-d: DNK obtains samples by market sampling from unsorted catches stratified by fishery.  Samples to be delivered to SWE regularly on a quartely basis during the year of sampling. SWE responsible for submitting data to the respective end-users.\n\nsprat IIIb-d: DNK obtains samples by market sampling from unsorted catches stratified by fishery. DNK to send frozen samples to SWE every quarter. SWE to measure length and weight, age reading. SWE responsible for submitting data to the respective end-users.\n\nwitch flounder IIIa: DNK collect data from market sampling and sea sampling, and sends otoliths to SWE for age reading, otoliths delivered to SWE regularly at latest 1 of February the year after sampling and SWE to return with age reading latest 1st of March the year after. DNK responsible for submitting data to the respective end-users.",null,2018,"Bilateral agreement for 2018 is under preparation.","The planned work was carried out in accordance by mutual consent between the countries concerned "]
["SWE - DNK","SWE: Anna Hasslow, anna.hasslow@havochvatten.se; DNK: Jørgen Dalskov, jd@aqua.dtu.dk","To optimize and exchange the age reading expertise for species collected in the IBTS survey. Both SWE and DNK are involved in the survey which is conducted in IIIa twice a year. A list of species are collected during the survey according to the Manual for the International Bottom Trawl Surveys ICES CM 2000/D:07, but for some species only a small amount are caught and there is a need for collaboration and task sharing. ","described in next column","Norway pout (Trisopterus esmarki) – SWE sends the collected otoliths to DNK for age reading. App 200-300 individuals per year.  \nWhiting (Merlangius merlangius) – SWE sends the collected otoliths to DNK for age reading. App 800-1 000 individuals per year.","SWE is responsible for submitting the data to the relevant ICES Expert Groups, and to the EC under the requirements of its Data Collection Framework.",null,2018,"Bilateral agreement for 2018 is under preparation.","The planned work was carried out in accordance by mutual consent between the countries concerned "]
["SWE - FIN","SWE: Anna Hasslow, anna.hasslow@havochvatten.se; FIN: Riitta Rahkonen, riitta.rahkonen@luke.fi","1) Herring in SD30 from OTM_SPF_16-104_0_0: SWE will sample FIN landings of herring to SWE. SWE performs length sampling. 2) BIAS SD 29N + 30:  SWE sends staff to the FIN part of the BIAS survey conducted in SD30. Age reading of 50 % of the otoliths sampled during BIAS SD 30 will be conducted in SWE. ","described in next column","1) In accordance with FIN and SWE WP. 2)  In accordance with BIAS manual. ","1) SWE submits length-distribution to FIN. FIN is responsible for incorporating the data in the FIN data set and deliver the data to relevant end-users. 2) FIN is responsible for submitting all data to relevant end-user  ","na",2018,"Bilateral agreement for 2018 is under preparation.","The planned work was carried out in accordance by mutual consent between the countries concerned "]
["SWE - POL","SWE: Anna Hasslow, anna.hasslow@havochvatten.se; POL: Ireneusz Wójcik, iwojcik@mir.gdynia.pl","While sprat in the Baltic is managed as one single stock is well covered concerning biological samples, POL vessels landing for first sale in SWE to be covered under POL WP.","described in next column","Length and age of discards and landings, in  accordance with POL WP.","SWE responsible for submitting data from SWE vessels, and POL from POL vessels, to the respective end-users.","no need",2018,"Bilateral agreement for 2018 is under preparation.","The planned work was carried out in accordance by mutual consent between the countries concerned "]
["SWE - GBR","SWE: Anna Hasslow, anna.hasslow@havochvatten.se; GBR: Margaret Bell, M.Bell@MARLAB.AC.UK","While mackerel is managed as one stock (II, IIIa, IV, V, VI, VII, VIII, IX) it has been agreed that the stock is well covered concerning biological samples, by the United Kingdom Marine Scotland National Programme.","described in next column","In accordance with the GBR (Scotland) WP.","GBR (Scotland) submits all data to the respective end-users.","no need",2018,"Bilateral agreement for 2018 is under preparation.","The planned work was carried out in accordance by mutual consent between the countries concerned "]
["SWE-DNK-GER-IRL-NLD-GBR","SWE: Anna Hasslow, anna.hasslow@havochvatten.se; DNK: Jørgen Dalskov, jd@aqua.dtu.dk; GER: Christoph Stransky, christoph.stransky@thuenen.de; IRL: Leonie O´Dowd, leonie.odowd@marine.ie; NLD: Inge Janssen, i.h.janssen@minez.nl; GBR: \nMathew Elliot, matt.elliot@ marinemanagement.org.uk","Cost-sharing agreement for participation to the International Ecosystem Survey in the Nordic Seas 2018-2019. ","described in next column","Sweden is contributing by sending two staff participating in the survey as well as a cost-sharing model based on the share of TAC is applied according to an agreement.","Denmark is responsible country for reporting of the results from the survey to the relevant ICES working group.","no need","2018-2019","This survey is also referred to as ASH survey in the Swedish WP. ","Ongoing"]
["SWE-DNK-GER-IRL-NLD-GBR-FRA-ESP","SWE: Anna Hasslow, anna.hasslow@havochvatten.se; DNK: Jørgen Dalskov, jd@aqua.dtu.dk; GER: Christoph Stransky, christoph.stransky@thuenen.de; IRL: Leonie O´Dowd, leonie.odowd@marine.ie; NLD: Sieto Verver, sieto.verver@wur.nl; GBR: \nMathew Elliot, matt.elliot@ marinemanagement.org.uk; FRA: Camille Dross, camille.dross@agriculture.gouv.fr ; ESP: Maria Moset, smosetma@mapama.es","Cost-sharing agreement for participation to the Blue Whiting Survey 2018-2019. ","described in next column","Sweden is contributing by financial payment.","See Netherlands","no need","2018-2019",null,"This agreement was prepared under 2017-2018 and was therefore not included in our WP 2018-2019. "]